Workbook

Sheet 1. Info and Instructions
AB1: Alectra Utilities Corporation-Brampton Rate Zone
AB2: Alectra Utilities Corporation-Enersource Rate Zone
AB3: Alectra Utilities Corporation-Horizon Utilities Rate Zone
AB4: Alectra Utilities Corporation-PowerStream Rate Zone
AB5: Alectra Utilities Corporation-Guelph Rate Zone
AB6: Algoma Power Inc.
AB7: Atikokan Hydro Inc.
AB8: Bluewater Power Distribution Corporation
AB9: Burlington Hydro Inc.
AB10: Canadian Niagara Power Inc.
AB11: Centre Wellington Hydro Ltd.
F12: Version | G12: 1 | AB12: Chapleau Public Utilities Corporation
AB13: Cooperative Hydro Embrun Inc.
C14: Utility Name | D14: Elexicon Energy Inc.-Veridian Rate Zone | AB14: E.L.K. Energy Inc.
AB15: Elexicon Energy Inc.-Whitby Rate Zone
C16: Assigned EB Number | D16: EB-2025-0312 | AB16: Elexicon Energy Inc.-Veridian Rate Zone
AB17: Enova Power Corp.-Kitchener-Wilmot Hydro Rate Zone
C18: Name and Title | D18: Erin Stevens | AB18: Enova Power Corp.-Waterloo North Rate Zone
AB19: Entegrus Powerlines Inc.-For Entegrus-Main Rate Zone
C20: Phone Number | AB20: Entegrus Powerlines Inc.-For Former St. Thomas Energy Rate Zone
AB21: ENWIN Utilities Ltd.
C22: Email Address | D22: estevens@elexiconenergy.com | AB22: EPCOR Electricity Distribution Ontario Inc.
AB23: ERTH Power Corporation - ERTH Power Main Rate Zone
C24: Date | D24: 2025-12-19 | AB24: ERTH POWER CORPORATION – GODERICH RATE ZONE
AB25: Essex Powerlines Corporation
C26: Last COS Re-based Year | AB26: Festival Hydro Inc.
AB27: Fort Frances Power Corporation
AB28: GrandBridge Energy Inc.-Brantford Power Rate Zone
A29: Note: Drop-down lists are shaded blue; Input cells are shaded green. | AB29: GrandBridge Energy Inc.-Energy+ Rate Zone
AB30: Greater Sudbury Hydro Inc.
AB31: Grimsby Power Incorporated
AB32: Halton Hills Hydro Inc.
AB33: Hearst Power Distribution Co. Ltd.
AB34: Hydro 2000 Inc.
AB35: Hydro Hawkesbury Inc.
AB36: Hydro One Networks Inc.
AB37: Hydro One Networks Inc.-Former Orillia Power Distribution Corporation Service Area
AB38: Hydro One Networks Inc.-Former Peterborough Distribution Inc. Service Area
AB39: Hydro One Networks Inc.-Former Haldimand County Hydro Inc. Service Area
AB40: Hydro One Networks Inc.-Former Norfolk Power Distribution Inc. Service Area
AB41: Hydro One Networks Inc.-Former Woodstock Hydro Services Inc. Service Area
AB42: Hydro One Remote Communites Inc.
AB43: Hydro Ottawa Limited
AB44: InnPower Corporation
AB45: Kingston Hydro Corporation
AB46: Lakefront Utilities Inc.
AB47: Lakeland Power Distribution Ltd.
AB48: London Hydro Inc.
AB49: Milton Hydro Distribution Inc.
AB50: Newmarket-Tay Power Distribution Ltd.-For Former Midland Power Utility Rate Zone
AB51: Newmarket-Tay Power Distribution Ltd.-For Newmarket-Tay Power Main Rate Zone
AB52: Niagara Peninsula Energy Inc.
AB53: Niagara-on-the-Lake Hydro Inc.
AB54: North Bay Hydro Distribution Limited
AB55: Northern Ontario Wires Inc.
AB56: Oakville Hydro Electricity Distribution Inc.
AB57: Orangeville Hydro Limited
AB58: Oshawa PUC Networks Inc.
AB59: Ottawa River Power Corporation
AB60: PUC Distribution Inc.
AB61: Renfrew Hydro Inc.
AB62: Rideau St. Lawrence Distribution Inc.
AB63: Sioux Lookout Hydro Inc.
AB64: Synergy North Corporation-Kenora Rate Zone
AB65: Synergy North Corporation-Thunder Bay Rate Zone
AB66: Tillsonburg Hydro Inc.
AB67: Toronto Hydro-Electric System Limited
AB68: Wasaga Distribution Inc.
AB69: Welland Hydro-Electric System Corp.
AB70: Wellington North Power Inc.
AB71: Westario Power Inc.

Sheet Table of Contents
AA1: 1
AA2: 2012
AA3: 2013
AA4: 2014
AA5: 2015
AA6: 2016
D10: 1. Info
D11: S. Summary
D12: A. Data Input Sheet
D13: B. Tax Rates & Exemptions
C16: Historical Year | D16: H0 - PILs, Tax Provision Historical Year
D17: H1 - Adj. Taxable Income Historical Year
D18: H4 - Schedule 4 Loss Carry Forward Historical Year
D19: H8 - Schedule 8 Historical
D20: H13 - Schedule 13 Tax Reserves Historical
C22: Bridge Year | D22: B0 - PILs,Tax Provision Bridge Year
D23: B1 - Adj. Taxable Income Bridge Year
D24: B4 - Schedule 4 Loss Carry Forward Bridge Year
D25: B8 - Schedule 8 CCA Bridge Year
D26: B13 - Schedule 13 Tax Reserves Bridge Year
C28: Test Year | D28: T0 PILs, Tax Provision Test Year
D29: T1 Taxable Income Test Year
D30: T4 Schedule 4 Loss Carry Forward Test Year
D31: T8 Schedule 8 CCA Test Year
D32: T13 Schedule 13 Reserve Test Year

Sheet S. Summary
B7: No inputs required on this worksheet.
D9: Inputs on Service Revenue Requirement Worksheet
D10: The Service Revenue Requirement is in the 'Revenue Requirement Workform' - Tab 3.
H11: Summary
D12: Item | G12: Working Paper Reference | H12: 2027 | I12: 2028 | J12: 2029 | K12: 2030 | L12: 2031
D14: Adjustments required to arrive at taxable income | G14: as below | H14: =+H25 -> -28847219.95 | I14: =+I25 -> -24905893.82 | J14: -28491271.51 | K14: -23670606.72 | L14: -26036168.51
D15: Test Year - Payments in Lieu of Taxes (PILs) | G15: T0 | H15: =+'T0 2027 PILs,Tax Provision'!J25 -> 0 | I15: ='T0 2028 PILs,Tax Provision'!J25 -> 0 | J15: ='T0 2029 PILs,Tax Provision'!J25 -> 0 | K15: ='T0 2030 PILs,Tax Provision '!J25 -> 0 | L15: ='T0 2031 PILs,Tax Provision'!J25 -> 0
D16: Test Year - Grossed-up PILs | G16: T0 | H16: =+'T0 2027 PILs,Tax Provision'!J30 -> 0 | I16: ='T0 2028 PILs,Tax Provision'!J30 -> 0 | J16: ='T0 2029 PILs,Tax Provision'!J30 -> 0 | K16: ='T0 2030 PILs,Tax Provision '!J30 -> 0 | L16: ='T0 2031 PILs,Tax Provision'!J30 -> 0
D17: Effective Federal Tax Rate | G17: T0 | H17: =+'T0 2027 PILs,Tax Provision'!G14 -> 0.15 | I17: ='T0 2028 PILs,Tax Provision'!G14 -> 0 | J17: ='T0 2029 PILs,Tax Provision'!G14 -> 0 | K17: ='T0 2030 PILs,Tax Provision '!G14 -> 0.15 | L17: ='T0 2031 PILs,Tax Provision'!G14 -> 0.15
D18: Effective Ontario Tax Rate | G18: T0 | H18: =+'T0 2027 PILs,Tax Provision'!G13 -> 0.115 | I18: ='T0 2028 PILs,Tax Provision'!G13 -> 0 | J18: ='T0 2029 PILs,Tax Provision'!G13 -> 0 | K18: ='T0 2030 PILs,Tax Provision '!G13 -> 0.115 | L18: ='T0 2031 PILs,Tax Provision'!G13 -> 0.115
D22: Calculation of Adjustments required to arrive at Taxable Income
D23: Regulatory Income (before income taxes) | G23: T1 | H23: ='A. Data Input Sheet'!G18 -> 22494443.72 | I23: ='A. Data Input Sheet'!H18 -> 24905893.82 | J23: ='A. Data Input Sheet'!I18 -> 28491271.51 | K23: ='A. Data Input Sheet'!J18 -> 32014138.11 | L23: ='A. Data Input Sheet'!K18 -> 37492597.25
D24: Taxable Income | G24: T1 | H24: ='T1 2027 Sch 1 Taxable Income'!F123 -> -6352776.223 | I24: ='T1 2028 Sch 1 Taxable Income'!F123 -> 0 | J24: ='T1 2029 Sch 1 Taxable Income'!F123 -> 0 | K24: ='T1 2030 Sch 1 Taxable Income'!F123 -> 8343531.392 | L24: ='T1 2031 Sch 1 Taxable Income'!F123 -> 11456428.75
D25: Difference | G25: calculated | H25: =+H24-H23 -> -28847219.95 | I25: =+I24-I23 -> -24905893.82 | J25: -28491271.51 | K25: -23670606.72 | L25: -26036168.51

Sheet S1. Integrity Checks
A11: Integrity Checks
A13: The applicant must ensure the following integrity checks have been completed and confirm this is the case in the table below, or provide an explanation if this is not the case:
B15: Item | C15: Utility Confirmation (Y/N) | D15: Notes
A16: 1 | B16: The depreciation and amortization added back in the application’s PILs model agree with the numbers disclosed in the rate base section of the application | C16: Y
A17: 2 | B17: The capital additions and deductions in the CCA Schedule 8 agree with the rate base section for historical, bridge and test years | C17: Y
A18: 3 | B18: Schedule 8 of the most recent federal T2 tax return filed with the application has a closing December 31 historical year UCC that agrees with the opening (January 1) bridge year UCC. If the amounts do not agree, then the applicant must provide a reconciliation with explanations. Distributors must segregate non-distribution tax amounts on Schedule 8. | C18: Y
A19: 4 | B19: The CCA deductions in the application’s PILs tax model for historical, bridge and test years (as applicable) agree with the numbers in the CCA Schedule 8 for the same years filed in the application | C19: Y
A20: 5 | B20: Loss carry-forwards, if any, from prior year tax returns' Schedule 4 agree with those disclosed in the application | C20: Y
A21: 6 | B21: A discussion is included in the application as to when the loss carry-forwards, if any, will be fully utilized | C21: Y
A22: 7 | B22: CCA is maximized even if there are tax loss carry-forwards | C22: Y
A23: 8 | B23: Other post-employment benefits and pension expenses that are added back on Schedule 1 to reconcile accounting income to net income for tax purposes agree with the OM&A analysis for compensation. The amounts deducted are reasonable when compared with the notes to the audited financial statements, Financial Services Commission of Ontario reports, and actuarial valuations. | C23: N | D23: Please see Exhibit 6, Tab 2, Schedule 1, section 14
A24: 9 | B24: The income tax rate used to calculate the tax expense is consistent with the utility’s actual tax facts and evidence filed in the application | C24: Y

Sheet A. Data Input Sheet
E7: Summary | G7: Test Year | H7: Test Year | I7: Test Year | J7: Test Year | K7: Test Year | L7: Bridge Year
G8: 2027 | H8: 2028 | I8: 2029 | J8: 2030 | K8: 2031
C9: Rate Base | F9: S | G9: 617300870.6 | H9: 683476778.8 | I9: 781868043.8 | J9: 878543856 | K9: 1028885764 | L9: 616746156.6
C11: Return on Ratebase
C12: Deemed ShortTerm Debt % | E12: 0.04 | F12: T | G12: =G9*$E12 -> 24692034.82 | H12: =H9*$E12 -> 27339071.15 | I12: 31274721.75 | J12: 35141754.24 | K12: 41155430.58 | L12: W = S * T
C13: Deemed Long Term Debt % | E13: 0.56 | F13: U | G13: =G9*$E13 -> 345688487.5 | H13: =H9*$E13 -> 382746996.1 | I13: 437846104.5 | J13: 491984559.4 | K13: 576176028.1 | L13: X = S * U
C14: Deemed Equity % | E14: 0.4 | F14: V | G14: =G9*$E14 -> 246920348.2 | H14: =H9*$E14 -> 273390711.5 | I14: 312747217.5 | J14: 351417542.4 | K14: 411554305.8 | L14: Y = S * V
C16: Short Term Interest Rate | E16: 0.0272 | F16: Z | G16: =G12*$E16 -> 671623.3472 | H16: =H12*$E16 -> 743622.7353 | I16: 850672.4316 | J16: 955855.7153 | K16: 1119427.712 | L16: AC = W * Z
C17: Long Term Interest | E17: 0.0482869757 | F17: AA | G17: =G13*$E17 -> 16692251.59 | H17: =H13*$E17 -> 18481694.9 | I17: 21142264.21 | J17: 23756446.46 | K17: 27821797.86 | L17: AD = X * AA
C18: Return on Equity (Regulatory Income) | E18: 0.0911 | F18: AB | G18: =G14*$E18 -> 22494443.72 | H18: =H14*$E18 -> 24905893.82 | I18: 28491271.51 | J18: 32014138.11 | K18: 37492597.25 | L18: AE = Y * AB | M18: T1
C19: Return on Rate Base | G19: =SUM(G16:G18) -> 39858318.66 | H19: =SUM(H16:H18) -> 44131211.45 | I19: 50484208.15 | J19: 56726440.29 | K19: 66433822.83 | L19: AF = AC + AD + AE
C24: Questions that must be answered | G24: Historical Year | H24: Bridge Year | I24: Test Year
C26: 1. Does the applicant have any Investment Tax Credits (ITC)? | G26: Yes | H26: Yes | I26: Yes
C28: 2. Does the applicant have any SRED Expenditures? | G28: No | H28: No | I28: No
C30: 3. Does the applicant have any Capital Gains or Losses for tax purposes? | G30: No | H30: No | I30: No
C32: 4. Does the applicant have any Capital Leases? | G32: No | H32: No | I32: No
C34: 5. Does the applicant have any Loss Carry-Forwards (non-capital or net capital)? | G34: Yes | H34: Yes | I34: Yes
C36: 6. Since 1999, has the applicant acquired another regulated applicant's assets? | G36: Yes | H36: Yes | I36: Yes
C38: 7. Did the applicant pay dividends? | G38: No | H38: No | I38: No
C39: If Yes, please describe the tax treatment in the manager's summary.
C41: 8. Did the applicant elect to capitalize interest incurred on CWIP for tax purposes? | G41: No | H41: No | I41: No

Sheet B. Tax Rates & Exemptions
C9: Tax Rates
C10: Federal & Provincial | E10: Effective | F10: Effective | G10: Effective | H10: Effective | I10: Effective | J10: Effective | K10: Effective
C11: As of MMM XX, 2019 | E11: 2020-01-01 | F11: =DATE(YEAR(E11) + 1, MONTH(E11), DAY(E11)) -> 2021-01-01 | G11: =DATE(YEAR(F11) + 1, MONTH(F11), DAY(F11)) -> 2022-01-01 | H11: 2023-01-01 | I11: 2024-01-01 | J11: 2025-01-01 | K11: 2026-01-01
C13: Federal income tax
C14: General Corporate Rate | E14: 0.38 | F14: 0.38 | G14: 0.38 | H14: 0.38 | I14: 0.38 | J14: 0.38 | K14: 0.38
C15: Federal Tax Abatement | E15: -0.1 | F15: -0.1 | G15: -0.1 | H15: -0.1 | I15: -0.1 | J15: -0.1 | K15: -0.1
C16: Adjusted Federal Rate | E16: =SUM(E14:E15) -> 0.28 | F16: 0.28 | G16: 0.28 | H16: 0.28 | I16: 0.28 | J16: =SUM(J14:J15) -> 0.28 | K16: 0.28
C18: Rate Reduction | E18: -0.13 | F18: -0.13 | G18: -0.13 | H18: -0.13 | I18: -0.13 | J18: -0.13 | K18: -0.13
C19: Federal Income Tax | E19: =E16+E18 -> 0.15 | F19: 0.15 | G19: 0.15 | H19: 0.15 | I19: 0.15 | J19: =J16+J18 -> 0.15 | K19: 0.15
C21: Ontario Income Tax | E21: 0.115 | F21: 0.115 | G21: 0.115 | H21: 0.115 | I21: 0.115 | J21: 0.115 | K21: 0.115
C23: Combined Federal and Ontario | E23: =E19+E21 -> 0.265 | F23: 0.265 | G23: 0.265 | H23: =H19+H21 -> 0.265 | I23: 0.265 | J23: =J19+J21 -> 0.265 | K23: 0.265
C25: Federal & Ontario Small Business
C26: Federal Small Business Limit | E26: 500000 | F26: 500000 | G26: 500000 | H26: 500000 | I26: 500000 | J26: 500000 | K26: 500000
C27: Ontario Small Business Limit | E27: 500000 | F27: 500000 | G27: 500000 | H27: 500000 | I27: 500000 | J27: 500000 | K27: 500000
C29: Federal Small Business Rate | E29: 0.11 | F29: 0.105 | G29: 0.105 | H29: 0.1 | I29: 0.09 | J29: 0.09 | K29: 0.09
C31: Ontario Small Business Rate | E31: 0.045 | F31: 0.045 | G31: 0.035 | H31: 0.035 | I31: 0.032 | J31: 0.032 | K31: 0.032
C34: Notes
C35: 1. The Ontario Energy Board's proxy for taxable capital is rate base.
C36: 2. The appropriate Federal and Ontario small business rates are calculated in the Income/PILs Workform. The Federal and Ontario small business deduction:
C37: a. is applicable if taxable capital is below $10 million.
C38: b. is phased out with taxable capital of more than $10 million.
C39: c. is completely eliminated when the taxable capital is $15 million or more. Effective for the 2022 taxation year, the Federal small business deduction is revised to be completely eliminated when the taxable capital is $50 million or more.

Sheet H0 PILs,Tax Provision Hist
C6: PILs Tax Provision - Historical Year
C8: Note: Input the actual information from the tax returns for the historical year. | I8: Wires Only
C10: Regulatory Taxable Income | H10: H1 | I10: ='H1 Sch 1 Taxable Income Hist'!G121 -> -36523468 | J10: A
C12: Ontario Income Taxes
C13: Income tax payable | D13: Ontario Income Tax | F13: B | H13: C = A * B
C15: Small business credit | D15: Ontario Small Business Threshold | E15: =IF(I10>'B. Tax Rates & Exemptions'!E27,'B. Tax Rates & Exemptions'!E27,0) -> 0 | F15: D
D16: Rate reduction (negative) | F16: E | H16: F = D * E
C20: Ontario Income tax | I20: =SUM(G13:G19) -> 0 | J20: J = C + F
C23: Combined Tax Rate and PILs | D23: Ontario Tax Rate (Maximum 11.5%) | G23: 0.115 | H23: B
D24: Federal tax rate (Maximum 15%) | G24: 0.15 | H24: C
D25: Combined tax rate (Maximum 26.5%) | I25: =SUM(G23:G24) -> 0.265 | J25: D = B+C
C28: Total Income Taxes | I28: =IF(I10*I25<0,0,I10*I25) -> 0 | J28: E = A * D
C30: Investment Tax Credits | J30: F
C31: Miscellaneous Tax Credits | J31: G
C32: Total Tax Credits | I32: =SUM(I30:I31) -> 0 | J32: H = F + G
C34: Corporate PILs/Income Tax Provision for Historical Year | I34: =IF(I28-I32<0,0,I28-I32) -> 0 | J34: I = E - H

Sheet H1 Sch 1 Taxable Income Hist
C8: Adjusted Taxable Income - Historical Year
D11: T2S1 line # | E11: Total for Legal Entity | F11: Non-Distribution Eliminations | G11: Historic Wires Only
C12: Income before PILs/Taxes | D12: (A + 101 + 102) | E12: 6757926 | G12: =+E12-F12 -> 6757926
C13: Additions:
C14: Interest and penalties on taxes | D14: 103 | G14: =+E14-F14 -> 0
C15: Amortization of tangible assets | D15: 104 | G15: 0
C16: Amortization of intangible assets | D16: 106 | E16: 21476514 | G16: 21476514
C17: Recapture of capital cost allowance from Schedule 8 | D17: 107 | G17: 0
C18: Income inclusion under subparagraph 13(38)(d)(iii) from Schedule 10 | D18: 108 | G18: 0
C19: Income or loss for tax purposes- joint ventures or partnerships | D19: 109
C20: Loss in equity of subsidiaries and affiliates | D20: 110 | G20: 0
C21: Loss on disposal of assets | D21: 111 | G21: 0
C22: Charitable donations and gifts from Schedule 2 | D22: 112 | G22: 0
C23: Taxable capital gains from Schedule 6 | D23: 113 | G23: 0
C24: Political contributions | D24: 114 | G24: 0
C25: Deferred and prepaid expenses | D25: 116 | G25: 0
C26: Scientific research expenditures deducted on financial statements | D26: 118 | E26: 1171733 | G26: 1171733
C27: Capitalized interest | D27: 119 | G27: 0
C28: Non-deductible club dues and fees | D28: 120 | E28: 50511 | G28: 50511
C29: Non-deductible meals and entertainment expense | D29: 121 | E29: 83667 | G29: 83667
C30: Non-deductible automobile expenses | D30: 122 | G30: 0
C31: Non-deductible life insurance premiums | D31: 123 | G31: 0
C32: Non-deductible company pension plans | D32: 124 | G32: 0
C33: Tax reserves deducted in prior year | D33: 125 | G33: 0
C34: Reserves from financial statements – balance at the end of the year | D34: 126 | E34: 7475075 | G34: 7475075
C35: Soft costs on construction and renovation of buildings | D35: 127 | G35: 0
C36: Capital items expensed | D36: 206 | G36: 0
C37: Debt issue expense | D37: 208 | G37: 0
C38: Development expenses claimed in current year | D38: 212 | G38: 0
C39: Financing fees deducted in books | D39: 216 | G39: 0
C40: Gain on settlement of debt | D40: 220 | G40: 0
C41: Non-deductible advertising | D41: 226 | G41: 0
C42: Non-deductible interest | D42: 227 | G42: 0
C43: Non-deductible legal and accounting fees | D43: 228 | G43: 0
C44: Recapture of SR&ED expenditures | D44: 231 | G44: 0
C45: Share issue expense | D45: 235 | G45: 0
C46: Write down of capital property | D46: 236 | G46: 0
C47: Amounts received in respect of qualifying environment trust per paragraphs 12(1)(z.1) and 12(1)(z.2) | D47: 237 | G47: 0
C48: Other additions
C49: Interest Expensed on Capital Leases | D49: 295 | E49: 9307 | G49: 9307
C50: Realized Income from Deferred Credit Accounts | D50: 295 | G50: 0
C51: Pensions | D51: 295 | G51: 0
C52: Non-deductible penalties | D52: 295 | G52: 0
D53: 295 | G53: 0
D54: 295 | G54: =+E54-F54 -> 0
C55: ARO Accretion expense | G55: 0
C56: Capital Contributions Received (ITA 12(1)(x)) | D56: 295 | E56: 35584089 | G56: 35584089
C57: Lease Inducements Received (ITA 12(1)(x)) | G57: 0
C58: Deferred Revenue (ITA 12(1)(a)) | G58: 0
C59: Prior Year Investment Tax Credits received | G59: 0
C60: Vehicle amortization | E60: 450537 | G60: 450537
C61: Other amortization-Renewables not included in Depreciation | E61: 88261 | G61: 88261
G62: 0
C63: Co-op education credit-prior year | E63: 56613 | G63: 56613
C64: Golf tournament expenses | E64: 29273 | G64: 29273
C65: Current period sick leave cost capitalized for accounting | E65: 18210 | G65: 18210
G66: 0
G67: 0
G68: 0
G69: 0
C70: Total Additions | E70: =SUM(E13:E69) -> 66493790 | F70: =SUM(F13:F69) -> 0 | G70: =SUM(G13:G69) -> 66493790
C72: Deductions:
C73: Gain on disposal of assets per financial statements | D73: 401 | E73: 44476 | G73: =+E73-F73 -> 44476
C74: Non-taxable dividends under section 83 | D74: 402 | G74: 0
C75: Capital cost allowance from Schedule 8 | D75: 403 | E75: 36365389 | G75: 36365389
C76: Terminal loss from Schedule 8 | D76: 404 | G76: 0
C77: Allowable business investment loss | D77: 406 | G77: 0
C78: Deferred and prepaid expenses | D78: 409 | G78: 0
C79: Scientific research expenses claimed in year | D79: 411 | E79: 1662291 | G79: 1662291
C80: Tax reserves claimed in current year | D80: 413 | G80: 0
C81: Reserves from financial statements - balance at beginning of year | D81: 414 | E81: 7396807 | G81: 7396807
C82: Contributions to deferred income plans | D82: 416 | G82: 0
C83: Book income of joint venture or partnership | D83: 305 | G83: 0
C84: Equity in income from subsidiary or affiliates | D84: 306 | G84: 0
C85: Other deductions
C86: Interest capitalized for accounting deducted for tax | D86: 395 | E86: 1443198 | G86: 1443198
C87: Capital Lease Payments | D87: 395 | G87: 0
C88: Non-taxable imputed interest income on deferral and variance accounts | D88: 395 | G88: 0
C89: Pensions contributions capitalized for accounting | D89: 395 | E89: 1179158 | G89: =+E89-F89 -> 1179158
C90: Other comprehensive income | D90: 395 | E90: 251000 | G90: =+E90-F90 -> 251000
C91: Current period employee benefit cost capitalized for accounting | D91: 395 | E91: 41690 | G91: 41690
C92: Proceeds on sales recorded for accounting | D92: 395 | E92: 298910 | G92: 298910
C93: Capital contribution on Intangible assets | D93: 395 | E93: 4062100 | G93: 4062100
C94: Reglatory assets(Deferred Variances)-increase | D94: 395 | E94: 21212422 | G94: 21212422
C95: Deferred Revenue ICM | D95: 395 | E95: 79620 | G95: 79620
C96: ARO Payments - Deductible for Tax when Paid | G96: 0
C97: ITA 13(7.4) Election - Capital Contributions Received | E97: 35584089 | G97: 35584089
C98: ITA 13(7.4) Election - Apply Lease Inducement to cost of Leaseholds | G98: 0
C99: Deferred Revenue - ITA 20(1)(m) reserve | G99: 0
C100: Principal portion of lease payments | E100: 104034 | G100: 104034
C101: Lease Inducement Book Amortization credit to income | G101: 0
C102: Financing fees for tax ITA 20(1)(e) and (e.1) | G102: 0
C103: Unrealized gain on interest rate swap | E103: 50000 | G103: 50000
G104: 0
G105: 0
G106: 0
G107: 0
G108: 0
G109: 0
G110: 0
C111: Total Deductions | E111: =SUM(E73:E110) -> 109775184 | F111: =SUM(F73:F110) -> 0 | G111: =SUM(G73:G110) -> 109775184
C113: Net Income for Tax Purposes | E113: =+E12+E70-E111 -> -36523468 | F113: =+F12+F70-F111 -> 0 | G113: =+G12+G70-G111 -> -36523468
C115: Charitable donations from Schedule 2 | D115: 311 | G115: =+E115-F115 -> 0
C116: Taxable dividends received under section 112 or 113 | D116: 320 | G116: =+E116-F116 -> 0
C117: Non-capital losses of previous tax years from Schedule 4 | D117: 331 | G117: =+E117-F117 -> 0
C118: Net capital losses of previous tax years from Schedule 4 | D118: 332 | G118: =+E118-F118 -> 0
C119: Limited partnership losses of previous tax years from Schedule 4 | D119: 335 | G119: =+E119-F119 -> 0
C121: TAXABLE INCOME | E121: =+E113-SUM(E115:E119) -> -36523468 | F121: =+F113-SUM(F115:F119) -> 0 | G121: =+G113-SUM(G115:G119) -> -36523468 | H121: H0

Sheet H4 Sch 4 Loss Cfwd Hist
C9: Schedule 4 Loss Carry Forward - Historical
C11: Corporation Loss Continuity and Application
C13: Non-Capital Loss Carry Forward Deduction | F13: Total | G13: Non-Distribution Portion | H13: Utility Balance
C14: Actual Historical | F14: 53947926 | G14: 17316758 | H14: =F14-G14 -> 36631168 | I14: B4
C16: Net Capital Loss Carry Forward Deduction | F16: Total | G16: Non-Distribution Portion | H16: Utility Balance
C17: Actual Historical | H17: =F17-G17 -> 0 | I17: B4

Sheet H8 Sch 8 CCA Hist
C6: Schedule 8 - Historical Year
C11: Class | D11: Class Description | E11: UCC End of Year Historical per tax returns | F11: Less: Non-Distribution Portion | G11: UCC Regulated Historical Year | H11: Working Paper Reference
C12: 1 | D12: Buildings, Distribution System (acq'd post 1987) | E12: 84325301 | G12: =+E12-F12 -> 84325301 | H12: B8
C13: 1b | D13: Non-Residential Buildings [Reg. 1100(1)(a.1) election] | E13: 13321340 | G13: =+E13-F13 -> 13321340 | H13: B8
C14: 2 | D14: Distribution System (acq'd pre 1988) | E14: 3019009 | G14: =+E14-F14 -> 3019009 | H14: B8
C15: 3 | D15: Buildings (acq'd pre 1988) | G15: 0 | H15: B8
C16: 6 | D16: Certain Buildings; Fences | G16: =+E16-F16 -> 0 | H16: B8
C17: 8 | D17: General Office Equipment, Furniture, Fixtures | E17: 3341961 | G17: 3341961 | H17: B8
C18: 10 | D18: Motor Vehicles, Fleet | E18: 3445368 | G18: 3445368 | H18: B8
C19: 10.1 | D19: Certain Automobiles | E19: 374 | G19: 374 | H19: B8
C20: 12 | D20: Computer Application Software (Non-Systems) | E20: 0 | G20: 0 | H20: B8
C21: 13 1 | D21: Lease # 1 | G21: 0 | H21: B8
C22: 13 2 | D22: Lease # 2 | G22: 0 | H22: B8
C23: 13 3 | D23: Lease # 3 | G23: 0 | H23: B8
C24: 13 4 | D24: Lease # 4 | G24: 0 | H24: B8
C25: 14 | D25: Limited Period Patents, Franchises, Concessions or Licences | G25: 0 | H25: B8
C26: 14.1 | D26: Eligible Capital Property (acq'd pre 2017) | E26: 2577638 | G26: =+E26-F26 -> 2577638 | H26: B8
C27: 14.1 | D27: Eligible Capital Property (acq'd post 2016) | E27: 6779914 | G27: =+E27-F27 -> 6779914 | H27: B8
C28: 17 | D28: Elec. Generation Equip. (Non-Bldng, acq'd post Feb 27/00); Roads, Lots, Storage | E28: 148966 | G28: 148966 | H28: B8
C29: 42 | D29: Fibre Optic Cable | E29: 890 | G29: =+E29-F29 -> 890 | H29: B8
C30: 43.1 | D30: Certain Clean Energy/Energy-Efficient Generation Equipment | G30: 0 | H30: B8
C31: 43.2 | D31: Certain Clean Energy/Energy-Efficient Generation Equipment | E31: 290 | G31: 290 | H31: B8
C32: 45 | D32: Computers & System Software (acq'd post Mar 22/04 and pre Mar 19/07) | E32: 12 | G32: 12 | H32: B8
C33: 46 | D33: Data Network Infrastructure Equipment (acq'd post Mar 22/04) | E33: 2156850 | G33: 2156850 | H33: B8
C34: 47 | D34: Distribution System (acq'd post Feb 22/05) | E34: 278455167 | G34: 278455167 | H34: B8
C35: 50 | D35: General Purpose Computer Hardware & Software (acq'd post Mar 18/07) | E35: 1187912 | G35: 1187912 | H35: B8
C36: 95 | D36: CWIP | E36: 49645617 | G36: 49645617 | H36: B8
G37: 0
G38: 0
G39: 0
G40: 0
G41: 0
G42: 0
G43: 0
G44: 0
D45: SUB-TOTAL - UCC | E45: =SUM(E12:E44) -> 448406609 | F45: =SUM(F12:F44) -> 0 | G45: =SUM(G12:G44) -> 448406609

Sheet H13 Sch 13 Reserves Hist
C8: Schedule 13 Tax Reserves - Historical
C10: Continuity of Reserves
C13: Description | D13: Historical Balance as per tax returns | E13: Non-Distribution Eliminations | F13: Utility Only
C15: Capital gains reserves ss.40(1) | F15: =D15-E15 -> 0 | G15: B13
C16: Tax reserves not deducted for accounting purposes
C17: Reserve for doubtful accounts ss. 20(1)(l) | F17: =D17-E17 -> 0 | G17: B13
C18: Reserve for undelivered goods and services not rendered ss. 20(1)(m) | F18: 0 | G18: B13
C19: Reserve for unpaid amounts ss. 20(1)(n) | F19: 0 | G19: B13
C20: Debt & share issue expenses ss. 20(1)(e) | F20: 0 | G20: B13
C21: Other tax reserves | F21: 0 | G21: B13
F22: 0
F23: 0
F24: 0
F25: 0
F26: 0
C27: Total | D27: =SUM(D17:D26) -> 0 | E27: =SUM(E17:E26) -> 0 | F27: =SUM(F17:F26) -> 0
C29: Financial Statement Reserves (not deductible for Tax Purposes)
C30: General reserve for inventory obsolescence (non-specific) | F30: =D30-E30 -> 0 | G30: B13
C31: General reserve for bad debts | F31: 0 | G31: B13
C32: Accrued Employee Future Benefits: | F32: 0 | G32: B13
C33: - Medical and Life Insurance | F33: 0 | G33: B13
C34: -Short & Long-term Disability | F34: 0 | G34: B13
C35: -Accmulated Sick Leave | D35: 947000 | F35: 947000 | G35: B13
C36: - Termination Cost | F36: 0 | G36: B13
C37: - Other Post-Employment Benefits | D37: 6528075 | F37: 6528075 | G37: B13
C38: Provision for Environmental Costs | F38: 0 | G38: B13
C39: Restructuring Costs | F39: 0 | G39: B13
C40: Accrued Contingent Litigation Costs | F40: 0 | G40: B13
C41: Accrued Self-Insurance Costs | F41: 0 | G41: B13
C42: Other Contingent Liabilities | F42: 0 | G42: B13
C43: Bonuses Accrued and Not Paid Within 180 Days of Year-End ss. 78(4) | F43: 0 | G43: B13
C44: Unpaid Amounts to Related Person and Not Paid Within 3 Taxation Years ss. 78(1) | F44: 0 | G44: B13
C45: Other | F45: 0 | G45: B13
F49: 0
F50: 0
C51: Total | D51: =SUM(D30:D50) -> 7475075 | E51: =SUM(E30:E50) -> 0 | F51: =SUM(F30:F50) -> 7475075

Sheet B0 PILs,Tax Provision Bridge
B6: PILS Tax Provision - Bridge Year
J8: Wires Only
I9: Reference
C10: Regulatory Taxable Income | I10: B1 | J10: ='B1 Sch 1 Taxable Income Bridge'!F114 -> -3379636.69 | K10: A
D12: Tax Rate | E12: Small Business Rate (If Applicable) | F12: Taxes Payable | G12: Effective Tax Rate
C13: Ontario (Max 11.5%) | D13: 0.115 | E13: =IF('A. Data Input Sheet'!L9<=10000000, ontario_SB, IF('A. Data Input Sheet'!L9>=50000000, ontariotax, IF(AND('A. Data Input Sheet'!L9>10000000, 'A. Data Input Sheet'!L9<50000000), ontario_SB+ ('A. Data Input Sheet'!L9 - 10000000)*(ontariotax - ontario_SB)/(50000000-10000000)))) -> 0.115 | F13: =IF(J10<500000,J10,500000)*E13+IF(J10>500000,J10-500000,0)*D13 -> -388658.2193 | G13: =IF(F13=0,0,+F13/J10) -> 0.115 | H13: B
C14: Federal (Max 15%) | D14: 0.15 | E14: =IF('A. Data Input Sheet'!L9<=10000000, Fed_SB_Bridge, IF('A. Data Input Sheet'!L9>=50000000, FedTax, IF(AND('A. Data Input Sheet'!L9>10000000, 'A. Data Input Sheet'!L9<50000000), Fed_SB_Bridge+ ('A. Data Input Sheet'!L9 - 10000000)*(FedTax -Fed_SB_Bridge)/(50000000-10000000)))) -> 0.15 | F14: =E14*IF(J10<500000,J10,500000)+IF(J10>500000,J10-500000,0)*D14 -> -506945.5035 | G14: =IF(F14=0,0,+F14/J10) -> 0.15 | H14: C
C16: Combined effective tax rate (Max 26.5%) | J16: =SUM(G13:G14) -> 0.265 | K16: D = B + C
C19: Total Income Taxes | J19: =IF(J10*J16<0,0,J10*J16) -> 0 | K19: E = A * D
C21: Investment Tax Credits | K21: F
C22: Miscellaneous Tax Credits | K22: G
C23: Total Tax Credits | J23: =SUM(J21:J22) -> 0 | K23: H = F + G
C25: Corporate PILs/Income Tax Provision for Bridge Year | J25: =IF(J19-J23<0,0,J19-J23) -> 0 | K25: I = E - H
C29: Note:
C30: 1. This is for the derivation of Bridge year PILs income tax expense and should not be used for Test year revenue requirement calculations.

Sheet B1 Sch 1 Taxable Income Bridge
B5: Adjusted Taxable Income - Bridge Year
D7: T2S1 line # | E7: Working Paper Reference | F7: Total for Regulated Utility
C8: Income before PILs/Taxes | D8: (A + 101 + 102) | F8: 11473233
C10: Additions:
C11: Interest and penalties on taxes | D11: 103
C12: Amortization of tangible assets | D12: 104 | F12: 22097330
C13: Amortization of intangible assets | D13: 106
C14: Recapture of capital cost allowance from Schedule 8 | D14: 107 | E14: B8 | F14: ='B8 Sch 8 CCA Bridge'!Y43 -> 0
C15: Income inclusion under subparagraph 13(38)(d)(iii) | D15: 108
C16: Income or loss for tax purposes- joint ventures or partnerships | D16: 109
C17: Loss in equity of subsidiaries and affiliates | D17: 110
C18: Loss on disposal of assets | D18: 111
C19: Charitable donations and gifts from Schedule 2 | D19: 112
C20: Taxable capital gains | D20: 113
C21: Political contributions | D21: 114
C22: Deferred and prepaid expenses | D22: 116
C23: Scientific research expenditures deducted on financial statements | D23: 118 | F23: 1171733
C24: Capitalized interest | D24: 119
C25: Non-deductible club dues and fees | D25: 120 | F25: 50511
C26: Non-deductible meals and entertainment expense | D26: 121 | F26: 83667
C27: Non-deductible automobile expenses | D27: 122
C28: Non-deductible life insurance premiums | D28: 123
C29: Non-deductible company pension plans | D29: 124
C30: Tax reserves deducted in prior year | D30: 125 | E30: B13 | F30: ='B13 Sch 13 Reserves Bridge'!G22 -> 0
C31: Reserves from financial statements- balance at end of year | D31: 126 | E31: B13 | F31: ='B13 Sch 13 Reserves Bridge'!K43 -> 7699327
C32: Soft costs on construction and renovation of buildings | D32: 127
C33: Capital items expensed | D33: 206
C34: Debt issue expense | D34: 208
C35: Development expenses claimed in current year | D35: 212
C36: Financing fees deducted in books | D36: 216
C37: Gain on settlement of debt | D37: 220
C38: Non-deductible advertising | D38: 226
C39: Non-deductible interest | D39: 227
C40: Non-deductible legal and accounting fees | D40: 228
C41: Recapture of SR&ED expenditures | D41: 231
C42: Share issue expense | D42: 235
C43: Write down of capital property | D43: 236
C44: Amounts received in respect of qualifying environment trust per paragraphs 12(1)(z.1) and 12(1)(z.2) | D44: 237
C45: Other Additions
C46: Interest Expensed on Capital Leases | D46: 295 | F46: 4795
C47: Realized Income from Deferred Credit Accounts | D47: 295
C48: Pensions | D48: 295
C49: Non-deductible penalties | D49: 295
D50: 295
D51: 295
C52: ARO Accretion expense
C53: Capital Contributions Received (ITA 12(1)(x)) | F53: 16412910
C54: Lease Inducements Received (ITA 12(1)(x))
C55: Deferred Revenue (ITA 12(1)(a))
C56: Prior Year Investment Tax Credits received
C57: Vehicle amortization | F57: 499511
C58: Other amortization-Renewables not included in Depreciation | F58: 88261
C59: Unrealized loss on interest rate swap
C60: Co-op education credit-prior year | F60: 3000
C61: Golf tournament expenses | F61: 29273
C63: Reglatory assets(Deferred Variances)-decrease | F63: 2427583
C67: Total Additions | F67: =SUM(F10:F66) -> 50567901
C68: Deductions:
C69: Gain on disposal of assets per financial statements | D69: 401 | F69: 44476
C70: Dividends not taxable under section 83 | D70: 402
C71: Capital cost allowance from Schedule 8 | D71: 403 | E71: B8 | F71: ='B8 Sch 8 CCA Bridge'!AA43 -> 36647508.69
C72: Terminal loss from Schedule 8 | D72: 404 | E72: B8 | F72: ='B8 Sch 8 CCA Bridge'!Z43 -> 0
C73: Allowable business investment loss | D73: 406
C74: Deferred and prepaid expenses | D74: 409
C75: Scientific research expenses claimed in year | D75: 411 | F75: 1662291
C76: Tax reserves claimed in current year | D76: 413 | E76: B13 | F76: ='B13 Sch 13 Reserves Bridge'!K22 -> 0
C77: Reserves from financial statements - balance at beginning of year | D77: 414 | E77: B13 | F77: ='B13 Sch 13 Reserves Bridge'!G43 -> 7475075
C78: Contributions to deferred income plans | D78: 416
C79: Book income of joint venture or partnership | D79: 305
C80: Equity in income from subsidiary or affiliates | D80: 306
C81: Other deductions
C82: Interest capitalized for accounting deducted for tax | D82: 395 | F82: 1457798
C83: Capital Lease Payments | D83: 395 | F83: 76185
C84: Non-taxable imputed interest income on deferral and variance accounts | D84: 395
C85: Pensions contributions capitalized for accounting | D85: 395 | F85: 1214533
C86: Current period employee benefit cost capitalized for accounting | D86: 395 | F86: 42941
C87: Current period sick leave cost capitalized for accounting | D87: 395 | F87: 8523
C88: Proceeds on sales recorded for accounting | D88: 395 | F88: 298910
C89: Deferred Revenue ICM | D89: 395 | F89: 79620
C90: ARO Payments - Deductible for Tax when Paid
C91: ITA 13(7.4) Election - Capital Contributions Received | F91: 16412910
C92: ITA 13(7.4) Election - Apply Lease Inducement to cost of Leaseholds
C93: Deferred Revenue - ITA 20(1)(m) reserve
C94: Principal portion of lease payments
C95: Lease Inducement Book Amortization credit to income
C96: Financing fees for tax ITA 20(1)(e) and (e.1)
C105: Total Deductions | E105: calculated | F105: =SUM(F69:F104) -> 65420770.69
C107: Net Income for Tax Purposes | E107: calculated | F107: =+F8+F67-F105 -> -3379636.69
C108: Charitable donations | D108: 311
C109: Taxable dividends received under section 112 or 113 | D109: 320
C110: Non-capital losses of previous tax years from Schedule 4 | D110: 331 | E110: B4 | F110: ='B4 Sch 4 Loss Cfwd Bridge'!G13*-1 -> 0
C111: Net capital losses of previous tax years from Schedule 4 | D111: 332 | E111: B4 | F111: ='B4 Sch 4 Loss Cfwd Bridge'!G20*-1 -> 0
C112: Limited partnership losses of previous tax years from Schedule 4 | D112: 335
C114: TAXABLE INCOME | E114: calculated | F114: =SUM(F107:F112) -> -3379636.69

Sheet B4 Sch 4 Loss Cfwd Bridge
C7: Corporation Loss Continuity and Application
C9: Schedule 4 Loss Carry Forward - Bridge Year
C11: Non-Capital Loss Carry Forward Deduction | G11: Total
C12: Actual Historical | F12: H4 | G12: ='H4 Sch 4 Loss Cfwd Hist'!H14 -> 36631168
C13: Amount to be used in Bridge Year | F13: B1 | G13: =IF('B1 Sch 1 Taxable Income Bridge'!F107<0,0,IF('B1 Sch 1 Taxable Income Bridge'!F107>G12,G12,'B1 Sch 1 Taxable Income Bridge'!F107)) -> 0
C14: Loss Carry Forward Generated in Bridge Year (if any) | F14: B1 | G14: =IF('B1 Sch 1 Taxable Income Bridge'!F107<0, 'B1 Sch 1 Taxable Income Bridge'!F107*-1, 0) -> 3379636.69
C15: Other Adjustments | G15: -22942172
C16: Balance available for use post Bridge Year | F16: calculated | G16: =G12-G13+G14+G15 -> 17068632.69 | H16: T4
C18: Net Capital Loss Carry Forward Deduction | G18: Total
C19: Actual Historical | F19: H4 | G19: ='H4 Sch 4 Loss Cfwd Hist'!H17 -> 0
C20: Amount to be used in Bridge Year
C21: Loss Carry Forward Generated in Bridge Year (if any) | F21: B1
C22: Other Adjustments
C23: Balance available for use post Bridge Year | F23: calculated | G23: =G19-G20+G21+G22 -> 0 | H23: T4

Sheet B8 Sch 8 CCA Bridge
B7: Schedule 8 CCA - Bridge Year
B9: (1) Class | C9: Class Description | D9: Working Paper Reference | E9: (2) Undepreciated capital cost (UCC) at the beginning of the bridge year | F9: (3) Cost of acquisitions during the year (new property must be available for use, except CWIP) | G9: (4) Cost of acquisitions from column 3 that are designated immediate expensing property (DIEP) | H9: (5) Adjustments and transfers (enter amounts that will reduce the UCC as negatives) | I9: (6) Amount from column 5 that is assistance received or receivable during the year for a property, subsequent to its disposition | J9: (7) Amount from column 5 that is repaid during the year for a property, subsequent to its disposition | K9: (8) Proceeds of dispositions | L9: (9) Proceeds of dispositions of the DIEP (enter amount from column 8 that relates to the DIEP reported in column 4) | M9: (10) UCC (column 2 plus column 3 plus or minus column 5 minus column 8) | N9: (11) UCC of the DIEP (enter the UCC amount that relates to the DIEP reported in column 4) | O9: (12) Immediate expensing | P9: (13) Cost of acquisitions on remainder of Class (column 3 minus column 4 plus column 11 minus column 12) | Q9: (14) Cost of acquisitions from column 13 that are accelerated investment incentive properties (AIIP) or properties included in Classes 54 to 56 | R9: (15) Remaining UCC (column 10 minus column 12) (if negative, enter "0") | S9: (16) Proceeds of disposition available to reduce the UCC of AIIP and property included in Classes 54 to 56 (column 8 minus column 9 plus column 6 minus column 13 plus column 14 minus column 7) (if negative, enter "0") | T9: (17) Net capital cost additions of AIIP and property included in Classes 54 to 56 acquired during the year (column 14 minus column 16) (if negative, enter "0") | U9: Relevant factor1 | V9: (18) UCC adjustment for AIIP and property included in Classes 54 to 56 acquired during the year (column 17 multiplied by the relevant factor) | W9: (19) UCC adjustment for non-AIIP and property included in Classes 54 to 56 (0.5 multiplied by the result of column 13 minus column 14 minus column 6 plus column 7 minus column 8 plus column 9) (if negative, enter "0") | X9: (20) CCA Rate % | Y9: (21) Recapture of CCA | Z9: (22) Terminal Loss | AA9: (23) CCA (for declining balance method, the result of column 15 plus column 18 minus column 19, multiplied by column 20 or a lower amount, plus column 12)) | AB9: (24) UCC at the end of the test year (column 10 minus column 23) | AC9: Working Paper Reference
B10: =IF(ISBLANK('H8 Sch 8 CCA Hist'!C12), "", 'H8 Sch 8 CCA Hist'!C12) -> 1 | C10: =IF(ISBLANK('H8 Sch 8 CCA Hist'!D12), "", 'H8 Sch 8 CCA Hist'!D12) -> Buildings, Distribution System (acq'd post 1987) | D10: H8 | E10: =IF(ISBLANK('H8 Sch 8 CCA Hist'!E12),0, 'H8 Sch 8 CCA Hist'!G12) -> 84325301 | M10: =IFERROR(E10+F10+H10-K10,0) -> 84325301 | P10: =+F10-G10+N10-O10 -> 0 | R10: =IF((M10-O10)<0,0,M10-O10) -> 84325301 | S10: =IF((K10-L10+I10-P10+Q10-J10)<0,0,(K10-L10+I10-P10+Q10-J10)) -> 0 | T10: =IF((Q10-S10)<0,0,(Q10-S10)) -> 0 | U10: 0 | V10: =T10*U10 -> 0 | W10: =IF((0.5*(P10-Q10-I10+J10-K10+L10))<0,0,(0.5*(P10-Q10-I10+J10-K10+L10))) -> 0 | X10: 0.04 | AA10: =IF(OR(R10<=0,Z10>0),0,(R10+V10-W10)*X10) -> 3373012.04 | AB10: =IF(M10<0,0,M10-Z10-AA10) -> 80952288.96 | AC10: T8
B11: =IF(ISBLANK('H8 Sch 8 CCA Hist'!C13), "", 'H8 Sch 8 CCA Hist'!C13) -> 1b | C11: =IF(ISBLANK('H8 Sch 8 CCA Hist'!D13), "", 'H8 Sch 8 CCA Hist'!D13) -> Non-Residential Buildings [Reg. 1100(1)(a.1) election] | D11: H8 | E11: =IF(ISBLANK('H8 Sch 8 CCA Hist'!E13),0, 'H8 Sch 8 CCA Hist'!G13) -> 13321340 | F11: 440000 | M11: =IFERROR(E11+F11+H11-K11,0) -> 13761340 | P11: =+F11-G11+N11-O11 -> 440000 | Q11: 440000 | R11: =IF((M11-O11)<0,0,M11-O11) -> 13761340 | S11: =IF((K11-L11+I11-P11+Q11-J11)<0,0,(K11-L11+I11-P11+Q11-J11)) -> 0 | T11: =IF((Q11-S11)<0,0,(Q11-S11)) -> 440000 | U11: 0 | V11: =T11*U11 -> 0 | W11: =IF((0.5*(P11-Q11-I11+J11-K11+L11))<0,0,(0.5*(P11-Q11-I11+J11-K11+L11))) -> 0 | X11: 0.06 | AA11: =IF(OR(R11<=0,Z11>0),0,(R11+V11-W11)*X11) -> 825680.4 | AB11: =IF(M11<0,0,M11-Z11-AA11) -> 12935659.6 | AC11: T8
B12: =IF(ISBLANK('H8 Sch 8 CCA Hist'!C14), "", 'H8 Sch 8 CCA Hist'!C14) -> 2 | C12: =IF(ISBLANK('H8 Sch 8 CCA Hist'!D14), "", 'H8 Sch 8 CCA Hist'!D14) -> Distribution System (acq'd pre 1988) | D12: H8 | E12: =IF(ISBLANK('H8 Sch 8 CCA Hist'!E14),0, 'H8 Sch 8 CCA Hist'!G14) -> 3019009 | M12: 3019009 | P12: 0 | R12: 3019009 | S12: 0 | T12: 0 | V12: 0 | W12: 0 | X12: 0.06 | AA12: 181140.54 | AB12: 2837868.46 | AC12: T8
B13: =IF(ISBLANK('H8 Sch 8 CCA Hist'!C15), "", 'H8 Sch 8 CCA Hist'!C15) -> 3 | C13: =IF(ISBLANK('H8 Sch 8 CCA Hist'!D15), "", 'H8 Sch 8 CCA Hist'!D15) -> Buildings (acq'd pre 1988) | D13: H8 | E13: =IF(ISBLANK('H8 Sch 8 CCA Hist'!E15),0, 'H8 Sch 8 CCA Hist'!G15) -> 0 | M13: 0 | P13: 0 | R13: 0 | S13: 0 | T13: 0 | V13: 0 | W13: 0 | X13: 0.05 | AA13: 0 | AB13: 0 | AC13: T8
B14: =IF(ISBLANK('H8 Sch 8 CCA Hist'!C16), "", 'H8 Sch 8 CCA Hist'!C16) -> 6 | C14: =IF(ISBLANK('H8 Sch 8 CCA Hist'!D16), "", 'H8 Sch 8 CCA Hist'!D16) -> Certain Buildings; Fences | D14: H8 | E14: =IF(ISBLANK('H8 Sch 8 CCA Hist'!E16),0, 'H8 Sch 8 CCA Hist'!G16) -> 0 | M14: 0 | P14: 0 | R14: 0 | S14: 0 | T14: 0 | U14: 0 | V14: 0 | W14: 0 | X14: 0.1 | AA14: 0 | AB14: 0 | AC14: T8
B15: =IF(ISBLANK('H8 Sch 8 CCA Hist'!C17), "", 'H8 Sch 8 CCA Hist'!C17) -> 8 | C15: =IF(ISBLANK('H8 Sch 8 CCA Hist'!D17), "", 'H8 Sch 8 CCA Hist'!D17) -> General Office Equipment, Furniture, Fixtures | D15: H8 | E15: =IF(ISBLANK('H8 Sch 8 CCA Hist'!E17),0, 'H8 Sch 8 CCA Hist'!G17) -> 3341961 | F15: 597634 | M15: 3939595 | P15: 597634 | Q15: 658713 | R15: 3939595 | S15: 61079 | T15: 597634 | U15: 0 | V15: 0 | W15: 0 | X15: 0.2 | AA15: 787919 | AB15: 3151676 | AC15: T8
B16: =IF(ISBLANK('H8 Sch 8 CCA Hist'!C18), "", 'H8 Sch 8 CCA Hist'!C18) -> 10 | C16: =IF(ISBLANK('H8 Sch 8 CCA Hist'!D18), "", 'H8 Sch 8 CCA Hist'!D18) -> Motor Vehicles, Fleet | D16: H8 | E16: =IF(ISBLANK('H8 Sch 8 CCA Hist'!E18),0, 'H8 Sch 8 CCA Hist'!G18) -> 3445368 | F16: 1740000 | K16: 44476 | M16: 5140892 | P16: 1740000 | Q16: 1740000 | R16: 5140892 | S16: 44476 | T16: 1695524 | U16: 0 | V16: 0 | W16: 0 | X16: 0.3 | AA16: =IF(OR(R16<=0,Z16>0),0,(R16+V16-W16)*X16) -> 1542267.6 | AB16: 3598624.4 | AC16: T8
B17: =IF(ISBLANK('H8 Sch 8 CCA Hist'!C19), "", 'H8 Sch 8 CCA Hist'!C19) -> 10.1 | C17: =IF(ISBLANK('H8 Sch 8 CCA Hist'!D19), "", 'H8 Sch 8 CCA Hist'!D19) -> Certain Automobiles | D17: H8 | E17: =IF(ISBLANK('H8 Sch 8 CCA Hist'!E19),0, 'H8 Sch 8 CCA Hist'!G19) -> 374 | M17: 374 | P17: 0 | R17: 374 | S17: 0 | T17: 0 | U17: 0 | V17: 0 | W17: 0 | X17: 0.3 | AA17: 112.2 | AB17: 261.8 | AC17: T8
B18: =IF(ISBLANK('H8 Sch 8 CCA Hist'!C20), "", 'H8 Sch 8 CCA Hist'!C20) -> 12 | C18: =IF(ISBLANK('H8 Sch 8 CCA Hist'!D20), "", 'H8 Sch 8 CCA Hist'!D20) -> Computer Application Software (Non-Systems) | D18: H8 | E18: =IF(ISBLANK('H8 Sch 8 CCA Hist'!E20),0, 'H8 Sch 8 CCA Hist'!G20) -> 0 | F18: 272862 | M18: 272862 | P18: 272862 | R18: 272862 | S18: 0 | T18: 0 | U18: 0 | V18: 0 | W18: =IF(OR((0.5*(P18-Q18-I18+J18-K18+L18))<0,X10<100%),0,(0.5*(P18-Q18-I18+J18-K18+L18))) -> 0 | X18: 1 | AA18: 272862 | AB18: 0 | AC18: T8
B19: 13 1 | C19: =IF(ISBLANK('H8 Sch 8 CCA Hist'!D21), "", 'H8 Sch 8 CCA Hist'!D21) -> Lease # 1 | D19: H8 | E19: =IF(ISBLANK('H8 Sch 8 CCA Hist'!E21),0, 'H8 Sch 8 CCA Hist'!G21) -> 0 | M19: 0 | P19: 0 | R19: 0 | S19: 0 | T19: 0 | U19: 0 | V19: 0 | W19: 0 | X19: NA | AA19: 0 | AB19: 0 | AC19: T8
B20: 13 2 | C20: =IF(ISBLANK('H8 Sch 8 CCA Hist'!D22), "", 'H8 Sch 8 CCA Hist'!D22) -> Lease # 2 | D20: H8 | E20: =IF(ISBLANK('H8 Sch 8 CCA Hist'!E22),0, 'H8 Sch 8 CCA Hist'!G22) -> 0 | M20: 0 | P20: 0 | R20: 0 | S20: 0 | T20: 0 | U20: 0 | V20: 0 | W20: 0 | X20: NA | AA20: 0 | AB20: 0 | AC20: T8
B21: 13 3 | C21: =IF(ISBLANK('H8 Sch 8 CCA Hist'!D23), "", 'H8 Sch 8 CCA Hist'!D23) -> Lease # 3 | D21: H8 | E21: =IF(ISBLANK('H8 Sch 8 CCA Hist'!E23),0, 'H8 Sch 8 CCA Hist'!G23) -> 0 | M21: 0 | P21: 0 | R21: 0 | S21: 0 | T21: 0 | U21: 0 | V21: 0 | W21: 0 | X21: NA | AA21: 0 | AB21: 0 | AC21: T8
B22: 13 4 | C22: =IF(ISBLANK('H8 Sch 8 CCA Hist'!D24), "", 'H8 Sch 8 CCA Hist'!D24) -> Lease # 4 | D22: H8 | E22: =IF(ISBLANK('H8 Sch 8 CCA Hist'!E24),0, 'H8 Sch 8 CCA Hist'!G24) -> 0 | M22: 0 | P22: 0 | R22: 0 | S22: 0 | T22: 0 | U22: 0 | V22: 0 | W22: 0 | X22: NA | AA22: 0 | AB22: 0 | AC22: T8
B23: =IF(ISBLANK('H8 Sch 8 CCA Hist'!C25), "", 'H8 Sch 8 CCA Hist'!C25) -> 14 | C23: =IF(ISBLANK('H8 Sch 8 CCA Hist'!D25), "", 'H8 Sch 8 CCA Hist'!D25) -> Limited Period Patents, Franchises, Concessions or Licences | D23: H8 | E23: =IF(ISBLANK('H8 Sch 8 CCA Hist'!E25),0, 'H8 Sch 8 CCA Hist'!G25) -> 0 | M23: 0 | P23: 0 | R23: 0 | S23: 0 | T23: 0 | U23: 0 | V23: 0 | W23: 0 | X23: NA | AA23: 0 | AB23: 0 | AC23: T8
B24: 14.1 | C24: Eligible Capital Property (acq'd pre Jan 1, 2017) | D24: H8 | E24: =IF(ISBLANK('H8 Sch 8 CCA Hist'!E26),0, 'H8 Sch 8 CCA Hist'!G26) -> 2577638 | M24: 2577638 | P24: 0 | R24: =IF((M24-O24)<0,0,M24-O24) -> 2577638 | S24: =IF((K24-L24+I24-P24+Q24-J24)<0,0,(K24-L24+I24-P24+Q24-J24)) -> 0 | T24: 0 | V24: 0 | W24: 0 | X24: 0.07 | AA24: 180434.66 | AB24: 2397203.34 | AC24: T8
B25: 14.1 | C25: Eligible Capital Property (acq'd post Jan 1, 2017) | D25: H8 | E25: =IF(ISBLANK('H8 Sch 8 CCA Hist'!E27),0, 'H8 Sch 8 CCA Hist'!G27) -> 6779914 | F25: 17136312 | M25: 23916226 | P25: 17136312 | Q25: 17136312 | R25: 23916226 | S25: 0 | T25: 17136312 | U25: 0 | V25: 0 | W25: 0 | X25: 0.05 | AA25: 1195811.3 | AB25: 22720414.7 | AC25: T8
B26: =IF(ISBLANK('H8 Sch 8 CCA Hist'!C28), "", 'H8 Sch 8 CCA Hist'!C28) -> 17 | C26: =IF(ISBLANK('H8 Sch 8 CCA Hist'!D28), "", 'H8 Sch 8 CCA Hist'!D28) -> Elec. Generation Equip. (Non-Bldng, acq'd post Feb 27/00); Roads, Lots, Storage | D26: H8 | E26: =IF(ISBLANK('H8 Sch 8 CCA Hist'!E28),0, 'H8 Sch 8 CCA Hist'!G28) -> 148966 | M26: 148966 | P26: 0 | R26: 148966 | S26: 0 | T26: 0 | U26: 0 | V26: 0 | W26: 0 | X26: 0.08 | AA26: 11917.28 | AB26: 137048.72 | AC26: T8
B27: =IF(ISBLANK('H8 Sch 8 CCA Hist'!C29), "", 'H8 Sch 8 CCA Hist'!C29) -> 42 | C27: =IF(ISBLANK('H8 Sch 8 CCA Hist'!D29), "", 'H8 Sch 8 CCA Hist'!D29) -> Fibre Optic Cable | D27: H8 | E27: =IF(ISBLANK('H8 Sch 8 CCA Hist'!E29),0, 'H8 Sch 8 CCA Hist'!G29) -> 890 | M27: 890 | P27: 0 | R27: 890 | S27: 0 | T27: 0 | U27: 0 | V27: 0 | W27: 0 | X27: 0.12 | AA27: 106.8 | AB27: 783.2 | AC27: T8
B28: =IF(ISBLANK('H8 Sch 8 CCA Hist'!C30), "", 'H8 Sch 8 CCA Hist'!C30) -> 43.1 | C28: =IF(ISBLANK('H8 Sch 8 CCA Hist'!D30), "", 'H8 Sch 8 CCA Hist'!D30) -> Certain Clean Energy/Energy-Efficient Generation Equipment | D28: H8 | E28: =IF(ISBLANK('H8 Sch 8 CCA Hist'!E30),0, 'H8 Sch 8 CCA Hist'!G30) -> 0 | M28: 0 | P28: 0 | R28: 0 | S28: 0 | T28: 0 | U28: 1.5 | V28: 0 | W28: 0 | X28: 0.3 | AA28: 0 | AB28: 0 | AC28: T8
B29: =IF(ISBLANK('H8 Sch 8 CCA Hist'!C31), "", 'H8 Sch 8 CCA Hist'!C31) -> 43.2 | C29: =IF(ISBLANK('H8 Sch 8 CCA Hist'!D31), "", 'H8 Sch 8 CCA Hist'!D31) -> Certain Clean Energy/Energy-Efficient Generation Equipment | D29: H8 | E29: =IF(ISBLANK('H8 Sch 8 CCA Hist'!E31),0, 'H8 Sch 8 CCA Hist'!G31) -> 290 | M29: 290 | P29: 0 | R29: 290 | S29: 0 | T29: 0 | U29: 0.5 | V29: 0 | W29: 0 | X29: 0.5 | AA29: 145 | AB29: 145 | AC29: T8
B30: =IF(ISBLANK('H8 Sch 8 CCA Hist'!C32), "", 'H8 Sch 8 CCA Hist'!C32) -> 45 | C30: =IF(ISBLANK('H8 Sch 8 CCA Hist'!D32), "", 'H8 Sch 8 CCA Hist'!D32) -> Computers & System Software (acq'd post Mar 22/04 and pre Mar 19/07) | D30: H8 | E30: =IF(ISBLANK('H8 Sch 8 CCA Hist'!E32),0, 'H8 Sch 8 CCA Hist'!G32) -> 12 | M30: 12 | P30: 0 | R30: 12 | S30: 0 | T30: 0 | V30: 0 | W30: 0 | X30: 0.45 | AA30: 5.4 | AB30: 6.6 | AC30: T8
B31: =IF(ISBLANK('H8 Sch 8 CCA Hist'!C33), "", 'H8 Sch 8 CCA Hist'!C33) -> 46 | C31: =IF(ISBLANK('H8 Sch 8 CCA Hist'!D33), "", 'H8 Sch 8 CCA Hist'!D33) -> Data Network Infrastructure Equipment (acq'd post Mar 22/04) | D31: H8 | E31: =IF(ISBLANK('H8 Sch 8 CCA Hist'!E33),0, 'H8 Sch 8 CCA Hist'!G33) -> 2156850 | M31: 2156850 | P31: 0 | R31: 2156850 | S31: 0 | T31: 0 | U31: 0 | V31: 0 | W31: 0 | X31: 0.3 | AA31: 647055 | AB31: 1509795 | AC31: T8
B32: =IF(ISBLANK('H8 Sch 8 CCA Hist'!C34), "", 'H8 Sch 8 CCA Hist'!C34) -> 47 | C32: =IF(ISBLANK('H8 Sch 8 CCA Hist'!D34), "", 'H8 Sch 8 CCA Hist'!D34) -> Distribution System (acq'd post Feb 22/05) | D32: H8 | E32: =IF(ISBLANK('H8 Sch 8 CCA Hist'!E34),0, 'H8 Sch 8 CCA Hist'!G34) -> 278455167 | F32: 43891267 | K32: 298910 | M32: 322047524 | P32: 43891267 | Q32: 44201907 | R32: 322047524 | S32: 609550 | T32: 43592357 | U32: 0 | V32: 0 | W32: 0 | X32: 0.08 | AA32: 25763801.92 | AB32: 296283722.1 | AC32: T8
B33: =IF(ISBLANK('H8 Sch 8 CCA Hist'!C35), "", 'H8 Sch 8 CCA Hist'!C35) -> 50 | C33: =IF(ISBLANK('H8 Sch 8 CCA Hist'!D35), "", 'H8 Sch 8 CCA Hist'!D35) -> General Purpose Computer Hardware & Software (acq'd post Mar 18/07) | D33: H8 | E33: =IF(ISBLANK('H8 Sch 8 CCA Hist'!E35),0, 'H8 Sch 8 CCA Hist'!G35) -> 1187912 | F33: 2203429 | M33: 3391341 | P33: 2203429 | Q33: 2209200 | R33: 3391341 | S33: 5771 | T33: 2203429 | U33: 0 | V33: 0 | W33: 0 | X33: 0.55 | AA33: 1865237.55 | AB33: 1526103.45 | AC33: T8
B34: =IF(ISBLANK('H8 Sch 8 CCA Hist'!C36), "", 'H8 Sch 8 CCA Hist'!C36) -> 95 | C34: =IF(ISBLANK('H8 Sch 8 CCA Hist'!D36), "", 'H8 Sch 8 CCA Hist'!D36) -> CWIP | D34: H8 | E34: =IF(ISBLANK('H8 Sch 8 CCA Hist'!E36),0, 'H8 Sch 8 CCA Hist'!G36) -> 49645617 | H34: 6785228 | M34: 56430845 | P34: 0 | R34: 56430845 | S34: 0 | T34: 0 | U34: 0 | V34: 0 | W34: 0 | X34: 0 | AA34: 0 | AB34: 56430845 | AC34: T8
B35: =IF(ISBLANK('H8 Sch 8 CCA Hist'!C37), "", 'H8 Sch 8 CCA Hist'!C37) ->  | C35: =IF(ISBLANK('H8 Sch 8 CCA Hist'!D37), "", 'H8 Sch 8 CCA Hist'!D37) ->  | D35: H8 | E35: =IF(ISBLANK('H8 Sch 8 CCA Hist'!E37),0, 'H8 Sch 8 CCA Hist'!G37) -> 0 | M35: 0 | P35: 0 | R35: 0 | S35: 0 | T35: 0 | V35: 0 | W35: 0 | AA35: 0 | AB35: 0 | AC35: T8
B36: =IF(ISBLANK('H8 Sch 8 CCA Hist'!C38), "", 'H8 Sch 8 CCA Hist'!C38) ->  | C36: =IF(ISBLANK('H8 Sch 8 CCA Hist'!D38), "", 'H8 Sch 8 CCA Hist'!D38) ->  | D36: H8 | E36: =IF(ISBLANK('H8 Sch 8 CCA Hist'!E38),0, 'H8 Sch 8 CCA Hist'!G38) -> 0 | M36: 0 | P36: 0 | R36: 0 | S36: 0 | T36: 0 | V36: 0 | W36: 0 | AA36: 0 | AB36: 0 | AC36: T8
B37: =IF(ISBLANK('H8 Sch 8 CCA Hist'!C39), "", 'H8 Sch 8 CCA Hist'!C39) ->  | C37: =IF(ISBLANK('H8 Sch 8 CCA Hist'!D39), "", 'H8 Sch 8 CCA Hist'!D39) ->  | D37: H8 | E37: =IF(ISBLANK('H8 Sch 8 CCA Hist'!E39),0, 'H8 Sch 8 CCA Hist'!G39) -> 0 | M37: 0 | P37: 0 | R37: 0 | S37: 0 | T37: 0 | V37: 0 | W37: 0 | AA37: 0 | AB37: 0 | AC37: T8
B38: =IF(ISBLANK('H8 Sch 8 CCA Hist'!C40), "", 'H8 Sch 8 CCA Hist'!C40) ->  | C38: =IF(ISBLANK('H8 Sch 8 CCA Hist'!D40), "", 'H8 Sch 8 CCA Hist'!D40) ->  | D38: H8 | E38: =IF(ISBLANK('H8 Sch 8 CCA Hist'!E40),0, 'H8 Sch 8 CCA Hist'!G40) -> 0 | M38: 0 | P38: 0 | R38: 0 | S38: 0 | T38: 0 | V38: 0 | W38: 0 | AA38: 0 | AB38: 0 | AC38: T8
B39: =IF(ISBLANK('H8 Sch 8 CCA Hist'!C41), "", 'H8 Sch 8 CCA Hist'!C41) ->  | C39: =IF(ISBLANK('H8 Sch 8 CCA Hist'!D41), "", 'H8 Sch 8 CCA Hist'!D41) ->  | D39: H8 | E39: =IF(ISBLANK('H8 Sch 8 CCA Hist'!E41),0, 'H8 Sch 8 CCA Hist'!G41) -> 0 | M39: 0 | P39: 0 | R39: 0 | S39: 0 | T39: 0 | V39: 0 | W39: 0 | AA39: 0 | AB39: 0 | AC39: T8
B40: =IF(ISBLANK('H8 Sch 8 CCA Hist'!C42), "", 'H8 Sch 8 CCA Hist'!C42) ->  | C40: =IF(ISBLANK('H8 Sch 8 CCA Hist'!D42), "", 'H8 Sch 8 CCA Hist'!D42) ->  | D40: H8 | E40: =IF(ISBLANK('H8 Sch 8 CCA Hist'!E42),0, 'H8 Sch 8 CCA Hist'!G42) -> 0 | M40: 0 | P40: 0 | R40: 0 | S40: 0 | T40: 0 | V40: 0 | W40: 0 | AA40: 0 | AB40: 0 | AC40: T8
B41: =IF(ISBLANK('H8 Sch 8 CCA Hist'!C43), "", 'H8 Sch 8 CCA Hist'!C43) ->  | C41: =IF(ISBLANK('H8 Sch 8 CCA Hist'!D43), "", 'H8 Sch 8 CCA Hist'!D43) ->  | D41: H8 | E41: =IF(ISBLANK('H8 Sch 8 CCA Hist'!E43),0, 'H8 Sch 8 CCA Hist'!G43) -> 0 | M41: 0 | P41: 0 | R41: 0 | S41: 0 | T41: 0 | V41: 0 | W41: 0 | AA41: 0 | AB41: =IF(M41<0,0,M41-Z41-AA41) -> 0 | AC41: T8
B42: =IF(ISBLANK('H8 Sch 8 CCA Hist'!C44), "", 'H8 Sch 8 CCA Hist'!C44) ->  | C42: =IF(ISBLANK('H8 Sch 8 CCA Hist'!D44), "", 'H8 Sch 8 CCA Hist'!D44) ->  | D42: H8 | E42: =IF(ISBLANK('H8 Sch 8 CCA Hist'!E44),0, 'H8 Sch 8 CCA Hist'!G44) -> 0 | M42: 0 | P42: 0 | R42: 0 | S42: 0 | T42: 0 | V42: 0 | W42: 0 | AA42: 0 | AB42: 0 | AC42: T8
C43: TOTALS | E43: =SUM(E10:E42) -> 448406609 | F43: =SUM(F10:F42) -> 66281504 | G43: =SUM(G10:G42) -> 0 | H43: 6785228 | I43: 0 | J43: 0 | K43: 343386 | L43: =SUM(L10:L42) -> 0 | M43: =SUM(M10:M42) -> 521129955 | N43: =SUM(N10:N42) -> 0 | P43: 66281504 | Q43: 66386132 | R43: =SUM(R10:R42) -> 521129955 | S43: =SUM(S10:S42) -> 720876 | T43: =SUM(T10:T42) -> 65665256 | V43: =SUM(V10:V42) -> 0 | W43: =SUM(W10:W42) -> 0 | Y43: =SUM(Y10:Y42) -> 0 | Z43: 0 | AA43: 36647508.69 | AB43: 484482446.3 | AC43: B1
B45: For additional details and guidance on calculating amounts in Schedule 8, refer to the notes to the Canada Revenue Agency published Schedule 8 - Capital Cost Allowance (CCA) (2018 and later tax years):
B46: https://www.canada.ca/content/dam/cra-arc/formspubs/pbg/t2sch8/t2sch8-19e.pdf
B50: 1. Please note that Subsection 1100(2) of the Income Tax Regulations provide undepreciated capital cost adjustment factors of eligible zero-emission vehicles and equipment under Class 53, Class 54, Class 55 and Class 56,
B51: please assess the applicability of these adjustments and incorporate them in the PILs model as applicable.

Sheet B13 Sch 13 Reserves Bridge
C7: Schedule 13 Tax Reserves - Bridge Year
C9: Continuity of Reserves
I10: Bridge Year Adjustments
C11: Description | D11: Reference | E11: Historical Utility Only | F11: Eliminate Amounts Not Relevant for Bridge Year | G11: Adjusted Utility Balance | I11: Additions | J11: Disposals | K11: Balance for Bridge Year | M11: Change During the Year | N11: Disallowed Expenses
C13: Capital gains reserves ss.40(1) | D13: H13 | E13: ='H13 Sch 13 Reserves Hist'!F15 -> 0 | G13: =SUM(E13:F13) -> 0 | K13: =G13+I13-J13 -> 0 | L13: T13 | M13: =+K13-G13 -> 0
C14: Tax Reserves Not Deducted for Accounting Purposes
C15: Reserve for doubtful accounts ss. 20(1)(l) | D15: H13 | E15: ='H13 Sch 13 Reserves Hist'!F17 -> 0 | G15: =SUM(E15:F15) -> 0 | K15: =G15+I15-J15 -> 0 | L15: T13 | M15: =+K15-G15 -> 0
C16: Reserve for goods and services not delivered ss. 20(1)(m) | D16: H13 | E16: ='H13 Sch 13 Reserves Hist'!F18 -> 0 | G16: 0 | K16: 0 | L16: T13 | M16: 0
C17: Reserve for unpaid amounts ss. 20(1)(n) | D17: H13 | E17: ='H13 Sch 13 Reserves Hist'!F19 -> 0 | G17: 0 | K17: 0 | L17: T13 | M17: 0
C18: Debt & share issue expenses ss. 20(1)(e) | D18: H13 | E18: ='H13 Sch 13 Reserves Hist'!F20 -> 0 | G18: 0 | K18: 0 | L18: T13 | M18: 0
C19: Other tax reserves | D19: H13 | E19: ='H13 Sch 13 Reserves Hist'!F21 -> 0 | G19: 0 | K19: 0 | L19: T13 | M19: 0
E20: ='H13 Sch 13 Reserves Hist'!F25 -> 0 | G20: 0 | K20: 0 | M20: 0
E21: ='H13 Sch 13 Reserves Hist'!F26 -> 0 | G21: 0 | K21: 0 | M21: 0
C22: Total | E22: =SUM(E15:E21) -> 0 | F22: 0 | G22: 0 | H22: B1 | I22: 0 | J22: 0 | K22: 0 | L22: B1 | M22: 0 | N22: 0
E23: 0
C24: Financial statement reserves (not deductible for tax purposes)
C25: General Reserve for Inventory Obsolescence (non-specific) | D25: H13 | E25: ='H13 Sch 13 Reserves Hist'!F30 -> 0 | G25: =SUM(E25:F25) -> 0 | K25: =G25+I25-J25 -> 0 | L25: T13 | M25: =+K25-G25 -> 0
C26: General Reserve for Bad Debts | D26: H13 | E26: ='H13 Sch 13 Reserves Hist'!F31 -> 0 | G26: 0 | K26: 0 | L26: T13 | M26: 0
C27: Accrued Employee Future Benefits: | D27: H13 | E27: ='H13 Sch 13 Reserves Hist'!F32 -> 0 | G27: 0 | K27: 0 | L27: T13 | M27: 0
C28: - Medical and Life Insurance | D28: H13 | E28: ='H13 Sch 13 Reserves Hist'!F33 -> 0 | G28: 0 | K28: 0 | L28: T13 | M28: 0
C29: - Short & Long-term Disability | D29: H13 | E29: ='H13 Sch 13 Reserves Hist'!F34 -> 0 | G29: 0 | K29: 0 | L29: T13 | M29: 0
C30: - Accumulated Sick Leave | D30: H13 | E30: ='H13 Sch 13 Reserves Hist'!F35 -> 947000 | G30: 947000 | I30: 28410 | K30: 975410 | L30: T13 | M30: 28410
C31: - Termination Cost | D31: H13 | E31: ='H13 Sch 13 Reserves Hist'!F36 -> 0 | G31: 0 | K31: 0 | L31: T13 | M31: 0
C32: - Other Post-Employment Benefits | D32: H13 | E32: ='H13 Sch 13 Reserves Hist'!F37 -> 6528075 | G32: 6528075 | I32: 195842 | K32: 6723917 | L32: T13 | M32: 195842
C33: Provision for Environmental Costs | D33: H13 | E33: ='H13 Sch 13 Reserves Hist'!F38 -> 0 | G33: 0 | K33: 0 | L33: T13 | M33: 0
C34: Restructuring Costs | D34: H13 | E34: ='H13 Sch 13 Reserves Hist'!F39 -> 0 | G34: 0 | K34: 0 | L34: T13 | M34: 0
C35: Accrued Contingent Litigation Costs | D35: H13 | E35: ='H13 Sch 13 Reserves Hist'!F40 -> 0 | G35: 0 | K35: 0 | L35: T13 | M35: 0
C36: Accrued Self-Insurance Costs | D36: H13 | E36: ='H13 Sch 13 Reserves Hist'!F41 -> 0 | G36: 0 | K36: 0 | L36: T13 | M36: 0
C37: Other Contingent Liabilities | D37: H13 | E37: ='H13 Sch 13 Reserves Hist'!F42 -> 0 | G37: 0 | K37: 0 | L37: T13 | M37: 0
C38: Bonuses Accrued and Not Paid Within 180 Days of Year-End ss. 78(4) | D38: H13 | E38: ='H13 Sch 13 Reserves Hist'!F43 -> 0 | G38: 0 | K38: 0 | L38: T13 | M38: 0
C39: Unpaid Amounts to Related Person and Not Paid Within 3 Taxation Years ss. 78(1) | D39: H13 | E39: ='H13 Sch 13 Reserves Hist'!F44 -> 0 | G39: 0 | K39: 0 | L39: T13 | M39: 0
C40: Other | D40: H13 | E40: ='H13 Sch 13 Reserves Hist'!F45 -> 0 | G40: 0 | K40: 0 | L40: T13 | M40: 0
E41: ='H13 Sch 13 Reserves Hist'!F49 -> 0 | G41: =SUM(E41:F41) -> 0 | K41: 0 | M41: =+K41-G41 -> 0
E42: ='H13 Sch 13 Reserves Hist'!F50 -> 0 | G42: =SUM(E42:F42) -> 0 | K42: 0 | M42: =+K42-G42 -> 0
C43: Total | E43: =SUM(E25:E42) -> 7475075 | F43: =SUM(F25:F42) -> 0 | G43: 7475075 | H43: B1 | I43: 224252 | J43: 0 | K43: 7699327 | L43: B1 | M43: 224252 | N43: 0
E44: 0

Sheet T0 2027 PILs,Tax Provision
T1: Rate Base | U1: Federal Tax Rate
T2: 500000 | U2: 0.11
T3: 10000000 | U3: 0.11
T4: =T3+100000 -> 10100000 | U4: 0.11
T5: =T4+100000 -> 10200000 | U5: 0.11
B6: PILs Tax Provision - Test Year | T6: 10300000 | U6: 0.11
T7: 10400000 | U7: 0.11
J8: Wires Only | T8: 10500000 | U8: 0.11
T9: 10600000 | U9: 0.11
C10: Regulatory Taxable Income | I10: T1 | J10: ='T1 2027 Sch 1 Taxable Income'!F123 -> -6352776.223 | K10: A | T10: 10700000 | U10: 0.11
T11: 10800000 | U11: 0.11
D12: Tax Rate | E12: Small Business Rate (If Applicable) | F12: Taxes Payable | G12: Effective Tax Rate
C13: Ontario (Max 11.5%) | D13: 0.115 | E13: =IF(ratebase<=10000000, ontario_SB, IF(ratebase>=50000000, ontariotax, IF(AND(ratebase>10000000, ratebase<50000000), ontario_SB+ (ratebase - 10000000)*(ontariotax - ontario_SB)/(50000000-10000000)))) -> 0.115 | F13: =IF(J10<500000,J10,500000)*E13+IF(J10>500000,J10-500000,0)*D13 -> -730569.2657 | G13: =IF(F13=0,0,+F13/J10) -> 0.115 | H13: B
C14: Federal (Max 15%) | D14: 0.15 | E14: =IF(ratebase<=10000000, Fed_SB_Test, IF(ratebase>=50000000, FedTax, IF(AND(ratebase>10000000, ratebase<50000000), Fed_SB_Test+ (ratebase - 10000000)*(FedTax -Fed_SB_Test)/(50000000-10000000)))) -> 0.15 | F14: =E14*IF(J10<500000,J10,500000)+IF(J10>500000,J10-500000,0)*D14 -> -952916.4335 | G14: =IF(F14=0,0,+F14/J10) -> 0.15 | H14: C
C16: Combined effective tax rate (Max 26.5%) | J16: =SUM(G13:G14) -> 0.265 | K16: D = B + C | T16: =#REF!+100000 ->  | U16: =#REF!+0.112% -> 
U17: =U16+0.112% -> 
C19: Total Income Taxes | J19: =IF(J10*J16<0,0,J10*J16) -> 0 | K19: E = A * D
U20: =U19+0.102% -> 
C21: Investment Tax Credits | K21: F | U21: =U20+0.102% -> 
C22: Miscellaneous Tax Credits | K22: G | U22: =U21+0.102% -> 
C23: Total Tax Credits | J23: =SUM(J21:J22) -> 0 | K23: H = F + G | U23: =U22+0.102% -> 
U24: =U23+0.102% -> 
C25: Corporate PILs/Income Tax Provision for Test Year | J25: =IF(J19-J23<0,0,J19-J23) -> 0 | K25: I = E - H | L25: S. Summary | U25: =U24+0.096% -> 
U26: =U25+0.096% -> 
C27: Corporate PILs/Income Tax Provision Gross Up 1 | H27: =(1-J16) -> 0.735 | I27: J = 1-D | J27: =J25/H27-J25 -> 0 | K27: K = I/J-I | U27: =U26+0.096% -> 
U28: =U27+0.096% -> 
U29: =U28+0.096% -> 
C30: Income Tax (grossed-up) | J30: =J25+J27 -> 0 | K30: L = K + I | L30: S. Summary | U30: =U29+0.088% -> 
U31: =U30+0.088% -> 
U32: =U31+0.088% -> 
C33: Note: | U33: =U32+0.088% -> 
C34: 1. This is for the derivation of revenue requirement and should not be used for sufficiency/deficiency calculations. | U34: =U33+0.088% -> 
U35: =U34+0.082% -> 
U36: =U35+0.082% -> 
U37: =U36+0.082% -> 
U38: =U37+0.082% -> 
U39: =U38+0.082% -> 
U40: =U39+0.076% -> 
U41: =U40+0.076% -> 
U42: =U41+0.076% -> 
U43: =U42+0.076% -> 
U44: 0.15

Sheet T1 2027 Sch 1 Taxable Income
C10: Taxable Income - Test Year
E11: Working Paper Reference | F11: Test Year Taxable Income
C12: Net Income Before Taxes | E12: A. | F12: ='A. Data Input Sheet'!G18 -> 22494443.72
D14: T2 S1 line #
C15: Additions:
C16: Interest and penalties on taxes | D16: 103
C17: Amortization of tangible assets 2-4 ADJUSTED ACCOUNTING DATA P489 | D17: 104 | F17: 25776215
C18: Amortization of intangible assets 2-4 ADJUSTED ACCOUNTING DATA P490 | D18: 106
C19: Recapture of capital cost allowance from Schedule 8 | D19: 107 | E19: T8 | F19: ='T8 2027 Sch 8 CCA '!Y43 -> 0
C20: Income inclusion under subparagraph 13(38)(d)(iii) from Schedule 10 | D20: 108
C21: Income or loss for tax purposes- joint ventures or partnerships | D21: 109
C22: Loss in equity of subsidiaries and affiliates | D22: 110
C23: Loss on disposal of assets | D23: 111
C24: Charitable donations | D24: 112
C25: Taxable Capital Gains | D25: 113
C26: Political Donations | D26: 114
C27: Deferred and prepaid expenses | D27: 116
C28: Scientific research expenditures deducted on financial statements | D28: 118 | F28: 1171333
C29: Capitalized interest | D29: 119
C30: Non-deductible club dues and fees | D30: 120 | F30: 50511
C31: Non-deductible meals and entertainment expense | D31: 121 | F31: 83667
C32: Non-deductible automobile expenses | D32: 122
C33: Non-deductible life insurance premiums | D33: 123
C34: Non-deductible company pension plans | D34: 124
C35: Tax reserves beginning of year | D35: 125 | E35: T13 | F35: ='T13 2027 Sch 13 Reserves'!G22 -> 0
C36: Reserves from financial statements- balance at end of year | D36: 126 | E36: T13 | F36: ='T13 2027 Sch 13 Reserves'!K43 -> 7930307
C37: Soft costs on construction and renovation of buildings | D37: 127
C38: Book loss on joint ventures or partnerships | D38: 205
C39: Capital items expensed | D39: 206
C40: Debt issue expense | D40: 208
C41: Development expenses claimed in current year | D41: 212
C42: Financing fees deducted in books | D42: 216
C43: Gain on settlement of debt | D43: 220
C44: Non-deductible advertising | D44: 226
C45: Non-deductible interest | D45: 227
C46: Non-deductible legal and accounting fees | D46: 228
C47: Recapture of SR&ED expenditures | D47: 231
C48: Share issue expense | D48: 235
C49: Write down of capital property | D49: 236
C50: Amounts received in respect of qualifying environment trust per paragraphs 12(1)(z.1) and 12(1)(z.2) | D50: 237
C51: Other Additions
C52: Interest Expensed on Capital Leases | D52: 295 | F52: 890
C53: Realized Income from Deferred Credit Accounts | D53: 295
C54: Pensions | D54: 295
C55: Non-deductible penalties | D55: 295
D56: 295
D57: 295
D58: 295
D59: 295
C60: ARO Accretion expense
C61: Capital Contributions Received (ITA 12(1)(x)) | F61: 50747031
C62: Lease Inducements Received (ITA 12(1)(x))
C63: Deferred Revenue (ITA 12(1)(a))
C64: Prior Year Investment Tax Credits received
C65: Vehicle amortization | F65: 588187
C66: Other amortization-Renewables not included in Depreciation | F66: 56226
C67: Unrealized loss on interest rate swap
C68: Co-op education credit-prior year | F68: 3000
C69: Golf tournament expenses | F69: 29273
C75: Total Additions | F75: =SUM(F16:F74) -> 86436640
C76: Deductions:
C77: Gain on disposal of assets per financial statements | D77: 401 | F77: 44476
C78: Dividends not taxable under section 83 | D78: 402
C79: Capital cost allowance from Schedule 8 | D79: 403 | E79: T8 | F79: ='T8 2027 Sch 8 CCA '!AA43 -> 40321351.95
C80: Terminal loss from Schedule 8 | D80: 404 | E80: T8 | F80: ='T8 2027 Sch 8 CCA '!Z43 -> 0
C81: Allowable business investment loss | D81: 406
C82: Deferred and prepaid expenses | D82: 409
C83: Scientific research expenses claimed in year | D83: 411 | F83: 1662291
C84: Tax reserves end of year | D84: 413 | E84: T13 | F84: ='T13 2027 Sch 13 Reserves'!K22 -> 0
C85: Reserves from financial statements - balance at beginning of year | D85: 414 | E85: T13 | F85: ='T13 2027 Sch 13 Reserves'!G43 -> 7699327
C86: Contributions to deferred income plans | D86: 416
C87: Book income of joint venture or partnership | D87: 305
C88: Equity in income from subsidiary or affiliates | D88: 306
C89: Other deductions
C90: Interest capitalized for accounting deducted for tax | D90: 395 | F90: 2437245
C91: Capital Lease Payments | D91: 395 | F91: 44234
C92: Non-taxable imputed interest income on deferral and variance accounts | D92: 395
C93: Pensions contributions capitalized for accounting | D93: 395 | F93: 1250969
C94: Current period employee benefit cost capitalized for accounting | D94: 395 | F94: 44229
C95: Current period sick leave cost capitalized for accounting | D95: 395 | F95: 8779
C96: Proceeds on sales recorded for accounting | D96: 395 | F96: 298910
C97: Deferred Revenue ICM | D97: 395 | F97: 79620
C98: Reglatory assets(Deferred Variances)-increase | D98: 395 | F98: 10645397
C99: ARO Payments - Deductible for Tax when Paid
C100: ITA 13(7.4) Election - Capital Contributions Received | F100: 50747031
C101: ITA 13(7.4) Election - Apply Lease Inducement to cost of Leaseholds
C102: Deferred Revenue - ITA 20(1)(m) reserve
C103: Principal portion of lease payments
C104: Lease Inducement Book Amortization credit to income
C105: Financing fees for tax ITA 20(1)(e) and (e.1)
C113: Total Deductions | E113: calculated | F113: =SUM(F77:F112) -> 115283859.9
C115: NET INCOME FOR TAX PURPOSES | E115: calculated | F115: =SUM(F12,F75)-F113 -> -6352776.223
C117: Charitable donations | D117: 311
C118: Taxable dividends received under section 112 or 113 | D118: 320 | E118: T4 | F118: ='T4 2027 Sch 4 Loss Cfwd'!I15 -> 0
C119: Non-capital losses of previous tax years from Schedule 4 | D119: 331 | E119: T4 | F119: ='T4 2027 Sch 4 Loss Cfwd'!I25 -> 0
C120: Net capital losses of previous tax years from Schedule 4 | D120: 332
C121: Limited partnership losses of previous tax years from Schedule 4 | D121: 335
C123: REGULATORY TAXABLE INCOME | E123: calculated | F123: =IF(F115<0,F115,F115-SUM(F117:F121)) -> -6352776.223 | G123: T0

Sheet T4 2027 Sch 4 Loss Cfwd
C7: Schedule 4 Loss Carry Forward - Test Year
C9: Corporation Loss Continuity and Application
C11: Non-Capital Loss Carry Forward Deduction | F11: Working Paper Reference | G11: Total | H11: Non-Distribution Portion | I11: Utility Balance
C12: Actual/Estimated Bridge Year Carried Forward | F12: B4 | G12: ='B4 Sch 4 Loss Cfwd Bridge'!G16 -> 17068632.69 | I12: =G12-H12 -> 17068632.69
C13: Amount to be used in Test Year and Price Cap Years | F13: T1 | G13: =IF('T1 2027 Sch 1 Taxable Income'!F115<0,0,IF('T1 2027 Sch 1 Taxable Income'!F115>G12,G12,'T1 2027 Sch 1 Taxable Income'!F115)) -> 0 | I13: =G13-H13 -> 0
C14: Number of years loss until next cost of service (i.e. years the loss is to be spread over)
C15: Amount to be used in Test Year | F15: calculated | G15: =IF(ISERROR(G13/G14),G13,G13/G14) -> 0 | I15: =G15-H15 -> 0
C16: Loss Carry Forward Generated in Test Year (if any) | F16: T1 | G16: =IF('T1 2027 Sch 1 Taxable Income'!F115<0,'T1 2027 Sch 1 Taxable Income'!F115*-1,0) -> 6352776.223 | I16: =G16-H16 -> 6352776.223
C17: Other Adjustments | I17: =G17-H17 -> 0
C18: Balance available for use in Future Years | F18: calculated | G18: =G12-G13+G16+G17 -> 23421408.91 | H18: =H12-H13+H16+H17 -> 0 | I18: =G18-H18 -> 23421408.91
C21: Net Capital Loss Carry Forward Deduction | G21: Total | H21: Non-Distribution Portion | I21: Utility Balance
C22: Actual/Estimated Bridge Year Carried Forward | F22: B4 | G22: ='B4 Sch 4 Loss Cfwd Bridge'!G23 -> 0 | I22: =G22-H22 -> 0
C23: Amount to be used in Test Year and Price Cap Years | I23: =G23-H23 -> 0
C24: Number of years loss until next cost of service (i.e. years the loss is to be spread over)
C25: Amount to be used in Test Year | F25: T1 | G25: =IF(ISERROR(G23/G24),G23,G23/G24) -> 0 | I25: =G25-H25 -> 0
C26: Loss Carry Forward Generated in Test Year (if any) | I26: =G26-H26 -> 0
C27: Other Adjustments | I27: =G27-H27 -> 0
C28: Balance available for use in Future Years | G28: =G22-G23+G26+G27 -> 0 | I28: =G28-H28 -> 0

Sheet T8 2027 Sch 8 CCA
B7: Schedule 8 CCA - Test Year
B9: (1) Class | C9: Class Description | D9: Working Paper Reference | E9: (2) Undepreciated capital cost (UCC) at the beginning of the test year | F9: (3) Cost of acquisitions during the year (new property must be available for use, except CWIP) | G9: (4) Cost of acquisitions from column 3 that are designated immediate expensing property (DIEP) | H9: (5) Adjustments and transfers (enter amounts that will reduce the UCC as negatives) | I9: (6) Amount from column 5 that is assistance received or receivable during the year for a property, subsequent to its disposition | J9: (7) Amount from column 5 that is repaid during the year for a property, subsequent to its disposition | K9: (8) Proceeds of dispositions | L9: (9) Proceeds of dispositions of the DIEP (enter amount from column 8 that relates to the DIEP reported in column 4) | M9: (10) UCC (column 2 plus column 3 plus or minus column 5 minus column 8) | N9: (11) UCC of the DIEP (enter the UCC amount that relates to the DIEP reported in column 4) | O9: (12) Immediate expensing | P9: (13) Cost of acquisitions on remainder of Class (column 3 minus column 4 plus column 11 minus column 12) | Q9: (14) Cost of acquisitions from column 13 that are accelerated investment incentive properties (AIIP) or properties included in Classes 54 to 56 | R9: (15) Remaining UCC (column 10 minus column 12) (if negative, enter "0") | S9: (16) Proceeds of disposition available to reduce the UCC of AIIP and property included in Classes 54 to 56 (column 8 minus column 9 plus column 6 minus column 13 plus column 14 minus column 7) (if negative, enter "0") | T9: (17) Net capital cost additions of AIIP and property included in Classes 54 to 56 acquired during the year (column 14 minus column 16) (if negative, enter "0") | U9: Relevant factor1 | V9: (18) UCC adjustment for AIIP and property included in Classes 54 to 56 acquired during the year (column 17 multiplied by the relevant factor) | W9: (19) UCC adjustment for non-AIIP and property included in Classes 54 to 56 (0.5 multiplied by the result of column 13 minus column 14 minus column 6 plus column 7 minus column 8 plus column 9) (if negative, enter "0") | X9: (20) CCA Rate % | Y9: (21) Recapture of CCA | Z9: (22) Terminal Loss | AA9: (23) CCA (for declining balance method, the result of column 15 plus column 18 minus column 19, multiplied by column 20 or a lower amount, plus column 12)) | AB9: (24) UCC at the end of the test year (column 10 minus column 23)
B10: =IF(ISBLANK('B8 Sch 8 CCA Bridge'!B10), "", 'B8 Sch 8 CCA Bridge'!B10) -> 1 | C10: =IF(ISBLANK('B8 Sch 8 CCA Bridge'!C10), "", 'B8 Sch 8 CCA Bridge'!C10) -> Buildings, Distribution System (acq'd post 1987) | D10: B8 | E10: =IF(ISBLANK('B8 Sch 8 CCA Bridge'!AB10), "", 'B8 Sch 8 CCA Bridge'!AB10) -> 80952288.96 | M10: =IFERROR(E10+F10+H10-K10,0) -> 80952288.96 | P10: =+F10-G10+N10-O10 -> 0 | R10: =IF((M10-O10)<0,0,M10-O10) -> 80952288.96 | S10: =IF((K10-L10+I10-P10+Q10-J10)<0,0,(K10-L10+I10-P10+Q10-J10)) -> 0 | T10: =IF((Q10-S10)<0,0,(Q10-S10)) -> 0 | U10: 0 | V10: =T10*U10 -> 0 | W10: =IF((0.5*(P10-Q10-I10+J10-K10+L10))<0,0,(0.5*(P10-Q10-I10+J10-K10+L10))) -> 0 | X10: 0.04 | AA10: =IF(OR(R10<=0,Z10>0),0,(R10+V10-W10)*X10) -> 3238091.558 | AB10: =IF(M10<0,0,M10-Z10-AA10) -> 77714197.4
B11: =IF(ISBLANK('B8 Sch 8 CCA Bridge'!B11), "", 'B8 Sch 8 CCA Bridge'!B11) -> 1b | C11: =IF(ISBLANK('B8 Sch 8 CCA Bridge'!C11), "", 'B8 Sch 8 CCA Bridge'!C11) -> Non-Residential Buildings [Reg. 1100(1)(a.1) election] | D11: B8 | E11: =IF(ISBLANK('B8 Sch 8 CCA Bridge'!AB11), "", 'B8 Sch 8 CCA Bridge'!AB11) -> 12935659.6 | F11: 1333800 | M11: =IFERROR(E11+F11+H11-K11,"") -> 14269459.6 | P11: =+F11-G11+N11-O11 -> 1333800 | Q11: 1333800 | R11: =IF((M11-O11)<0,0,M11-O11) -> 14269459.6 | S11: =IF((K11-L11+I11-P11+Q11-J11)<0,0,(K11-L11+I11-P11+Q11-J11)) -> 0 | T11: =IF((Q11-S11)<0,0,(Q11-S11)) -> 1333800 | U11: 0 | V11: =T11*U11 -> 0 | W11: =IF((0.5*(P11-Q11-I11+J11-K11+L11))<0,0,(0.5*(P11-Q11-I11+J11-K11+L11))) -> 0 | X11: 0.06 | AA11: =IF(OR(R11<=0,Z11>0),0,(R11+V11-W11)*X11) -> 856167.576 | AB11: =IF(M11<0,0,M11-Z11-AA11) -> 13413292.02
B12: =IF(ISBLANK('B8 Sch 8 CCA Bridge'!B12), "", 'B8 Sch 8 CCA Bridge'!B12) -> 2 | C12: =IF(ISBLANK('B8 Sch 8 CCA Bridge'!C12), "", 'B8 Sch 8 CCA Bridge'!C12) -> Distribution System (acq'd pre 1988) | D12: B8 | E12: =IF(ISBLANK('B8 Sch 8 CCA Bridge'!AB12), "", 'B8 Sch 8 CCA Bridge'!AB12) -> 2837868.46 | M12: 2837868.46 | P12: 0 | R12: 2837868.46 | S12: 0 | T12: 0 | V12: 0 | W12: 0 | X12: 0.06 | AA12: 170272.1076 | AB12: 2667596.352
B13: =IF(ISBLANK('B8 Sch 8 CCA Bridge'!B13), "", 'B8 Sch 8 CCA Bridge'!B13) -> 3 | C13: =IF(ISBLANK('B8 Sch 8 CCA Bridge'!C13), "", 'B8 Sch 8 CCA Bridge'!C13) -> Buildings (acq'd pre 1988) | D13: B8 | E13: =IF(ISBLANK('B8 Sch 8 CCA Bridge'!AB13), "", 'B8 Sch 8 CCA Bridge'!AB13) -> 0 | M13: 0 | P13: 0 | R13: 0 | S13: 0 | T13: 0 | V13: 0 | W13: 0 | X13: 0.05 | AA13: 0 | AB13: 0
B14: =IF(ISBLANK('B8 Sch 8 CCA Bridge'!B14), "", 'B8 Sch 8 CCA Bridge'!B14) -> 6 | C14: =IF(ISBLANK('B8 Sch 8 CCA Bridge'!C14), "", 'B8 Sch 8 CCA Bridge'!C14) -> Certain Buildings; Fences | D14: B8 | E14: =IF(ISBLANK('B8 Sch 8 CCA Bridge'!AB14), "", 'B8 Sch 8 CCA Bridge'!AB14) -> 0 | M14: 0 | P14: 0 | R14: 0 | S14: 0 | T14: 0 | U14: 0 | V14: 0 | W14: 0 | X14: 0.1 | AA14: 0 | AB14: 0
B15: =IF(ISBLANK('B8 Sch 8 CCA Bridge'!B15), "", 'B8 Sch 8 CCA Bridge'!B15) -> 8 | C15: =IF(ISBLANK('B8 Sch 8 CCA Bridge'!C15), "", 'B8 Sch 8 CCA Bridge'!C15) -> General Office Equipment, Furniture, Fixtures | D15: B8 | E15: =IF(ISBLANK('B8 Sch 8 CCA Bridge'!AB15), "", 'B8 Sch 8 CCA Bridge'!AB15) -> 3151676 | F15: 5515298 | M15: 8666974 | P15: 5515298 | Q15: 5576377 | R15: 8666974 | S15: 61079 | T15: 5515298 | U15: 0 | V15: 0 | W15: 0 | X15: 0.2 | AA15: 1733394.8 | AB15: 6933579.2
B16: =IF(ISBLANK('B8 Sch 8 CCA Bridge'!B16), "", 'B8 Sch 8 CCA Bridge'!B16) -> 10 | C16: =IF(ISBLANK('B8 Sch 8 CCA Bridge'!C16), "", 'B8 Sch 8 CCA Bridge'!C16) -> Motor Vehicles, Fleet | D16: B8 | E16: =IF(ISBLANK('B8 Sch 8 CCA Bridge'!AB16), "", 'B8 Sch 8 CCA Bridge'!AB16) -> 3598624.4 | F16: 3967800 | K16: 44476 | M16: 7521948.4 | P16: 3967800 | Q16: 3967800 | R16: 7521948.4 | S16: 44476 | T16: 3923324 | U16: 0 | V16: 0 | W16: 0 | X16: 0.3 | AA16: =IF(OR(R16<=0,Z16>0),0,(R16+V16-W16)*X16) -> 2256584.52 | AB16: 5265363.88
B17: =IF(ISBLANK('B8 Sch 8 CCA Bridge'!B17), "", 'B8 Sch 8 CCA Bridge'!B17) -> 10.1 | C17: =IF(ISBLANK('B8 Sch 8 CCA Bridge'!C17), "", 'B8 Sch 8 CCA Bridge'!C17) -> Certain Automobiles | D17: B8 | E17: =IF(ISBLANK('B8 Sch 8 CCA Bridge'!AB17), "", 'B8 Sch 8 CCA Bridge'!AB17) -> 261.8 | M17: 261.8 | P17: 0 | R17: 261.8 | S17: 0 | T17: 0 | U17: 0 | V17: 0 | W17: 0 | X17: 0.3 | AA17: 78.54 | AB17: 183.26
B18: =IF(ISBLANK('B8 Sch 8 CCA Bridge'!B18), "", 'B8 Sch 8 CCA Bridge'!B18) -> 12 | C18: =IF(ISBLANK('B8 Sch 8 CCA Bridge'!C18), "", 'B8 Sch 8 CCA Bridge'!C18) -> Computer Application Software (Non-Systems) | D18: B8 | E18: =IF(ISBLANK('B8 Sch 8 CCA Bridge'!AB18), "", 'B8 Sch 8 CCA Bridge'!AB18) -> 0 | F18: 488881 | M18: 488881 | P18: 488881 | R18: 488881 | S18: 0 | T18: 0 | U18: 0 | V18: 0 | W18: =IF(OR((0.5*(P18-Q18-I18+J18-K18+L18))<0,X10<100%),0,(0.5*(P18-Q18-I18+J18-K18+L18))) -> 0 | X18: 1 | AA18: 488881 | AB18: 0
B19: 13 1 | C19: =IF(ISBLANK('B8 Sch 8 CCA Bridge'!C19), "", 'B8 Sch 8 CCA Bridge'!C19) -> Lease # 1 | D19: B8 | E19: =IF(ISBLANK('B8 Sch 8 CCA Bridge'!AB19), "", 'B8 Sch 8 CCA Bridge'!AB19) -> 0 | M19: 0 | P19: 0 | R19: 0 | S19: 0 | T19: 0 | U19: 0 | V19: 0 | W19: 0 | X19: NA | AA19: 0 | AB19: 0
B20: 13 2 | C20: =IF(ISBLANK('B8 Sch 8 CCA Bridge'!C20), "", 'B8 Sch 8 CCA Bridge'!C20) -> Lease # 2 | D20: B8 | E20: =IF(ISBLANK('B8 Sch 8 CCA Bridge'!AB20), "", 'B8 Sch 8 CCA Bridge'!AB20) -> 0 | M20: 0 | P20: 0 | R20: 0 | S20: 0 | T20: 0 | U20: 0 | V20: 0 | W20: 0 | X20: NA | AA20: 0 | AB20: 0
B21: 13 3 | C21: =IF(ISBLANK('B8 Sch 8 CCA Bridge'!C21), "", 'B8 Sch 8 CCA Bridge'!C21) -> Lease # 3 | D21: B8 | E21: =IF(ISBLANK('B8 Sch 8 CCA Bridge'!AB21), "", 'B8 Sch 8 CCA Bridge'!AB21) -> 0 | M21: 0 | P21: 0 | R21: 0 | S21: 0 | T21: 0 | U21: 0 | V21: 0 | W21: 0 | X21: NA | AA21: 0 | AB21: 0
B22: 13 4 | C22: =IF(ISBLANK('B8 Sch 8 CCA Bridge'!C22), "", 'B8 Sch 8 CCA Bridge'!C22) -> Lease # 4 | D22: B8 | E22: =IF(ISBLANK('B8 Sch 8 CCA Bridge'!AB22), "", 'B8 Sch 8 CCA Bridge'!AB22) -> 0 | M22: 0 | P22: 0 | R22: 0 | S22: 0 | T22: 0 | U22: 0 | V22: 0 | W22: 0 | X22: NA | AA22: 0 | AB22: 0
B23: =IF(ISBLANK('B8 Sch 8 CCA Bridge'!B23), "", 'B8 Sch 8 CCA Bridge'!B23) -> 14 | C23: =IF(ISBLANK('B8 Sch 8 CCA Bridge'!C23), "", 'B8 Sch 8 CCA Bridge'!C23) -> Limited Period Patents, Franchises, Concessions or Licences | D23: B8 | E23: =IF(ISBLANK('B8 Sch 8 CCA Bridge'!AB23), "", 'B8 Sch 8 CCA Bridge'!AB23) -> 0 | M23: 0 | P23: 0 | R23: 0 | S23: 0 | T23: 0 | U23: 0 | V23: 0 | W23: 0 | X23: NA | AA23: 0 | AB23: 0
B24: =IF(ISBLANK('B8 Sch 8 CCA Bridge'!B24), "", 'B8 Sch 8 CCA Bridge'!B24) -> 14.1 | C24: Eligible Capital Property (acq'd pre Jan 1, 2017) | D24: B8 | E24: =IF(ISBLANK('B8 Sch 8 CCA Bridge'!AB24), "", 'B8 Sch 8 CCA Bridge'!AB24) -> 2397203.34 | M24: 2397203.34 | P24: 0 | R24: =IF((M24-O24)<0,0,M24-O24) -> 2397203.34 | S24: =IF((K24-L24+I24-P24+Q24-J24)<0,0,(K24-L24+I24-P24+Q24-J24)) -> 0 | T24: 0 | V24: 0 | W24: 0 | X24: 0.07 | AA24: 167804.2338 | AB24: 2229399.106
B25: =IF(ISBLANK('B8 Sch 8 CCA Bridge'!B25), "", 'B8 Sch 8 CCA Bridge'!B25) -> 14.1 | C25: Eligible Capital Property (acq'd post Jan 1, 2017) | D25: B8 | E25: =IF(ISBLANK('B8 Sch 8 CCA Bridge'!AB25), "", 'B8 Sch 8 CCA Bridge'!AB25) -> 22720414.7 | M25: 22720414.7 | P25: 0 | R25: 22720414.7 | S25: 0 | T25: 0 | U25: 0 | V25: 0 | W25: 0 | X25: 0.05 | AA25: 1136020.735 | AB25: 21584393.96
B26: =IF(ISBLANK('B8 Sch 8 CCA Bridge'!B26), "", 'B8 Sch 8 CCA Bridge'!B26) -> 17 | C26: =IF(ISBLANK('B8 Sch 8 CCA Bridge'!C26), "", 'B8 Sch 8 CCA Bridge'!C26) -> Elec. Generation Equip. (Non-Bldng, acq'd post Feb 27/00); Roads, Lots, Storage | D26: B8 | E26: =IF(ISBLANK('B8 Sch 8 CCA Bridge'!AB26), "", 'B8 Sch 8 CCA Bridge'!AB26) -> 137048.72 | M26: 137048.72 | P26: 0 | R26: 137048.72 | S26: 0 | T26: 0 | U26: 0 | V26: 0 | W26: 0 | X26: 0.08 | AA26: 10963.8976 | AB26: 126084.8224
B27: =IF(ISBLANK('B8 Sch 8 CCA Bridge'!B27), "", 'B8 Sch 8 CCA Bridge'!B27) -> 42 | C27: =IF(ISBLANK('B8 Sch 8 CCA Bridge'!C27), "", 'B8 Sch 8 CCA Bridge'!C27) -> Fibre Optic Cable | D27: B8 | E27: =IF(ISBLANK('B8 Sch 8 CCA Bridge'!AB27), "", 'B8 Sch 8 CCA Bridge'!AB27) -> 783.2 | M27: 783.2 | P27: 0 | R27: 783.2 | S27: 0 | T27: 0 | U27: 0 | V27: 0 | W27: 0 | X27: 0.12 | AA27: 93.984 | AB27: 689.216
B28: =IF(ISBLANK('B8 Sch 8 CCA Bridge'!B28), "", 'B8 Sch 8 CCA Bridge'!B28) -> 43.1 | C28: =IF(ISBLANK('B8 Sch 8 CCA Bridge'!C28), "", 'B8 Sch 8 CCA Bridge'!C28) -> Certain Clean Energy/Energy-Efficient Generation Equipment | D28: B8 | E28: =IF(ISBLANK('B8 Sch 8 CCA Bridge'!AB28), "", 'B8 Sch 8 CCA Bridge'!AB28) -> 0 | M28: 0 | P28: 0 | R28: 0 | S28: 0 | T28: 0 | U28: 1.5 | V28: 0 | W28: 0 | X28: 0.3 | AA28: 0 | AB28: 0
B29: =IF(ISBLANK('B8 Sch 8 CCA Bridge'!B29), "", 'B8 Sch 8 CCA Bridge'!B29) -> 43.2 | C29: =IF(ISBLANK('B8 Sch 8 CCA Bridge'!C29), "", 'B8 Sch 8 CCA Bridge'!C29) -> Certain Clean Energy/Energy-Efficient Generation Equipment | D29: B8 | E29: =IF(ISBLANK('B8 Sch 8 CCA Bridge'!AB29), "", 'B8 Sch 8 CCA Bridge'!AB29) -> 145 | M29: 145 | P29: 0 | R29: 145 | S29: 0 | T29: 0 | U29: 0.5 | V29: 0 | W29: 0 | X29: 0.5 | AA29: 72.5 | AB29: 72.5
B30: =IF(ISBLANK('B8 Sch 8 CCA Bridge'!B30), "", 'B8 Sch 8 CCA Bridge'!B30) -> 45 | C30: =IF(ISBLANK('B8 Sch 8 CCA Bridge'!C30), "", 'B8 Sch 8 CCA Bridge'!C30) -> Computers & System Software (acq'd post Mar 22/04 and pre Mar 19/07) | D30: B8 | E30: =IF(ISBLANK('B8 Sch 8 CCA Bridge'!AB30), "", 'B8 Sch 8 CCA Bridge'!AB30) -> 6.6 | M30: 6.6 | P30: 0 | R30: 6.6 | S30: 0 | T30: 0 | V30: 0 | W30: 0 | X30: 0.45 | AA30: 2.97 | AB30: 3.63
B31: =IF(ISBLANK('B8 Sch 8 CCA Bridge'!B31), "", 'B8 Sch 8 CCA Bridge'!B31) -> 46 | C31: =IF(ISBLANK('B8 Sch 8 CCA Bridge'!C31), "", 'B8 Sch 8 CCA Bridge'!C31) -> Data Network Infrastructure Equipment (acq'd post Mar 22/04) | D31: B8 | E31: =IF(ISBLANK('B8 Sch 8 CCA Bridge'!AB31), "", 'B8 Sch 8 CCA Bridge'!AB31) -> 1509795 | M31: 1509795 | P31: 0 | R31: 1509795 | S31: 0 | T31: 0 | U31: 0 | V31: 0 | W31: 0 | X31: 0.3 | AA31: 452938.5 | AB31: 1056856.5
B32: =IF(ISBLANK('B8 Sch 8 CCA Bridge'!B32), "", 'B8 Sch 8 CCA Bridge'!B32) -> 47 | C32: =IF(ISBLANK('B8 Sch 8 CCA Bridge'!C32), "", 'B8 Sch 8 CCA Bridge'!C32) -> Distribution System (acq'd post Feb 22/05) | D32: B8 | E32: =IF(ISBLANK('B8 Sch 8 CCA Bridge'!AB32), "", 'B8 Sch 8 CCA Bridge'!AB32) -> 296283722.1 | F32: 46894602 | K32: 298910 | M32: 342879414.1 | P32: 46894602 | Q32: 47151372 | R32: 342879414.1 | S32: 555680 | T32: 46595692 | U32: 0 | V32: 0 | W32: 0 | X32: 0.08 | AA32: 27430353.13 | AB32: 315449061
B33: =IF(ISBLANK('B8 Sch 8 CCA Bridge'!B33), "", 'B8 Sch 8 CCA Bridge'!B33) -> 50 | C33: =IF(ISBLANK('B8 Sch 8 CCA Bridge'!C33), "", 'B8 Sch 8 CCA Bridge'!C33) -> General Purpose Computer Hardware & Software (acq'd post Mar 18/07) | D33: B8 | E33: =IF(ISBLANK('B8 Sch 8 CCA Bridge'!AB33), "", 'B8 Sch 8 CCA Bridge'!AB33) -> 1526103.45 | F33: 2800500 | M33: 4326603.45 | P33: 2800500 | Q33: 2806271 | R33: 4326603.45 | S33: 5771 | T33: 2800500 | U33: 0 | V33: 0 | W33: 0 | X33: 0.55 | AA33: 2379631.898 | AB33: 1946971.552
B34: =IF(ISBLANK('B8 Sch 8 CCA Bridge'!B34), "", 'B8 Sch 8 CCA Bridge'!B34) -> 95 | C34: =IF(ISBLANK('B8 Sch 8 CCA Bridge'!C34), "", 'B8 Sch 8 CCA Bridge'!C34) -> CWIP | D34: B8 | E34: =IF(ISBLANK('B8 Sch 8 CCA Bridge'!AB34), "", 'B8 Sch 8 CCA Bridge'!AB34) -> 56430845 | H34: 57034562 | M34: 113465407 | P34: 0 | R34: 113465407 | S34: 0 | T34: 0 | U34: 0 | V34: 0 | W34: 0 | X34: 0 | AA34: 0 | AB34: =IF(M34<0,0,M34-Z34-AA34) -> 113465407
B35: =IF(ISBLANK('B8 Sch 8 CCA Bridge'!B35), "", 'B8 Sch 8 CCA Bridge'!B35) ->  | C35: =IF(ISBLANK('B8 Sch 8 CCA Bridge'!C35), "", 'B8 Sch 8 CCA Bridge'!C35) ->  | D35: B8 | E35: =IF(ISBLANK('B8 Sch 8 CCA Bridge'!AB35), "", 'B8 Sch 8 CCA Bridge'!AB35) -> 0 | M35: 0 | P35: 0 | R35: 0 | S35: 0 | T35: 0 | V35: 0 | W35: 0 | AA35: 0 | AB35: 0
B36: =IF(ISBLANK('B8 Sch 8 CCA Bridge'!B36), "", 'B8 Sch 8 CCA Bridge'!B36) ->  | C36: =IF(ISBLANK('B8 Sch 8 CCA Bridge'!C36), "", 'B8 Sch 8 CCA Bridge'!C36) ->  | D36: B8 | E36: =IF(ISBLANK('B8 Sch 8 CCA Bridge'!AB36), "", 'B8 Sch 8 CCA Bridge'!AB36) -> 0 | M36: 0 | P36: 0 | R36: 0 | S36: 0 | T36: 0 | V36: 0 | W36: 0 | AA36: 0 | AB36: 0
B37: =IF(ISBLANK('B8 Sch 8 CCA Bridge'!B37), "", 'B8 Sch 8 CCA Bridge'!B37) ->  | C37: =IF(ISBLANK('B8 Sch 8 CCA Bridge'!C37), "", 'B8 Sch 8 CCA Bridge'!C37) ->  | D37: B8 | E37: =IF(ISBLANK('B8 Sch 8 CCA Bridge'!AB37), "", 'B8 Sch 8 CCA Bridge'!AB37) -> 0 | M37: 0 | P37: 0 | R37: 0 | S37: 0 | T37: 0 | V37: 0 | W37: 0 | AA37: 0 | AB37: 0
B38: =IF(ISBLANK('B8 Sch 8 CCA Bridge'!B38), "", 'B8 Sch 8 CCA Bridge'!B38) ->  | C38: =IF(ISBLANK('B8 Sch 8 CCA Bridge'!C38), "", 'B8 Sch 8 CCA Bridge'!C38) ->  | D38: B8 | E38: =IF(ISBLANK('B8 Sch 8 CCA Bridge'!AB38), "", 'B8 Sch 8 CCA Bridge'!AB38) -> 0 | M38: 0 | P38: 0 | R38: 0 | S38: 0 | T38: 0 | V38: 0 | W38: 0 | AA38: 0 | AB38: 0
B39: =IF(ISBLANK('B8 Sch 8 CCA Bridge'!B39), "", 'B8 Sch 8 CCA Bridge'!B39) ->  | C39: =IF(ISBLANK('B8 Sch 8 CCA Bridge'!C39), "", 'B8 Sch 8 CCA Bridge'!C39) ->  | D39: B8 | E39: =IF(ISBLANK('B8 Sch 8 CCA Bridge'!AB39), "", 'B8 Sch 8 CCA Bridge'!AB39) -> 0 | M39: 0 | P39: 0 | R39: 0 | S39: 0 | T39: 0 | V39: 0 | W39: 0 | AA39: 0 | AB39: 0
B40: =IF(ISBLANK('B8 Sch 8 CCA Bridge'!B40), "", 'B8 Sch 8 CCA Bridge'!B40) ->  | C40: =IF(ISBLANK('B8 Sch 8 CCA Bridge'!C40), "", 'B8 Sch 8 CCA Bridge'!C40) ->  | D40: B8 | E40: =IF(ISBLANK('B8 Sch 8 CCA Bridge'!AB40), "", 'B8 Sch 8 CCA Bridge'!AB40) -> 0 | M40: 0 | P40: 0 | R40: 0 | S40: 0 | T40: 0 | V40: 0 | W40: 0 | AA40: 0 | AB40: 0
B41: =IF(ISBLANK('B8 Sch 8 CCA Bridge'!B41), "", 'B8 Sch 8 CCA Bridge'!B41) ->  | C41: =IF(ISBLANK('B8 Sch 8 CCA Bridge'!C41), "", 'B8 Sch 8 CCA Bridge'!C41) ->  | D41: B8 | E41: =IF(ISBLANK('B8 Sch 8 CCA Bridge'!AB41), "", 'B8 Sch 8 CCA Bridge'!AB41) -> 0 | M41: 0 | P41: 0 | R41: 0 | S41: 0 | T41: 0 | V41: 0 | W41: 0 | AA41: 0 | AB41: =IF(M41<0,0,M41-Z41-AA41) -> 0
B42: =IF(ISBLANK('B8 Sch 8 CCA Bridge'!B42), "", 'B8 Sch 8 CCA Bridge'!B42) ->  | C42: =IF(ISBLANK('B8 Sch 8 CCA Bridge'!C42), "", 'B8 Sch 8 CCA Bridge'!C42) ->  | D42: B8 | E42: =IF(ISBLANK('B8 Sch 8 CCA Bridge'!AB42), "", 'B8 Sch 8 CCA Bridge'!AB42) -> 0 | M42: =IFERROR(E42+F42+H42-K42,"") -> 0 | P42: 0 | R42: 0 | S42: 0 | T42: 0 | V42: 0 | W42: 0 | AA42: 0 | AB42: 0
C43: TOTALS | E43: =SUM(E10:E42) -> 484482446.3 | F43: =SUM(F10:F42) -> 61000881 | G43: =SUM(G10:G42) -> 0 | H43: =SUM(H10:H42) -> 57034562 | I43: =SUM(I10:I42) -> 0 | J43: 0 | K43: =SUM(K10:K42) -> 343386 | L43: =SUM(L10:L42) -> 0 | M43: =SUM(M10:M42) -> 602174503.3 | N43: 0 | O43: 0 | P43: 61000881 | Q43: =SUM(Q10:Q42) -> 60835620 | R43: 602174503.3 | S43: 667006 | T43: 60168614 | V43: =SUM(V10:V42) -> 0 | W43: 0 | Y43: =SUM(Y10:Y42) -> 0 | Z43: =SUM(Z10:Z42) -> 0 | AA43: =SUM(AA10:AA42) -> 40321351.95 | AB43: =SUM(AB10:AB42) -> 561853151.4
B45: For additional details and guidance on calculating amounts in Schedule 8, refer to the notes to the Canada Revenue Agency published Schedule 8 - Capital Cost Allowance (CCA) (2018 and later tax years):
B46: https://www.canada.ca/content/dam/cra-arc/formspubs/pbg/t2sch8/t2sch8-19e.pdf
B50: 1. Please note that Subsection 1100(2) of the Income Tax Regulations provide undepreciated capital cost adjustment factors of eligible zero-emission vehicles and equipment under Class 53, Class 54, Class 55 and Class 56,
B51: please assess the applicability of these adjustments and incorporate them in the PILs model as applicable.

Sheet T13 2027 Sch 13 Reserves
C7: Schedule 13 Tax Reserves - Test Year
C9: Continuity of Reserves
I10: Test Year Adjustments
C11: Description | D11: Working Paper Reference | E11: Bridge Year | F11: Eliminate Amounts Not Relevant for Test Year | G11: Adjusted Utility Balance | I11: Additions | J11: Disposals | K11: Balance for Test Year | M11: Change During the Year | N11: Disallowed Expenses
C13: Capital Gains Reserves ss.40(1) | D13: B13 | E13: ='B13 Sch 13 Reserves Bridge'!K13 -> 0 | G13: =SUM(E13:F13) -> 0 | K13: =G13+I13-J13 -> 0 | M13: =+K13-G13 -> 0
C14: Tax Reserves Not Deducted for accounting purposes
C15: Reserve for doubtful accounts ss. 20(1)(l) | D15: B13 | E15: ='B13 Sch 13 Reserves Bridge'!K15 -> 0 | G15: =SUM(E15:F15) -> 0 | K15: =G15+I15-J15 -> 0 | M15: =+K15-G15 -> 0
C16: Reserve for goods and services not delivered ss. 20(1)(m) | D16: B13 | E16: ='B13 Sch 13 Reserves Bridge'!K16 -> 0 | G16: 0 | K16: 0 | M16: 0
C17: Reserve for unpaid amounts ss. 20(1)(n) | D17: B13 | E17: ='B13 Sch 13 Reserves Bridge'!K17 -> 0 | G17: 0 | K17: 0 | M17: 0
C18: Debt & Share Issue Expenses ss. 20(1)(e) | D18: B13 | E18: ='B13 Sch 13 Reserves Bridge'!K18 -> 0 | G18: 0 | K18: 0 | M18: 0
C19: Other tax reserves | D19: B13 | E19: ='B13 Sch 13 Reserves Bridge'!K19 -> 0 | G19: 0 | K19: 0 | M19: 0
E20: ='B13 Sch 13 Reserves Bridge'!K20 -> 0 | G20: 0 | K20: 0 | M20: 0
E21: ='B13 Sch 13 Reserves Bridge'!K21 -> 0 | G21: 0 | K21: 0 | M21: 0
C22: Total | E22: =SUM(E15:E21) -> 0 | F22: 0 | G22: 0 | H22: T1 | I22: 0 | J22: 0 | K22: 0 | L22: T1 | M22: 0 | N22: =SUM(N15:N21) -> 0
E23: 0
C24: Financial Statement Reserves (not deductible for Tax Purposes)
C25: General Reserve for Inventory Obsolescence (non-specific) | D25: B13 | E25: ='B13 Sch 13 Reserves Bridge'!K25 -> 0 | G25: =SUM(E25:F25) -> 0 | K25: =G25+I25-J25 -> 0 | M25: =+K25-G25 -> 0
C26: General reserve for bad debts | D26: B13 | E26: ='B13 Sch 13 Reserves Bridge'!K26 -> 0 | G26: 0 | K26: 0 | M26: 0
C27: Accrued Employee Future Benefits: | D27: B13 | E27: ='B13 Sch 13 Reserves Bridge'!K27 -> 0 | G27: 0 | K27: 0 | M27: 0
C28: - Medical and Life Insurance | D28: B13 | E28: ='B13 Sch 13 Reserves Bridge'!K28 -> 0 | G28: 0 | K28: 0 | M28: 0
C29: -Short & Long-term Disability | D29: B13 | E29: ='B13 Sch 13 Reserves Bridge'!K29 -> 0 | G29: 0 | K29: 0 | M29: 0
C30: -Accmulated Sick Leave | D30: B13 | E30: ='B13 Sch 13 Reserves Bridge'!K30 -> 975410 | G30: 975410 | I30: 29262 | K30: 1004672 | M30: 29262
C31: - Termination Cost | D31: B13 | E31: ='B13 Sch 13 Reserves Bridge'!K31 -> 0 | G31: 0 | K31: 0 | M31: 0
C32: - Other Post-Employment Benefits | D32: B13 | E32: ='B13 Sch 13 Reserves Bridge'!K32 -> 6723917 | G32: 6723917 | I32: 201718 | K32: 6925635 | M32: 201718
C33: Provision for Environmental Costs | D33: B13 | E33: ='B13 Sch 13 Reserves Bridge'!K33 -> 0 | G33: 0 | K33: 0 | M33: 0
C34: Restructuring Costs | D34: B13 | E34: ='B13 Sch 13 Reserves Bridge'!K34 -> 0 | G34: 0 | K34: 0 | M34: 0
C35: Accrued Contingent Litigation Costs | D35: B13 | E35: ='B13 Sch 13 Reserves Bridge'!K35 -> 0 | G35: 0 | K35: 0 | M35: 0
C36: Accrued Self-Insurance Costs | D36: B13 | E36: ='B13 Sch 13 Reserves Bridge'!K36 -> 0 | G36: 0 | K36: 0 | M36: 0
C37: Other Contingent Liabilities | D37: B13 | E37: ='B13 Sch 13 Reserves Bridge'!K37 -> 0 | G37: 0 | K37: 0 | M37: 0
C38: Bonuses Accrued and Not Paid Within 180 Days of Year-End ss. 78(4) | D38: B13 | E38: ='B13 Sch 13 Reserves Bridge'!K38 -> 0 | G38: 0 | K38: 0 | M38: 0
C39: Unpaid Amounts to Related Person and Not Paid Within 3 Taxation Years ss. 78(1) | D39: B13 | E39: ='B13 Sch 13 Reserves Bridge'!K39 -> 0 | G39: 0 | K39: 0 | M39: 0
C40: Other | D40: B13 | E40: ='B13 Sch 13 Reserves Bridge'!K40 -> 0 | G40: 0 | K40: 0 | M40: 0
E41: ='B13 Sch 13 Reserves Bridge'!K41 -> 0 | G41: 0 | K41: 0 | M41: 0
E42: ='B13 Sch 13 Reserves Bridge'!K42 -> 0 | G42: 0 | K42: 0 | M42: 0
C43: Total | E43: =SUM(E25:E42) -> 7699327 | F43: 0 | G43: 7699327 | H43: T1 | I43: 230980 | J43: 0 | K43: 7930307 | L43: T1 | M43: 230980 | N43: 0
E44: 0

Sheet T0 2028 PILs,Tax Provision
T1: Rate Base | U1: Federal Tax Rate
T2: 500000 | U2: 0.11
T3: 10000000 | U3: 0.11
T4: =T3+100000 -> 10100000 | U4: 0.11
T5: =T4+100000 -> 10200000 | U5: 0.11
B6: PILs Tax Provision - Test Year | T6: 10300000 | U6: 0.11
T7: 10400000 | U7: 0.11
J8: Wires Only | T8: 10500000 | U8: 0.11
T9: 10600000 | U9: 0.11
C10: Regulatory Taxable Income | I10: T1 | J10: ='T1 2028 Sch 1 Taxable Income'!F123 -> 0 | K10: A | T10: 10700000 | U10: 0.11
T11: 10800000 | U11: 0.11
D12: Tax Rate | E12: Small Business Rate (If Applicable) | F12: Taxes Payable | G12: Effective Tax Rate
C13: Ontario (Max 11.5%) | D13: 0.115 | E13: =IF(ratebase<=10000000, ontario_SB, IF(ratebase>=50000000, ontariotax, IF(AND(ratebase>10000000, ratebase<50000000), ontario_SB+ (ratebase - 10000000)*(ontariotax - ontario_SB)/(50000000-10000000)))) -> 0.115 | F13: =IF(J10<500000,J10,500000)*E13+IF(J10>500000,J10-500000,0)*D13 -> 0 | G13: =IF(F13=0,0,+F13/J10) -> 0 | H13: B
C14: Federal (Max 15%) | D14: 0.15 | E14: =IF(ratebase<=10000000, Fed_SB_Test, IF(ratebase>=50000000, FedTax, IF(AND(ratebase>10000000, ratebase<50000000), Fed_SB_Test+ (ratebase - 10000000)*(FedTax -Fed_SB_Test)/(50000000-10000000)))) -> 0.15 | F14: =E14*IF(J10<500000,J10,500000)+IF(J10>500000,J10-500000,0)*D14 -> 0 | G14: =IF(F14=0,0,+F14/J10) -> 0 | H14: C
C16: Combined effective tax rate (Max 26.5%) | J16: =SUM(G13:G14) -> 0 | K16: D = B + C | T16: =#REF!+100000 ->  | U16: =#REF!+0.112% -> 
U17: =U16+0.112% -> 
C19: Total Income Taxes | J19: =J10*J16 -> 0 | K19: E = A * D
U20: =U19+0.102% -> 
C21: Investment Tax Credits | K21: F | U21: =U20+0.102% -> 
C22: Miscellaneous Tax Credits | K22: G | U22: =U21+0.102% -> 
C23: Total Tax Credits | J23: =SUM(J21:J22) -> 0 | K23: H = F + G | U23: =U22+0.102% -> 
U24: =U23+0.102% -> 
C25: Corporate PILs/Income Tax Provision for Test Year | J25: =IF(J19-J23<0,0,J19-J23) -> 0 | K25: I = E - H | L25: S. Summary | U25: =U24+0.096% -> 
U26: =U25+0.096% -> 
C27: Corporate PILs/Income Tax Provision Gross Up 1 | H27: =(1-J16) -> 1 | I27: J = 1-D | J27: =J25/H27-J25 -> 0 | K27: K = I/J-I | U27: =U26+0.096% -> 
U28: =U27+0.096% -> 
U29: =U28+0.096% -> 
C30: Income Tax (grossed-up) | J30: =J25+J27 -> 0 | K30: L = K + I | L30: S. Summary | U30: =U29+0.088% -> 
U31: =U30+0.088% -> 
U32: =U31+0.088% -> 
C33: Note: | U33: =U32+0.088% -> 
C34: 1. This is for the derivation of revenue requirement and should not be used for sufficiency/deficiency calculations. | U34: =U33+0.088% -> 
U35: =U34+0.082% -> 
U36: =U35+0.082% -> 
U37: =U36+0.082% -> 
U38: =U37+0.082% -> 
U39: =U38+0.082% -> 
U40: =U39+0.076% -> 
U41: =U40+0.076% -> 
U42: =U41+0.076% -> 
U43: =U42+0.076% -> 
U44: 0.15

Sheet T1 2028 Sch 1 Taxable Income
C10: Taxable Income - Test Year
E11: Working Paper Reference | F11: Test Year Taxable Income
C12: Net Income Before Taxes | E12: A. | F12: 24905893.82
D14: T2 S1 line #
C15: Additions:
C16: Interest and penalties on taxes | D16: 103
C17: Amortization of tangible assets 2-4 ADJUSTED ACCOUNTING DATA P489 | D17: 104 | F17: 27691891
C18: Amortization of intangible assets 2-4 ADJUSTED ACCOUNTING DATA P490 | D18: 106
C19: Recapture of capital cost allowance from Schedule 8 | D19: 107 | E19: T8 | F19: ='T8 2028 Sch 8 CCA'!Y43 -> 0
C20: Income inclusion under subparagraph 13(38)(d)(iii) from Schedule 10 | D20: 108
C21: Income or loss for tax purposes- joint ventures or partnerships | D21: 109
C22: Loss in equity of subsidiaries and affiliates | D22: 110
C23: Loss on disposal of assets | D23: 111
C24: Charitable donations | D24: 112
C25: Taxable Capital Gains | D25: 113
C26: Political Donations | D26: 114
C27: Deferred and prepaid expenses | D27: 116
C28: Scientific research expenditures deducted on financial statements | D28: 118 | F28: 1171333
C29: Capitalized interest | D29: 119
C30: Non-deductible club dues and fees | D30: 120 | F30: 50511
C31: Non-deductible meals and entertainment expense | D31: 121 | F31: 83667
C32: Non-deductible automobile expenses | D32: 122
C33: Non-deductible life insurance premiums | D33: 123
C34: Non-deductible company pension plans | D34: 124
C35: Tax reserves beginning of year | D35: 125 | E35: T13 | F35: ='T13 2028 Sch 13 Reserves'!G22 -> 0
C36: Reserves from financial statements- balance at end of year | D36: 126 | E36: T13 | F36: ='T13 2028 Sch 13 Reserves'!K43 -> 8168216
C37: Soft costs on construction and renovation of buildings | D37: 127
C38: Book loss on joint ventures or partnerships | D38: 205
C39: Capital items expensed | D39: 206
C40: Debt issue expense | D40: 208
C41: Development expenses claimed in current year | D41: 212
C42: Financing fees deducted in books | D42: 216
C43: Gain on settlement of debt | D43: 220
C44: Non-deductible advertising | D44: 226
C45: Non-deductible interest | D45: 227
C46: Non-deductible legal and accounting fees | D46: 228
C47: Recapture of SR&ED expenditures | D47: 231
C48: Share issue expense | D48: 235
C49: Write down of capital property | D49: 236
C50: Amounts received in respect of qualifying environment trust per paragraphs 12(1)(z.1) and 12(1)(z.2) | D50: 237
C51: Other Additions
C52: Interest Expensed on Capital Leases | D52: 295
C53: Realized Income from Deferred Credit Accounts | D53: 295
C54: Pensions | D54: 295
C55: Non-deductible penalties | D55: 295
C56: Vehicle amortization | D56: 295 | F56: 698126
C57: Other amortization-Renewables not included in Depreciation | D57: 295 | F57: 56226
C58: Co-op education credit-prior year | D58: 295 | F58: 3000
C59: Golf tournament expenses | D59: 295 | F59: 29273
C60: Reglatory assets(Deferred Variances)-decrease | D60: 295 | F60: 3812561
C61: ARO Accretion expense
C62: Capital Contributions Received (ITA 12(1)(x)) | F62: 50628809
C63: Lease Inducements Received (ITA 12(1)(x))
C64: Deferred Revenue (ITA 12(1)(a))
C65: Prior Year Investment Tax Credits received
C75: Total Additions | F75: =SUM(F16:F74) -> 92393613
C76: Deductions:
C77: Gain on disposal of assets per financial statements | D77: 401 | F77: 44476
C78: Dividends not taxable under section 83 | D78: 402
C79: Capital cost allowance from Schedule 8 | D79: 403 | E79: T8 | F79: ='T8 2028 Sch 8 CCA'!AA43 -> 41029805.57
C80: Terminal loss from Schedule 8 | D80: 404 | E80: T8 | F80: ='T8 2028 Sch 8 CCA'!Z43 -> 0
C81: Allowable business investment loss | D81: 406
C82: Deferred and prepaid expenses | D82: 409
C83: Scientific research expenses claimed in year | D83: 411 | F83: 1662291
C84: Tax reserves end of year | D84: 413 | E84: T13 | F84: ='T13 2028 Sch 13 Reserves'!K22 -> 0
C85: Reserves from financial statements - balance at beginning of year | D85: 414 | E85: T13 | F85: ='T13 2028 Sch 13 Reserves'!G43 -> 7930307
C86: Contributions to deferred income plans | D86: 416
C87: Book income of joint venture or partnership | D87: 305
C88: Equity in income from subsidiary or affiliates | D88: 306
C89: Other deductions
C90: Interest capitalized for accounting deducted for tax | D90: 395 | F90: 2497235
C91: Capital Lease Payments | D91: 395
C92: Non-taxable imputed interest income on deferral and variance accounts | D92: 395
C93: Pensions contributions capitalized for accounting | D93: 395 | F93: 1288498
C94: Current period employee benefit cost capitalized for accounting | D94: 395 | F94: 45556
C95: Current period sick leave cost capitalized for accounting | D95: 395 | F95: 9042
C96: Proceeds on sales recorded for accounting | D96: 395 | F96: 298910
C97: Deferred Revenue ICM | D97: 395 | F97: 79620
C98: ARO Payments - Deductible for Tax when Paid
C99: ITA 13(7.4) Election - Capital Contributions Received | F99: 50628809
C100: ITA 13(7.4) Election - Apply Lease Inducement to cost of Leaseholds
C101: Deferred Revenue - ITA 20(1)(m) reserve
C102: Principal portion of lease payments
C103: Lease Inducement Book Amortization credit to income
C104: Financing fees for tax ITA 20(1)(e) and (e.1)
C113: Total Deductions | E113: calculated | F113: =SUM(F77:F112) -> 105514549.6
C115: NET INCOME FOR TAX PURPOSES | E115: calculated | F115: =SUM(F12,F75)-F113 -> 11784957.25
C117: Charitable donations | D117: 311
C118: Taxable dividends received under section 112 or 113 | D118: 320
C119: Non-capital losses of previous tax years from Schedule 4 | D119: 331 | E119: T4 | F119: ='T4 2028 Sch 4 Loss Cfwd'!I15 -> 11784957.25
C120: Net capital losses of previous tax years from Schedule 4 | D120: 332 | E120: T4 | F120: ='T4 2028 Sch 4 Loss Cfwd'!I25 -> 0
C121: Limited partnership losses of previous tax years from Schedule 4 | D121: 335
C123: REGULATORY TAXABLE INCOME | E123: calculated | F123: =IF(F115<0,F115,F115-SUM(F117:F122)) -> 0 | G123: T0

Sheet T4 2028 Sch 4 Loss Cfwd
C7: Schedule 4 Loss Carry Forward - Test Year
C9: Corporation Loss Continuity and Application
C11: Non-Capital Loss Carry Forward Deduction | F11: Working Paper Reference | G11: Total | H11: Non-Distribution Portion | I11: Utility Balance
C12: Actual/Estimated Bridge Year Carried Forward | F12: B4 | G12: ='T4 2027 Sch 4 Loss Cfwd'!I18 -> 23421408.91 | I12: =G12-H12 -> 23421408.91
C13: Amount to be used in Test Year and Price Cap Years | F13: T1 | G13: =IF('T1 2028 Sch 1 Taxable Income'!F115<0,0,IF('T1 2028 Sch 1 Taxable Income'!F115>G12,G12,'T1 2028 Sch 1 Taxable Income'!F115)) -> 11784957.25 | I13: =G13-H13 -> 11784957.25
C14: Number of years loss until next cost of service (i.e. years the loss is to be spread over)
C15: Amount to be used in Test Year | F15: calculated | G15: =IF(ISERROR(G13/G14),G13,G13/G14) -> 11784957.25 | I15: =G15-H15 -> 11784957.25
C16: Loss Carry Forward Generated in Test Year (if any) | F16: T1 | G16: =IF('T1 2028 Sch 1 Taxable Income'!F115<0,'T1 2028 Sch 1 Taxable Income'!F115*-1,0) -> 0 | I16: =G16-H16 -> 0
C17: Other Adjustments | I17: =G17-H17 -> 0
C18: Balance available for use in Future Years | F18: calculated | G18: =G12-G13+G16+G17 -> 11636451.67 | I18: =G18-H18 -> 11636451.67
C21: Net Capital Loss Carry Forward Deduction | G21: Total | H21: Non-Distribution Portion | I21: Utility Balance
C22: Actual/Estimated Bridge Year Carried Forward | F22: B4 | G22: ='T4 2027 Sch 4 Loss Cfwd'!G28 -> 0 | I22: =G22-H22 -> 0
C23: Amount to be used in Test Year and Price Cap Years | I23: =G23-H23 -> 0
C24: Number of years loss until next cost of service (i.e. years the loss is to be spread over)
C25: Amount to be used in Test Year | F25: T1 | G25: =IF(ISERROR(G23/G24),G23,G23/G24) -> 0 | I25: =G25-H25 -> 0
C26: Loss Carry Forward Generated in Test Year (if any) | I26: =G26-H26 -> 0
C27: Other Adjustments | I27: =G27-H27 -> 0
C28: Balance available for use in Future Years | G28: =G22-G23+G26+G27 -> 0 | I28: =G28-H28 -> 0

Sheet T8 2028 Sch 8 CCA
B7: Schedule 8 CCA - Test Year
B9: (1) Class | C9: Class Description | D9: Working Paper Reference | E9: (2) Undepreciated capital cost (UCC) at the beginning of the test year | F9: (3) Cost of acquisitions during the year (new property must be available for use, except CWIP) | G9: (4) Cost of acquisitions from column 3 that are designated immediate expensing property (DIEP) | H9: (5) Adjustments and transfers (enter amounts that will reduce the UCC as negatives) | I9: (6) Amount from column 5 that is assistance received or receivable during the year for a property, subsequent to its disposition | J9: (7) Amount from column 5 that is repaid during the year for a property, subsequent to its disposition | K9: (8) Proceeds of dispositions | L9: (9) Proceeds of dispositions of the DIEP (enter amount from column 8 that relates to the DIEP reported in column 4) | M9: (10) UCC (column 2 plus column 3 plus or minus column 5 minus column 8) | N9: (11) UCC of the DIEP (enter the UCC amount that relates to the DIEP reported in column 4) | O9: (12) Immediate expensing | P9: (13) Cost of acquisitions on remainder of Class (column 3 minus column 4 plus column 11 minus column 12) | Q9: (14) Cost of acquisitions from column 13 that are accelerated investment incentive properties (AIIP) or properties included in Classes 54 to 56 | R9: (15) Remaining UCC (column 10 minus column 12) (if negative, enter "0") | S9: (16) Proceeds of disposition available to reduce the UCC of AIIP and property included in Classes 54 to 56 (column 8 minus column 9 plus column 6 minus column 13 plus column 14 minus column 7) (if negative, enter "0") | T9: (17) Net capital cost additions of AIIP and property included in Classes 54 to 56 acquired during the year (column 14 minus column 16) (if negative, enter "0") | U9: Relevant factor1 | V9: (18) UCC adjustment for AIIP and property included in Classes 54 to 56 acquired during the year (column 17 multiplied by the relevant factor) | W9: (19) UCC adjustment for non-AIIP and property included in Classes 54 to 56 (0.5 multiplied by the result of column 13 minus column 14 minus column 6 plus column 7 minus column 8 plus column 9) (if negative, enter "0") | X9: (20) CCA Rate % | Y9: (21) Recapture of CCA | Z9: (22) Terminal Loss | AA9: (23) CCA (for declining balance method, the result of column 15 plus column 18 minus column 19, multiplied by column 20 or a lower amount, plus column 12)) | AB9: (24) UCC at the end of the test year (column 10 minus column 23)
B10: =IF(ISBLANK('B8 Sch 8 CCA Bridge'!B10), "", 'B8 Sch 8 CCA Bridge'!B10) -> 1 | C10: =IF(ISBLANK('B8 Sch 8 CCA Bridge'!C10), "", 'B8 Sch 8 CCA Bridge'!C10) -> Buildings, Distribution System (acq'd post 1987) | D10: B8 | E10: =IF(ISBLANK('T8 2027 Sch 8 CCA '!AA10), "", 'T8 2027 Sch 8 CCA '!AB10) -> 77714197.4 | M10: =IFERROR(E10+F10+H10-K10,0) -> 77714197.4 | P10: =+F10-G10+N10-O10 -> 0 | R10: =IF((M10-O10)<0,0,M10-O10) -> 77714197.4 | S10: =IF((K10-L10+I10-P10+Q10-J10)<0,0,(K10-L10+I10-P10+Q10-J10)) -> 0 | T10: =IF((Q10-S10)<0,0,(Q10-S10)) -> 0 | U10: 0 | V10: =T10*U10 -> 0 | W10: =IF((0.5*(P10-Q10-I10+J10-K10+L10))<0,0,(0.5*(P10-Q10-I10+J10-K10+L10))) -> 0 | X10: 0.04 | AA10: =IF(OR(R10<=0,Z10>0),0,(R10+V10-W10)*X10) -> 3108567.896 | AB10: =IF(M10<0,0,M10-Z10-AA10) -> 74605629.51
B11: =IF(ISBLANK('B8 Sch 8 CCA Bridge'!B11), "", 'B8 Sch 8 CCA Bridge'!B11) -> 1b | C11: =IF(ISBLANK('B8 Sch 8 CCA Bridge'!C11), "", 'B8 Sch 8 CCA Bridge'!C11) -> Non-Residential Buildings [Reg. 1100(1)(a.1) election] | D11: B8 | E11: =IF(ISBLANK('T8 2027 Sch 8 CCA '!AA11), "", 'T8 2027 Sch 8 CCA '!AB11) -> 13413292.02 | F11: 1976083 | M11: =IFERROR(E11+F11+H11-K11,"") -> 15389375.02 | P11: =+F11-G11+N11-O11 -> 1976083 | R11: =IF((M11-O11)<0,0,M11-O11) -> 15389375.02 | S11: =IF((K11-L11+I11-P11+Q11-J11)<0,0,(K11-L11+I11-P11+Q11-J11)) -> 0 | T11: =IF((Q11-S11)<0,0,(Q11-S11)) -> 0 | U11: 0 | V11: =T11*U11 -> 0 | W11: =IF((0.5*(P11-Q11-I11+J11-K11+L11))<0,0,(0.5*(P11-Q11-I11+J11-K11+L11))) -> 988041.5 | X11: 0.06 | AA11: =IF(OR(R11<=0,Z11>0),0,(R11+V11-W11)*X11) -> 864080.0114 | AB11: =IF(M11<0,0,M11-Z11-AA11) -> 14525295.01
B12: =IF(ISBLANK('B8 Sch 8 CCA Bridge'!B12), "", 'B8 Sch 8 CCA Bridge'!B12) -> 2 | C12: =IF(ISBLANK('B8 Sch 8 CCA Bridge'!C12), "", 'B8 Sch 8 CCA Bridge'!C12) -> Distribution System (acq'd pre 1988) | D12: B8 | E12: =IF(ISBLANK('T8 2027 Sch 8 CCA '!AA12), "", 'T8 2027 Sch 8 CCA '!AB12) -> 2667596.352 | M12: 2667596.352 | P12: 0 | R12: 2667596.352 | S12: 0 | T12: 0 | V12: 0 | W12: 0 | X12: 0.06 | AA12: 160055.7811 | AB12: 2507540.571
B13: =IF(ISBLANK('B8 Sch 8 CCA Bridge'!B13), "", 'B8 Sch 8 CCA Bridge'!B13) -> 3 | C13: =IF(ISBLANK('B8 Sch 8 CCA Bridge'!C13), "", 'B8 Sch 8 CCA Bridge'!C13) -> Buildings (acq'd pre 1988) | D13: B8 | E13: =IF(ISBLANK('T8 2027 Sch 8 CCA '!AA13), "", 'T8 2027 Sch 8 CCA '!AB13) -> 0 | M13: 0 | P13: 0 | R13: 0 | S13: 0 | T13: 0 | V13: 0 | W13: 0 | X13: 0.05 | AA13: 0 | AB13: 0
B14: =IF(ISBLANK('B8 Sch 8 CCA Bridge'!B14), "", 'B8 Sch 8 CCA Bridge'!B14) -> 6 | C14: =IF(ISBLANK('B8 Sch 8 CCA Bridge'!C14), "", 'B8 Sch 8 CCA Bridge'!C14) -> Certain Buildings; Fences | D14: B8 | E14: =IF(ISBLANK('T8 2027 Sch 8 CCA '!AA14), "", 'T8 2027 Sch 8 CCA '!AB14) -> 0 | M14: 0 | P14: 0 | R14: 0 | S14: 0 | T14: 0 | U14: 0 | V14: 0 | W14: 0 | X14: 0.1 | AA14: 0 | AB14: 0
B15: =IF(ISBLANK('B8 Sch 8 CCA Bridge'!B15), "", 'B8 Sch 8 CCA Bridge'!B15) -> 8 | C15: =IF(ISBLANK('B8 Sch 8 CCA Bridge'!C15), "", 'B8 Sch 8 CCA Bridge'!C15) -> General Office Equipment, Furniture, Fixtures | D15: B8 | E15: =IF(ISBLANK('T8 2027 Sch 8 CCA '!AA15), "", 'T8 2027 Sch 8 CCA '!AB15) -> 6933579.2 | F15: 2935328 | M15: 9868907.2 | P15: 2935328 | R15: 9868907.2 | S15: 0 | T15: 0 | U15: 0 | V15: 0 | W15: 1467664 | X15: 0.2 | AA15: 1680248.64 | AB15: 8188658.56
B16: =IF(ISBLANK('B8 Sch 8 CCA Bridge'!B16), "", 'B8 Sch 8 CCA Bridge'!B16) -> 10 | C16: =IF(ISBLANK('B8 Sch 8 CCA Bridge'!C16), "", 'B8 Sch 8 CCA Bridge'!C16) -> Motor Vehicles, Fleet | D16: B8 | E16: =IF(ISBLANK('T8 2027 Sch 8 CCA '!AA16), "", 'T8 2027 Sch 8 CCA '!AB16) -> 5265363.88 | F16: 3370896 | K16: 44476 | M16: 8591783.88 | P16: 3370896 | R16: 8591783.88 | S16: 0 | T16: 0 | U16: 0 | V16: 0 | W16: 1663210 | X16: 0.3 | AA16: =IF(OR(R16<=0,Z16>0),0,(R16+V16-W16)*X16) -> 2078572.164 | AB16: 6513211.716
B17: =IF(ISBLANK('B8 Sch 8 CCA Bridge'!B17), "", 'B8 Sch 8 CCA Bridge'!B17) -> 10.1 | C17: =IF(ISBLANK('B8 Sch 8 CCA Bridge'!C17), "", 'B8 Sch 8 CCA Bridge'!C17) -> Certain Automobiles | D17: B8 | E17: =IF(ISBLANK('T8 2027 Sch 8 CCA '!AA17), "", 'T8 2027 Sch 8 CCA '!AB17) -> 183.26 | M17: 183.26 | P17: 0 | R17: 183.26 | S17: 0 | T17: 0 | U17: 0 | V17: 0 | W17: 0 | X17: 0.3 | AA17: 54.978 | AB17: 128.282
B18: =IF(ISBLANK('B8 Sch 8 CCA Bridge'!B18), "", 'B8 Sch 8 CCA Bridge'!B18) -> 12 | C18: =IF(ISBLANK('B8 Sch 8 CCA Bridge'!C18), "", 'B8 Sch 8 CCA Bridge'!C18) -> Computer Application Software (Non-Systems) | D18: B8 | E18: =IF(ISBLANK('T8 2027 Sch 8 CCA '!AA18), "", 'T8 2027 Sch 8 CCA '!AB18) -> 0 | F18: 913006 | M18: 913006 | P18: 913006 | R18: 913006 | S18: 0 | T18: 0 | U18: 0 | V18: 0 | W18: 456503 | X18: 1 | AA18: 456503 | AB18: 456503
B19: 13 1 | C19: =IF(ISBLANK('B8 Sch 8 CCA Bridge'!C19), "", 'B8 Sch 8 CCA Bridge'!C19) -> Lease # 1 | D19: B8 | E19: =IF(ISBLANK('T8 2027 Sch 8 CCA '!AA19), "", 'T8 2027 Sch 8 CCA '!AB19) -> 0 | M19: 0 | P19: 0 | R19: 0 | S19: 0 | T19: 0 | U19: 0 | V19: 0 | W19: 0 | X19: NA | AA19: 0 | AB19: 0
B20: 13 2 | C20: =IF(ISBLANK('B8 Sch 8 CCA Bridge'!C20), "", 'B8 Sch 8 CCA Bridge'!C20) -> Lease # 2 | D20: B8 | E20: =IF(ISBLANK('T8 2027 Sch 8 CCA '!AA20), "", 'T8 2027 Sch 8 CCA '!AB20) -> 0 | M20: 0 | P20: 0 | R20: 0 | S20: 0 | T20: 0 | U20: 0 | V20: 0 | W20: 0 | X20: NA | AA20: 0 | AB20: 0
B21: 13 3 | C21: =IF(ISBLANK('B8 Sch 8 CCA Bridge'!C21), "", 'B8 Sch 8 CCA Bridge'!C21) -> Lease # 3 | D21: B8 | E21: =IF(ISBLANK('T8 2027 Sch 8 CCA '!AA21), "", 'T8 2027 Sch 8 CCA '!AB21) -> 0 | M21: 0 | P21: 0 | R21: 0 | S21: 0 | T21: 0 | U21: 0 | V21: 0 | W21: 0 | X21: NA | AA21: 0 | AB21: 0
B22: 13 4 | C22: =IF(ISBLANK('B8 Sch 8 CCA Bridge'!C22), "", 'B8 Sch 8 CCA Bridge'!C22) -> Lease # 4 | D22: B8 | E22: =IF(ISBLANK('T8 2027 Sch 8 CCA '!AA22), "", 'T8 2027 Sch 8 CCA '!AB22) -> 0 | M22: 0 | P22: 0 | R22: 0 | S22: 0 | T22: 0 | U22: 0 | V22: 0 | W22: 0 | X22: NA | AA22: 0 | AB22: 0
B23: =IF(ISBLANK('B8 Sch 8 CCA Bridge'!B23), "", 'B8 Sch 8 CCA Bridge'!B23) -> 14 | C23: =IF(ISBLANK('B8 Sch 8 CCA Bridge'!C23), "", 'B8 Sch 8 CCA Bridge'!C23) -> Limited Period Patents, Franchises, Concessions or Licences | D23: B8 | E23: =IF(ISBLANK('T8 2027 Sch 8 CCA '!AA23), "", 'T8 2027 Sch 8 CCA '!AB23) -> 0 | M23: 0 | P23: 0 | R23: 0 | S23: 0 | T23: 0 | U23: 0 | V23: 0 | W23: 0 | X23: NA | AA23: 0 | AB23: 0
B24: =IF(ISBLANK('B8 Sch 8 CCA Bridge'!B24), "", 'B8 Sch 8 CCA Bridge'!B24) -> 14.1 | C24: Eligible Capital Property (acq'd pre Jan 1, 2017) | D24: B8 | E24: =IF(ISBLANK('T8 2027 Sch 8 CCA '!AA24), "", 'T8 2027 Sch 8 CCA '!AB24) -> 2229399.106 | M24: 2229399.106 | P24: 0 | R24: =IF((M24-O24)<0,0,M24-O24) -> 2229399.106 | S24: =IF((K24-L24+I24-P24+Q24-J24)<0,0,(K24-L24+I24-P24+Q24-J24)) -> 0 | T24: 0 | V24: 0 | W24: 0 | X24: 0.07 | AA24: 156057.9374 | AB24: 2073341.169
B25: =IF(ISBLANK('B8 Sch 8 CCA Bridge'!B25), "", 'B8 Sch 8 CCA Bridge'!B25) -> 14.1 | C25: Eligible Capital Property (acq'd post Jan 1, 2017) | D25: B8 | E25: =IF(ISBLANK('T8 2027 Sch 8 CCA '!AA25), "", 'T8 2027 Sch 8 CCA '!AB25) -> 21584393.96 | M25: 21584393.96 | P25: 0 | R25: 21584393.96 | S25: 0 | T25: 0 | U25: 0 | V25: 0 | W25: 0 | X25: 0.05 | AA25: 1079219.698 | AB25: 20505174.27
B26: =IF(ISBLANK('B8 Sch 8 CCA Bridge'!B26), "", 'B8 Sch 8 CCA Bridge'!B26) -> 17 | C26: =IF(ISBLANK('B8 Sch 8 CCA Bridge'!C26), "", 'B8 Sch 8 CCA Bridge'!C26) -> Elec. Generation Equip. (Non-Bldng, acq'd post Feb 27/00); Roads, Lots, Storage | D26: B8 | E26: =IF(ISBLANK('T8 2027 Sch 8 CCA '!AA26), "", 'T8 2027 Sch 8 CCA '!AB26) -> 126084.8224 | M26: 126084.8224 | P26: 0 | R26: 126084.8224 | S26: 0 | T26: 0 | U26: 0 | V26: 0 | W26: 0 | X26: 0.08 | AA26: 10086.78579 | AB26: 115998.0366
B27: =IF(ISBLANK('B8 Sch 8 CCA Bridge'!B27), "", 'B8 Sch 8 CCA Bridge'!B27) -> 42 | C27: =IF(ISBLANK('B8 Sch 8 CCA Bridge'!C27), "", 'B8 Sch 8 CCA Bridge'!C27) -> Fibre Optic Cable | D27: B8 | E27: =IF(ISBLANK('T8 2027 Sch 8 CCA '!AA27), "", 'T8 2027 Sch 8 CCA '!AB27) -> 689.216 | M27: 689.216 | P27: 0 | R27: 689.216 | S27: 0 | T27: 0 | U27: 0 | V27: 0 | W27: 0 | X27: 0.12 | AA27: 82.70592 | AB27: 606.51008
B28: =IF(ISBLANK('B8 Sch 8 CCA Bridge'!B28), "", 'B8 Sch 8 CCA Bridge'!B28) -> 43.1 | C28: =IF(ISBLANK('B8 Sch 8 CCA Bridge'!C28), "", 'B8 Sch 8 CCA Bridge'!C28) -> Certain Clean Energy/Energy-Efficient Generation Equipment | D28: B8 | E28: =IF(ISBLANK('T8 2027 Sch 8 CCA '!AA28), "", 'T8 2027 Sch 8 CCA '!AB28) -> 0 | M28: 0 | P28: 0 | R28: 0 | S28: 0 | T28: 0 | U28: 1.5 | V28: 0 | W28: 0 | X28: 0.3 | AA28: 0 | AB28: 0
B29: =IF(ISBLANK('B8 Sch 8 CCA Bridge'!B29), "", 'B8 Sch 8 CCA Bridge'!B29) -> 43.2 | C29: =IF(ISBLANK('B8 Sch 8 CCA Bridge'!C29), "", 'B8 Sch 8 CCA Bridge'!C29) -> Certain Clean Energy/Energy-Efficient Generation Equipment | D29: B8 | E29: =IF(ISBLANK('T8 2027 Sch 8 CCA '!AA29), "", 'T8 2027 Sch 8 CCA '!AB29) -> 72.5 | M29: 72.5 | P29: 0 | R29: 72.5 | S29: 0 | T29: 0 | U29: 0.5 | V29: 0 | W29: 0 | X29: 0.5 | AA29: 36.25 | AB29: 36.25
B30: =IF(ISBLANK('B8 Sch 8 CCA Bridge'!B30), "", 'B8 Sch 8 CCA Bridge'!B30) -> 45 | C30: =IF(ISBLANK('B8 Sch 8 CCA Bridge'!C30), "", 'B8 Sch 8 CCA Bridge'!C30) -> Computers & System Software (acq'd post Mar 22/04 and pre Mar 19/07) | D30: B8 | E30: =IF(ISBLANK('T8 2027 Sch 8 CCA '!AA30), "", 'T8 2027 Sch 8 CCA '!AB30) -> 3.63 | M30: 3.63 | P30: 0 | R30: 3.63 | S30: 0 | T30: 0 | V30: 0 | W30: 0 | X30: 0.45 | AA30: 1.6335 | AB30: 1.9965
B31: =IF(ISBLANK('B8 Sch 8 CCA Bridge'!B31), "", 'B8 Sch 8 CCA Bridge'!B31) -> 46 | C31: =IF(ISBLANK('B8 Sch 8 CCA Bridge'!C31), "", 'B8 Sch 8 CCA Bridge'!C31) -> Data Network Infrastructure Equipment (acq'd post Mar 22/04) | D31: B8 | E31: =IF(ISBLANK('T8 2027 Sch 8 CCA '!AA31), "", 'T8 2027 Sch 8 CCA '!AB31) -> 1056856.5 | M31: 1056856.5 | P31: 0 | R31: 1056856.5 | S31: 0 | T31: 0 | U31: 0 | V31: 0 | W31: 0 | X31: 0.3 | AA31: 317056.95 | AB31: 739799.55
B32: =IF(ISBLANK('B8 Sch 8 CCA Bridge'!B32), "", 'B8 Sch 8 CCA Bridge'!B32) -> 47 | C32: =IF(ISBLANK('B8 Sch 8 CCA Bridge'!C32), "", 'B8 Sch 8 CCA Bridge'!C32) -> Distribution System (acq'd post Feb 22/05) | D32: B8 | E32: =IF(ISBLANK('T8 2027 Sch 8 CCA '!AA32), "", 'T8 2027 Sch 8 CCA '!AB32) -> 315449061 | F32: 101901414 | K32: 298910 | M32: 417051565 | P32: 101901414 | R32: 417051565 | S32: 0 | T32: 0 | U32: 0 | V32: 0 | W32: 50801252 | X32: 0.08 | AA32: 29300025.04 | AB32: 387751539.9
B33: =IF(ISBLANK('B8 Sch 8 CCA Bridge'!B33), "", 'B8 Sch 8 CCA Bridge'!B33) -> 50 | C33: =IF(ISBLANK('B8 Sch 8 CCA Bridge'!C33), "", 'B8 Sch 8 CCA Bridge'!C33) -> General Purpose Computer Hardware & Software (acq'd post Mar 18/07) | D33: B8 | E33: =IF(ISBLANK('T8 2027 Sch 8 CCA '!AA33), "", 'T8 2027 Sch 8 CCA '!AB33) -> 1946971.552 | F33: 2721170 | M33: 4668141.553 | P33: 2721170 | R33: 4668141.553 | S33: 0 | T33: 0 | U33: 0 | V33: 0 | W33: 1360585 | X33: 0.55 | AA33: 1819156.104 | AB33: 2848985.449
B34: =IF(ISBLANK('B8 Sch 8 CCA Bridge'!B34), "", 'B8 Sch 8 CCA Bridge'!B34) -> 95 | C34: =IF(ISBLANK('B8 Sch 8 CCA Bridge'!C34), "", 'B8 Sch 8 CCA Bridge'!C34) -> CWIP | D34: B8 | E34: =IF(ISBLANK('T8 2027 Sch 8 CCA '!AA34), "", 'T8 2027 Sch 8 CCA '!AB34) -> 113465407 | H34: 7328183 | M34: 120793590 | P34: 0 | R34: 120793590 | S34: 0 | T34: 0 | U34: 0 | V34: 0 | W34: 0 | X34: 0 | AA34: 0 | AB34: 120793590
B35: =IF(ISBLANK('B8 Sch 8 CCA Bridge'!B35), "", 'B8 Sch 8 CCA Bridge'!B35) ->  | C35: =IF(ISBLANK('B8 Sch 8 CCA Bridge'!C35), "", 'B8 Sch 8 CCA Bridge'!C35) ->  | D35: B8 | E35: =IF(ISBLANK('T8 2027 Sch 8 CCA '!AA35), "", 'T8 2027 Sch 8 CCA '!AB35) -> 0 | M35: 0 | P35: 0 | R35: 0 | S35: 0 | T35: 0 | V35: 0 | W35: 0 | AA35: 0 | AB35: 0
B36: =IF(ISBLANK('B8 Sch 8 CCA Bridge'!B36), "", 'B8 Sch 8 CCA Bridge'!B36) ->  | C36: =IF(ISBLANK('B8 Sch 8 CCA Bridge'!C36), "", 'B8 Sch 8 CCA Bridge'!C36) ->  | D36: B8 | E36: =IF(ISBLANK('T8 2027 Sch 8 CCA '!AA36), "", 'T8 2027 Sch 8 CCA '!AB36) -> 0 | M36: 0 | P36: 0 | R36: 0 | S36: 0 | T36: 0 | V36: 0 | W36: 0 | AA36: 0 | AB36: 0
B37: =IF(ISBLANK('B8 Sch 8 CCA Bridge'!B37), "", 'B8 Sch 8 CCA Bridge'!B37) ->  | C37: =IF(ISBLANK('B8 Sch 8 CCA Bridge'!C37), "", 'B8 Sch 8 CCA Bridge'!C37) ->  | D37: B8 | E37: =IF(ISBLANK('T8 2027 Sch 8 CCA '!AA37), "", 'T8 2027 Sch 8 CCA '!AB37) -> 0 | M37: 0 | P37: 0 | R37: 0 | S37: 0 | T37: 0 | V37: 0 | W37: 0 | AA37: 0 | AB37: 0
B38: =IF(ISBLANK('B8 Sch 8 CCA Bridge'!B38), "", 'B8 Sch 8 CCA Bridge'!B38) ->  | C38: =IF(ISBLANK('B8 Sch 8 CCA Bridge'!C38), "", 'B8 Sch 8 CCA Bridge'!C38) ->  | D38: B8 | E38: =IF(ISBLANK('T8 2027 Sch 8 CCA '!AA38), "", 'T8 2027 Sch 8 CCA '!AB38) -> 0 | M38: 0 | P38: 0 | R38: 0 | S38: 0 | T38: 0 | V38: 0 | W38: 0 | AA38: 0 | AB38: 0
B39: =IF(ISBLANK('B8 Sch 8 CCA Bridge'!B39), "", 'B8 Sch 8 CCA Bridge'!B39) ->  | C39: =IF(ISBLANK('B8 Sch 8 CCA Bridge'!C39), "", 'B8 Sch 8 CCA Bridge'!C39) ->  | D39: B8 | E39: =IF(ISBLANK('T8 2027 Sch 8 CCA '!AA39), "", 'T8 2027 Sch 8 CCA '!AB39) -> 0 | M39: 0 | P39: 0 | R39: 0 | S39: 0 | T39: 0 | V39: 0 | W39: 0 | AA39: 0 | AB39: 0
B40: =IF(ISBLANK('B8 Sch 8 CCA Bridge'!B40), "", 'B8 Sch 8 CCA Bridge'!B40) ->  | C40: =IF(ISBLANK('B8 Sch 8 CCA Bridge'!C40), "", 'B8 Sch 8 CCA Bridge'!C40) ->  | D40: B8 | E40: =IF(ISBLANK('T8 2027 Sch 8 CCA '!AA40), "", 'T8 2027 Sch 8 CCA '!AB40) -> 0 | M40: 0 | P40: 0 | R40: 0 | S40: 0 | T40: 0 | V40: 0 | W40: 0 | AA40: 0 | AB40: 0
B41: =IF(ISBLANK('B8 Sch 8 CCA Bridge'!B41), "", 'B8 Sch 8 CCA Bridge'!B41) ->  | C41: =IF(ISBLANK('B8 Sch 8 CCA Bridge'!C41), "", 'B8 Sch 8 CCA Bridge'!C41) ->  | D41: B8 | E41: =IF(ISBLANK('T8 2027 Sch 8 CCA '!AA41), "", 'T8 2027 Sch 8 CCA '!AB41) -> 0 | M41: 0 | P41: 0 | R41: 0 | S41: 0 | T41: 0 | V41: 0 | W41: 0 | AA41: 0 | AB41: =IF(M41<0,0,M41-Z41-AA41) -> 0
B42: =IF(ISBLANK('B8 Sch 8 CCA Bridge'!B42), "", 'B8 Sch 8 CCA Bridge'!B42) ->  | C42: =IF(ISBLANK('B8 Sch 8 CCA Bridge'!C42), "", 'B8 Sch 8 CCA Bridge'!C42) ->  | D42: B8 | E42: =IF(ISBLANK('T8 2027 Sch 8 CCA '!AA42), "", 'T8 2027 Sch 8 CCA '!AB42) -> 0 | M42: =IFERROR(E42+F42+H42-K42,"") -> 0 | P42: 0 | R42: 0 | S42: 0 | T42: 0 | V42: 0 | W42: 0 | AA42: 0 | AB42: 0
C43: TOTALS | E43: =SUM(E10:E42) -> 561853151.4 | F43: =SUM(F10:F42) -> 113817897 | G43: =SUM(G10:G42) -> 0 | H43: =SUM(H10:H42) -> 7328183 | I43: =SUM(I10:I42) -> 0 | J43: 0 | K43: =SUM(K10:K42) -> 343386 | L43: =SUM(L10:L42) -> 0 | M43: =SUM(M10:M42) -> 682655845.4 | N43: 0 | O43: 0 | P43: 113817897 | Q43: =SUM(Q10:Q42) -> 0 | R43: 682655845.4 | S43: 0 | T43: 0 | V43: =SUM(V10:V42) -> 0 | W43: 56737255.5 | Y43: =SUM(Y10:Y42) -> 0 | Z43: =SUM(Z10:Z42) -> 0 | AA43: =SUM(AA10:AA42) -> 41029805.57 | AB43: =SUM(AB10:AB42) -> 641626039.8
B45: For additional details and guidance on calculating amounts in Schedule 8, refer to the notes to the Canada Revenue Agency published Schedule 8 - Capital Cost Allowance (CCA) (2018 and later tax years):
B46: https://www.canada.ca/content/dam/cra-arc/formspubs/pbg/t2sch8/t2sch8-19e.pdf
B50: 1. Please note that Subsection 1100(2) of the Income Tax Regulations provide undepreciated capital cost adjustment factors of eligible zero-emission vehicles and equipment under Class 53, Class 54, Class 55 and Class 56,
B51: please assess the applicability of these adjustments and incorporate them in the PILs model as applicable.

Sheet T13 2028 Sch 13 Reserves
C7: Schedule 13 Tax Reserves - Test Year
C9: Continuity of Reserves
I10: Test Year Adjustments
C11: Description | D11: Working Paper Reference | E11: Bridge Year | F11: Eliminate Amounts Not Relevant for Test Year | G11: Adjusted Utility Balance | I11: Additions | J11: Disposals | K11: Balance for Test Year | M11: Change During the Year | N11: Disallowed Expenses
C13: Capital Gains Reserves ss.40(1) | D13: B13 | E13: ='B13 Sch 13 Reserves Bridge'!K13 -> 0 | G13: =SUM(E13:F13) -> 0 | K13: =G13+I13-J13 -> 0 | M13: =+K13-G13 -> 0
C14: Tax Reserves Not Deducted for accounting purposes
C15: Reserve for doubtful accounts ss. 20(1)(l) | D15: B13 | E15: ='B13 Sch 13 Reserves Bridge'!K15 -> 0 | G15: =SUM(E15:F15) -> 0 | K15: =G15+I15-J15 -> 0 | M15: =+K15-G15 -> 0
C16: Reserve for goods and services not delivered ss. 20(1)(m) | D16: B13 | E16: ='B13 Sch 13 Reserves Bridge'!K16 -> 0 | G16: 0 | K16: 0 | M16: 0
C17: Reserve for unpaid amounts ss. 20(1)(n) | D17: B13 | E17: ='B13 Sch 13 Reserves Bridge'!K17 -> 0 | G17: 0 | K17: 0 | M17: 0
C18: Debt & Share Issue Expenses ss. 20(1)(e) | D18: B13 | E18: ='B13 Sch 13 Reserves Bridge'!K18 -> 0 | G18: 0 | K18: 0 | M18: 0
C19: Other tax reserves | D19: B13 | E19: ='B13 Sch 13 Reserves Bridge'!K19 -> 0 | G19: 0 | K19: 0 | M19: 0
E20: ='B13 Sch 13 Reserves Bridge'!K20 -> 0 | G20: 0 | K20: 0 | M20: 0
E21: ='B13 Sch 13 Reserves Bridge'!K21 -> 0 | G21: 0 | K21: 0 | M21: 0
C22: Total | E22: =SUM(E15:E21) -> 0 | F22: 0 | G22: 0 | H22: T1 | I22: 0 | J22: 0 | K22: 0 | L22: T1 | M22: 0 | N22: =SUM(N15:N21) -> 0
E23: 0
C24: Financial Statement Reserves (not deductible for Tax Purposes)
C25: General Reserve for Inventory Obsolescence (non-specific) | D25: B13 | E25: ='B13 Sch 13 Reserves Bridge'!K25 -> 0 | G25: =SUM(E25:F25) -> 0 | K25: =G25+I25-J25 -> 0 | M25: =+K25-G25 -> 0
C26: General reserve for bad debts | D26: B13 | E26: ='B13 Sch 13 Reserves Bridge'!K26 -> 0 | G26: 0 | K26: 0 | M26: 0
C27: Accrued Employee Future Benefits: | D27: B13 | E27: ='B13 Sch 13 Reserves Bridge'!K27 -> 0 | G27: 0 | K27: 0 | M27: 0
C28: - Medical and Life Insurance | D28: B13 | E28: ='B13 Sch 13 Reserves Bridge'!K28 -> 0 | G28: 0 | K28: 0 | M28: 0
C29: -Short & Long-term Disability | D29: B13 | E29: ='B13 Sch 13 Reserves Bridge'!K29 -> 0 | G29: 0 | K29: 0 | M29: 0
C30: -Accmulated Sick Leave | D30: B13 | E30: ='T13 2027 Sch 13 Reserves'!K30 -> 1004672 | G30: 1004672 | I30: 30140 | K30: 1034812 | M30: =+K30-G30 -> 30140
C31: - Termination Cost | D31: B13 | E31: ='B13 Sch 13 Reserves Bridge'!K31 -> 0 | G31: 0 | K31: 0 | M31: 0
C32: - Other Post-Employment Benefits | D32: B13 | E32: ='T13 2027 Sch 13 Reserves'!K32 -> 6925635 | G32: 6925635 | I32: 207769 | K32: 7133404 | M32: 207769
C33: Provision for Environmental Costs | D33: B13 | E33: ='B13 Sch 13 Reserves Bridge'!K33 -> 0 | G33: 0 | K33: 0 | M33: 0
C34: Restructuring Costs | D34: B13 | E34: ='B13 Sch 13 Reserves Bridge'!K34 -> 0 | G34: 0 | K34: 0 | M34: 0
C35: Accrued Contingent Litigation Costs | D35: B13 | E35: ='B13 Sch 13 Reserves Bridge'!K35 -> 0 | G35: 0 | K35: 0 | M35: 0
C36: Accrued Self-Insurance Costs | D36: B13 | E36: ='B13 Sch 13 Reserves Bridge'!K36 -> 0 | G36: 0 | K36: 0 | M36: 0
C37: Other Contingent Liabilities | D37: B13 | E37: ='B13 Sch 13 Reserves Bridge'!K37 -> 0 | G37: 0 | K37: 0 | M37: 0
C38: Bonuses Accrued and Not Paid Within 180 Days of Year-End ss. 78(4) | D38: B13 | E38: ='B13 Sch 13 Reserves Bridge'!K38 -> 0 | G38: 0 | K38: 0 | M38: 0
C39: Unpaid Amounts to Related Person and Not Paid Within 3 Taxation Years ss. 78(1) | D39: B13 | E39: ='B13 Sch 13 Reserves Bridge'!K39 -> 0 | G39: 0 | K39: 0 | M39: 0
C40: Other | D40: B13 | E40: ='B13 Sch 13 Reserves Bridge'!K40 -> 0 | G40: 0 | K40: 0 | M40: 0
E41: ='B13 Sch 13 Reserves Bridge'!K41 -> 0 | G41: 0 | K41: 0 | M41: 0
E42: ='B13 Sch 13 Reserves Bridge'!K42 -> 0 | G42: 0 | K42: 0 | M42: 0
C43: Total | E43: =SUM(E25:E42) -> 7930307 | F43: 0 | G43: 7930307 | H43: T1 | I43: 237909 | J43: 0 | K43: 8168216 | L43: T1 | M43: 237909 | N43: 0
E44: 0

Sheet T0 2029 PILs,Tax Provision
T1: Rate Base | U1: Federal Tax Rate
T2: 500000 | U2: 0.11
T3: 10000000 | U3: 0.11
T4: =T3+100000 -> 10100000 | U4: 0.11
T5: =T4+100000 -> 10200000 | U5: 0.11
B6: PILs Tax Provision - Test Year | T6: 10300000 | U6: 0.11
T7: 10400000 | U7: 0.11
J8: Wires Only | T8: 10500000 | U8: 0.11
T9: 10600000 | U9: 0.11
C10: Regulatory Taxable Income | I10: T1 | J10: ='T1 2029 Sch 1 Taxable Income'!F123 -> 0 | K10: A | T10: 10700000 | U10: 0.11
T11: 10800000 | U11: 0.11
D12: Tax Rate | E12: Small Business Rate (If Applicable) | F12: Taxes Payable | G12: Effective Tax Rate
C13: Ontario (Max 11.5%) | D13: 0.115 | E13: =IF(ratebase<=10000000, ontario_SB, IF(ratebase>=50000000, ontariotax, IF(AND(ratebase>10000000, ratebase<50000000), ontario_SB+ (ratebase - 10000000)*(ontariotax - ontario_SB)/(50000000-10000000)))) -> 0.115 | F13: =IF(J10<500000,J10,500000)*E13+IF(J10>500000,J10-500000,0)*D13 -> 0 | G13: =IF(F13=0,0,+F13/J10) -> 0 | H13: B
C14: Federal (Max 15%) | D14: 0.15 | E14: =IF(ratebase<=10000000, Fed_SB_Test, IF(ratebase>=50000000, FedTax, IF(AND(ratebase>10000000, ratebase<50000000), Fed_SB_Test+ (ratebase - 10000000)*(FedTax -Fed_SB_Test)/(50000000-10000000)))) -> 0.15 | F14: =E14*IF(J10<500000,J10,500000)+IF(J10>500000,J10-500000,0)*D14 -> 0 | G14: =IF(F14=0,0,+F14/J10) -> 0 | H14: C
C16: Combined effective tax rate (Max 26.5%) | J16: =SUM(G13:G14) -> 0 | K16: D = B + C | T16: =#REF!+100000 ->  | U16: =#REF!+0.112% -> 
U17: =U16+0.112% -> 
C19: Total Income Taxes | J19: =J10*J16 -> 0 | K19: E = A * D
U20: =U19+0.102% -> 
C21: Investment Tax Credits | K21: F | U21: =U20+0.102% -> 
C22: Miscellaneous Tax Credits | K22: G | U22: =U21+0.102% -> 
C23: Total Tax Credits | J23: =SUM(J21:J22) -> 0 | K23: H = F + G | U23: =U22+0.102% -> 
U24: =U23+0.102% -> 
C25: Corporate PILs/Income Tax Provision for Test Year | J25: =IF(J19-J23<0,0,J19-J23) -> 0 | K25: I = E - H | L25: S. Summary | U25: =U24+0.096% -> 
U26: =U25+0.096% -> 
C27: Corporate PILs/Income Tax Provision Gross Up 1 | H27: =(1-J16) -> 1 | I27: J = 1-D | J27: =J25/H27-J25 -> 0 | K27: K = I/J-I | U27: =U26+0.096% -> 
U28: =U27+0.096% -> 
U29: =U28+0.096% -> 
C30: Income Tax (grossed-up) | J30: =J25+J27 -> 0 | K30: L = K + I | L30: S. Summary | U30: =U29+0.088% -> 
U31: =U30+0.088% -> 
U32: =U31+0.088% -> 
C33: Note: | U33: =U32+0.088% -> 
C34: 1. This is for the derivation of revenue requirement and should not be used for sufficiency/deficiency calculations. | U34: =U33+0.088% -> 
U35: =U34+0.082% -> 
U36: =U35+0.082% -> 
U37: =U36+0.082% -> 
U38: =U37+0.082% -> 
U39: =U38+0.082% -> 
U40: =U39+0.076% -> 
U41: =U40+0.076% -> 
U42: =U41+0.076% -> 
U43: =U42+0.076% -> 
U44: 0.15

Sheet T1 2029 Sch 1 Taxable Income
C10: Taxable Income - Test Year
E11: Working Paper Reference | F11: Test Year Taxable Income
C12: Net Income Before Taxes | E12: A. | F12: ='A. Data Input Sheet'!I18 -> 28491271.51
D14: T2 S1 line #
C15: Additions:
C16: Interest and penalties on taxes | D16: 103
C17: Amortization of tangible assets 2-4 ADJUSTED ACCOUNTING DATA P489 | D17: 104 | F17: 31096741
C18: Amortization of intangible assets 2-4 ADJUSTED ACCOUNTING DATA P490 | D18: 106
C19: Recapture of capital cost allowance from Schedule 8 | D19: 107 | E19: T8 | F19: ='T8 2029 Sch 8 CCA'!Y43 -> 0
C20: Income inclusion under subparagraph 13(38)(d)(iii) from Schedule 10 | D20: 108
C21: Income or loss for tax purposes- joint ventures or partnerships | D21: 109
C22: Loss in equity of subsidiaries and affiliates | D22: 110
C23: Loss on disposal of assets | D23: 111
C24: Charitable donations | D24: 112
C25: Taxable Capital Gains | D25: 113
C26: Political Donations | D26: 114
C27: Deferred and prepaid expenses | D27: 116
C28: Scientific research expenditures deducted on financial statements | D28: 118 | F28: 1171333
C29: Capitalized interest | D29: 119
C30: Non-deductible club dues and fees | D30: 120 | F30: 50511
C31: Non-deductible meals and entertainment expense | D31: 121 | F31: 83667
C32: Non-deductible automobile expenses | D32: 122
C33: Non-deductible life insurance premiums | D33: 123
C34: Non-deductible company pension plans | D34: 124
C35: Tax reserves beginning of year | D35: 125 | E35: T13 | F35: ='T13 2029 Sch 13 Reserves '!G22 -> 0
C36: Reserves from financial statements- balance at end of year | D36: 126 | E36: T13 | F36: ='T13 2029 Sch 13 Reserves '!K43 -> 8413262
C37: Soft costs on construction and renovation of buildings | D37: 127
C38: Book loss on joint ventures or partnerships | D38: 205
C39: Capital items expensed | D39: 206
C40: Debt issue expense | D40: 208
C41: Development expenses claimed in current year | D41: 212
C42: Financing fees deducted in books | D42: 216
C43: Gain on settlement of debt | D43: 220
C44: Non-deductible advertising | D44: 226
C45: Non-deductible interest | D45: 227
C46: Non-deductible legal and accounting fees | D46: 228
C47: Recapture of SR&ED expenditures | D47: 231
C48: Share issue expense | D48: 235
C49: Write down of capital property | D49: 236
C50: Amounts received in respect of qualifying environment trust per paragraphs 12(1)(z.1) and 12(1)(z.2) | D50: 237
C51: Other Additions
C52: Interest Expensed on Capital Leases | D52: 295
C53: Realized Income from Deferred Credit Accounts | D53: 295
C54: Pensions | D54: 295
C55: Non-deductible penalties | D55: 295
C56: Vehicle amortization | D56: 295 | F56: 800431
C57: Other amortization-Renewables not included in Depreciation | D57: 295 | F57: 56226
C58: Co-op education credit-prior year | D58: 295 | F58: 3000
C59: Golf tournament expenses | D59: 295 | F59: 29273
C60: Reglatory assets(Deferred Variances)-decrease | D60: 295 | F60: 3953620
C61: ARO Accretion expense
C62: Capital Contributions Received (ITA 12(1)(x)) | F62: 36078284
C63: Lease Inducements Received (ITA 12(1)(x))
C64: Deferred Revenue (ITA 12(1)(a))
C65: Prior Year Investment Tax Credits received
C75: Total Additions | F75: =SUM(F16:F74) -> 81736348
C76: Deductions:
C77: Gain on disposal of assets per financial statements | D77: 401 | F77: 44476
C78: Dividends not taxable under section 83 | D78: 402 | E78: T8
C79: Capital cost allowance from Schedule 8 | D79: 403 | E79: T8 | F79: ='T8 2029 Sch 8 CCA'!AA43 -> 49527028.49
C80: Terminal loss from Schedule 8 | D80: 404
C81: Allowable business investment loss | D81: 406
C82: Deferred and prepaid expenses | D82: 409
C83: Scientific research expenses claimed in year | D83: 411 | E83: T13 | F83: 1662291
C84: Tax reserves end of year | D84: 413 | E84: T13 | F84: ='T13 2029 Sch 13 Reserves '!K22 -> 0
C85: Reserves from financial statements - balance at beginning of year | D85: 414 | F85: ='T13 2029 Sch 13 Reserves '!G43 -> 8168216
C86: Contributions to deferred income plans | D86: 416
C87: Book income of joint venture or partnership | D87: 305
C88: Equity in income from subsidiary or affiliates | D88: 306
C89: Other deductions | D89: 395
C90: Interest capitalized for accounting deducted for tax | D90: 395 | F90: 2667472
C91: Capital Lease Payments | D91: 395
C92: Non-taxable imputed interest income on deferral and variance accounts | D92: 395
C93: Pensions contributions capitalized for accounting | D93: 395 | F93: 1327153
C94: Current period employee benefit cost capitalized for accounting | D94: 395 | F94: 46923
C95: Current period sick leave cost capitalized for accounting | D95: 395 | F95: 9313
C96: Proceeds on sales recorded for accounting | D96: 395 | F96: 298910
C97: Deferred Revenue ICM | F97: 79620
C98: ARO Payments - Deductible for Tax when Paid
C99: ITA 13(7.4) Election - Capital Contributions Received | F99: 36078284
C100: ITA 13(7.4) Election - Apply Lease Inducement to cost of Leaseholds
C101: Deferred Revenue - ITA 20(1)(m) reserve
C102: Principal portion of lease payments
C103: Lease Inducement Book Amortization credit to income
C104: Financing fees for tax ITA 20(1)(e) and (e.1)
C113: Total Deductions | E113: calculated | F113: =SUM(F77:F112) -> 99909686.49
C115: NET INCOME FOR TAX PURPOSES | E115: calculated | F115: =SUM(F12,F75)-F113 -> 10317933.02
C117: Charitable donations | D117: 311 | F117: =F24 -> 0
C118: Taxable dividends received under section 112 or 113 | D118: 320 | E118: T4
C119: Non-capital losses of previous tax years from Schedule 4 | D119: 331 | E119: T4 | F119: ='T4 2029 Sch 4 Loss Cfwd'!I15 -> 10317933.02
C120: Net capital losses of previous tax years from Schedule 4 | D120: 332 | F120: ='T4 2029 Sch 4 Loss Cfwd'!I25 -> 0
C121: Limited partnership losses of previous tax years from Schedule 4 | D121: 335
G122: T0
C123: REGULATORY TAXABLE INCOME | E123: calculated | F123: =IF(F115<0,F115,F115-SUM(F117:F122)) -> 0

Sheet T4 2029 Sch 4 Loss Cfwd
C7: Schedule 4 Loss Carry Forward - Test Year
C9: Corporation Loss Continuity and Application
C11: Non-Capital Loss Carry Forward Deduction | F11: Working Paper Reference | G11: Total | H11: Non-Distribution Portion | I11: Utility Balance
C12: Actual/Estimated Bridge Year Carried Forward | F12: B4 | G12: ='T4 2028 Sch 4 Loss Cfwd'!I18 -> 11636451.67 | I12: =G12-H12 -> 11636451.67
C13: Amount to be used in Test Year and Price Cap Years | F13: T1 | G13: =IF('T1 2029 Sch 1 Taxable Income'!F115<0,0,IF('T1 2029 Sch 1 Taxable Income'!F115>G12,G12,'T1 2029 Sch 1 Taxable Income'!F115)) -> 10317933.02 | I13: =G13-H13 -> 10317933.02
C14: Number of years loss until next cost of service (i.e. years the loss is to be spread over)
C15: Amount to be used in Test Year | F15: calculated | G15: =IF(ISERROR(G13/G14),G13,G13/G14) -> 10317933.02 | I15: =G15-H15 -> 10317933.02
C16: Loss Carry Forward Generated in Test Year (if any) | F16: T1 | G16: =IF('T1 2029 Sch 1 Taxable Income'!F115<0,'T1 2029 Sch 1 Taxable Income'!F115*-1,0) -> 0 | I16: =G16-H16 -> 0
C17: Other Adjustments | I17: =G17-H17 -> 0
C18: Balance available for use in Future Years | F18: calculated | G18: =G12-G13+G16+G17 -> 1318518.647 | I18: =G18-H18 -> 1318518.647
C21: Net Capital Loss Carry Forward Deduction | G21: Total | H21: Non-Distribution Portion | I21: Utility Balance
C22: Actual/Estimated Bridge Year Carried Forward | F22: B4 | G22: ='B4 Sch 4 Loss Cfwd Bridge'!G23 -> 0 | I22: =G22-H22 -> 0
C23: Amount to be used in Test Year and Price Cap Years | I23: =G23-H23 -> 0
C24: Number of years loss until next cost of service (i.e. years the loss is to be spread over)
C25: Amount to be used in Test Year | F25: T1 | G25: =IF(ISERROR(G23/G24),G23,G23/G24) -> 0 | I25: =G25-H25 -> 0
C26: Loss Carry Forward Generated in Test Year (if any) | I26: =G26-H26 -> 0
C27: Other Adjustments | I27: =G27-H27 -> 0
C28: Balance available for use in Future Years | G28: =G22-G23+G26+G27 -> 0 | I28: =G28-H28 -> 0

Sheet T8 2029 Sch 8 CCA
B7: Schedule 8 CCA - Test Year
B9: (1) Class | C9: Class Description | D9: Working Paper Reference | E9: (2) Undepreciated capital cost (UCC) at the beginning of the test year | F9: (3) Cost of acquisitions during the year (new property must be available for use, except CWIP) | G9: (4) Cost of acquisitions from column 3 that are designated immediate expensing property (DIEP) | H9: (5) Adjustments and transfers (enter amounts that will reduce the UCC as negatives) | I9: (6) Amount from column 5 that is assistance received or receivable during the year for a property, subsequent to its disposition | J9: (7) Amount from column 5 that is repaid during the year for a property, subsequent to its disposition | K9: (8) Proceeds of dispositions | L9: (9) Proceeds of dispositions of the DIEP (enter amount from column 8 that relates to the DIEP reported in column 4) | M9: (10) UCC (column 2 plus column 3 plus or minus column 5 minus column 8) | N9: (11) UCC of the DIEP (enter the UCC amount that relates to the DIEP reported in column 4) | O9: (12) Immediate expensing | P9: (13) Cost of acquisitions on remainder of Class (column 3 minus column 4 plus column 11 minus column 12) | Q9: (14) Cost of acquisitions from column 13 that are accelerated investment incentive properties (AIIP) or properties included in Classes 54 to 56 | R9: (15) Remaining UCC (column 10 minus column 12) (if negative, enter "0") | S9: (16) Proceeds of disposition available to reduce the UCC of AIIP and property included in Classes 54 to 56 (column 8 minus column 9 plus column 6 minus column 13 plus column 14 minus column 7) (if negative, enter "0") | T9: (17) Net capital cost additions of AIIP and property included in Classes 54 to 56 acquired during the year (column 14 minus column 16) (if negative, enter "0") | U9: Relevant factor1 | V9: (18) UCC adjustment for AIIP and property included in Classes 54 to 56 acquired during the year (column 17 multiplied by the relevant factor) | W9: (19) UCC adjustment for non-AIIP and property included in Classes 54 to 56 (0.5 multiplied by the result of column 13 minus column 14 minus column 6 plus column 7 minus column 8 plus column 9) (if negative, enter "0") | X9: (20) CCA Rate % | Y9: (21) Recapture of CCA | Z9: (22) Terminal Loss | AA9: (23) CCA (for declining balance method, the result of column 15 plus column 18 minus column 19, multiplied by column 20 or a lower amount, plus column 12)) | AB9: (24) UCC at the end of the test year (column 10 minus column 23)
B10: =IF(ISBLANK('B8 Sch 8 CCA Bridge'!B10), "", 'B8 Sch 8 CCA Bridge'!B10) -> 1 | C10: =IF(ISBLANK('B8 Sch 8 CCA Bridge'!C10), "", 'B8 Sch 8 CCA Bridge'!C10) -> Buildings, Distribution System (acq'd post 1987) | D10: B8 | E10: =IF(ISBLANK('T8 2028 Sch 8 CCA'!AA10), "", 'T8 2028 Sch 8 CCA'!AB10) -> 74605629.51 | M10: =IFERROR(E10+F10+H10-K10,0) -> 74605629.51 | P10: =+F10-G10+N10-O10 -> 0 | R10: =IF((M10-O10)<0,0,M10-O10) -> 74605629.51 | S10: =IF((K10-L10+I10-P10+Q10-J10)<0,0,(K10-L10+I10-P10+Q10-J10)) -> 0 | T10: =IF((Q10-S10)<0,0,(Q10-S10)) -> 0 | U10: 0 | V10: =T10*U10 -> 0 | W10: =IF((0.5*(P10-Q10-I10+J10-K10+L10))<0,0,(0.5*(P10-Q10-I10+J10-K10+L10))) -> 0 | X10: 0.04 | AA10: =IF(OR(R10<=0,Z10>0),0,(R10+V10-W10)*X10) -> 2984225.18 | AB10: =IF(M10<0,0,M10-Z10-AA10) -> 71621404.33
B11: =IF(ISBLANK('B8 Sch 8 CCA Bridge'!B11), "", 'B8 Sch 8 CCA Bridge'!B11) -> 1b | C11: =IF(ISBLANK('B8 Sch 8 CCA Bridge'!C11), "", 'B8 Sch 8 CCA Bridge'!C11) -> Non-Residential Buildings [Reg. 1100(1)(a.1) election] | D11: B8 | E11: =IF(ISBLANK('T8 2028 Sch 8 CCA'!AA11), "", 'T8 2028 Sch 8 CCA'!AB11) -> 14525295.01 | F11: 5418316 | M11: =IFERROR(E11+F11+H11-K11,"") -> 19943611.01 | P11: =+F11-G11+N11-O11 -> 5418316 | R11: =IF((M11-O11)<0,0,M11-O11) -> 19943611.01 | S11: =IF((K11-L11+I11-P11+Q11-J11)<0,0,(K11-L11+I11-P11+Q11-J11)) -> 0 | T11: =IF((Q11-S11)<0,0,(Q11-S11)) -> 0 | U11: 0 | V11: =T11*U11 -> 0 | W11: =IF((0.5*(P11-Q11-I11+J11-K11+L11))<0,0,(0.5*(P11-Q11-I11+J11-K11+L11))) -> 2709158 | X11: 0.06 | AA11: =IF(OR(R11<=0,Z11>0),0,(R11+V11-W11)*X11) -> 1034067.181 | AB11: =IF(M11<0,0,M11-Z11-AA11) -> 18909543.83
B12: =IF(ISBLANK('B8 Sch 8 CCA Bridge'!B12), "", 'B8 Sch 8 CCA Bridge'!B12) -> 2 | C12: =IF(ISBLANK('B8 Sch 8 CCA Bridge'!C12), "", 'B8 Sch 8 CCA Bridge'!C12) -> Distribution System (acq'd pre 1988) | D12: B8 | E12: =IF(ISBLANK('T8 2028 Sch 8 CCA'!AA12), "", 'T8 2028 Sch 8 CCA'!AB12) -> 2507540.571 | M12: 2507540.571 | P12: 0 | R12: 2507540.571 | S12: 0 | T12: 0 | V12: 0 | W12: 0 | X12: 0.06 | AA12: 150452.4343 | AB12: 2357088.137
B13: =IF(ISBLANK('B8 Sch 8 CCA Bridge'!B13), "", 'B8 Sch 8 CCA Bridge'!B13) -> 3 | C13: =IF(ISBLANK('B8 Sch 8 CCA Bridge'!C13), "", 'B8 Sch 8 CCA Bridge'!C13) -> Buildings (acq'd pre 1988) | D13: B8 | E13: =IF(ISBLANK('T8 2028 Sch 8 CCA'!AA13), "", 'T8 2028 Sch 8 CCA'!AB13) -> 0 | M13: 0 | P13: 0 | R13: 0 | S13: 0 | T13: 0 | V13: 0 | W13: 0 | X13: 0.05 | AA13: 0 | AB13: 0
B14: =IF(ISBLANK('B8 Sch 8 CCA Bridge'!B14), "", 'B8 Sch 8 CCA Bridge'!B14) -> 6 | C14: =IF(ISBLANK('B8 Sch 8 CCA Bridge'!C14), "", 'B8 Sch 8 CCA Bridge'!C14) -> Certain Buildings; Fences | D14: B8 | E14: =IF(ISBLANK('T8 2028 Sch 8 CCA'!AA14), "", 'T8 2028 Sch 8 CCA'!AB14) -> 0 | M14: 0 | P14: 0 | R14: 0 | S14: 0 | T14: 0 | U14: 0 | V14: 0 | W14: 0 | X14: 0.1 | AA14: 0 | AB14: 0
B15: =IF(ISBLANK('B8 Sch 8 CCA Bridge'!B15), "", 'B8 Sch 8 CCA Bridge'!B15) -> 8 | C15: =IF(ISBLANK('B8 Sch 8 CCA Bridge'!C15), "", 'B8 Sch 8 CCA Bridge'!C15) -> General Office Equipment, Furniture, Fixtures | D15: B8 | E15: =IF(ISBLANK('T8 2028 Sch 8 CCA'!AA15), "", 'T8 2028 Sch 8 CCA'!AB15) -> 8188658.56 | F15: 2870752 | M15: 11059410.56 | P15: 2870752 | R15: 11059410.56 | S15: 0 | T15: 0 | U15: 0 | V15: 0 | W15: 1435376 | X15: 0.2 | AA15: 1924806.912 | AB15: 9134603.648
B16: =IF(ISBLANK('B8 Sch 8 CCA Bridge'!B16), "", 'B8 Sch 8 CCA Bridge'!B16) -> 10 | C16: =IF(ISBLANK('B8 Sch 8 CCA Bridge'!C16), "", 'B8 Sch 8 CCA Bridge'!C16) -> Motor Vehicles, Fleet | D16: B8 | E16: =IF(ISBLANK('T8 2028 Sch 8 CCA'!AA16), "", 'T8 2028 Sch 8 CCA'!AB16) -> 6513211.716 | F16: 4637444 | K16: 44476 | M16: 11106179.72 | P16: 4637444 | R16: 11106179.72 | S16: 0 | T16: 0 | U16: 0 | V16: 0 | W16: 2296484 | X16: 0.3 | AA16: =IF(OR(R16<=0,Z16>0),0,(R16+V16-W16)*X16) -> 2642908.715 | AB16: 8463271.001
B17: =IF(ISBLANK('B8 Sch 8 CCA Bridge'!B17), "", 'B8 Sch 8 CCA Bridge'!B17) -> 10.1 | C17: =IF(ISBLANK('B8 Sch 8 CCA Bridge'!C17), "", 'B8 Sch 8 CCA Bridge'!C17) -> Certain Automobiles | D17: B8 | E17: =IF(ISBLANK('T8 2028 Sch 8 CCA'!AA17), "", 'T8 2028 Sch 8 CCA'!AB17) -> 128.282 | M17: 128.282 | P17: 0 | R17: 128.282 | S17: 0 | T17: 0 | U17: 0 | V17: 0 | W17: 0 | X17: 0.3 | AA17: 38.4846 | AB17: 89.7974
B18: =IF(ISBLANK('B8 Sch 8 CCA Bridge'!B18), "", 'B8 Sch 8 CCA Bridge'!B18) -> 12 | C18: =IF(ISBLANK('B8 Sch 8 CCA Bridge'!C18), "", 'B8 Sch 8 CCA Bridge'!C18) -> Computer Application Software (Non-Systems) | D18: B8 | E18: =IF(ISBLANK('T8 2028 Sch 8 CCA'!AA18), "", 'T8 2028 Sch 8 CCA'!AB18) -> 456503 | F18: 1763385 | M18: 2219888 | P18: 1763385 | R18: 2219888 | S18: 0 | T18: 0 | U18: 0 | V18: 0 | W18: 881692.5 | X18: 1 | AA18: 1338195.5 | AB18: 881692.5
B19: 13 1 | C19: =IF(ISBLANK('B8 Sch 8 CCA Bridge'!C19), "", 'B8 Sch 8 CCA Bridge'!C19) -> Lease # 1 | D19: B8 | E19: =IF(ISBLANK('T8 2028 Sch 8 CCA'!AA19), "", 'T8 2028 Sch 8 CCA'!AB19) -> 0 | M19: 0 | P19: 0 | R19: 0 | S19: 0 | T19: 0 | U19: 0 | V19: 0 | W19: 0 | X19: NA | AA19: 0 | AB19: 0
B20: 13 2 | C20: =IF(ISBLANK('B8 Sch 8 CCA Bridge'!C20), "", 'B8 Sch 8 CCA Bridge'!C20) -> Lease # 2 | D20: B8 | E20: =IF(ISBLANK('T8 2028 Sch 8 CCA'!AA20), "", 'T8 2028 Sch 8 CCA'!AB20) -> 0 | M20: 0 | P20: 0 | R20: 0 | S20: 0 | T20: 0 | U20: 0 | V20: 0 | W20: 0 | X20: NA | AA20: 0 | AB20: 0
B21: 13 3 | C21: =IF(ISBLANK('B8 Sch 8 CCA Bridge'!C21), "", 'B8 Sch 8 CCA Bridge'!C21) -> Lease # 3 | D21: B8 | E21: =IF(ISBLANK('T8 2028 Sch 8 CCA'!AA21), "", 'T8 2028 Sch 8 CCA'!AB21) -> 0 | M21: 0 | P21: 0 | R21: 0 | S21: 0 | T21: 0 | U21: 0 | V21: 0 | W21: 0 | X21: NA | AA21: 0 | AB21: 0
B22: 13 4 | C22: =IF(ISBLANK('B8 Sch 8 CCA Bridge'!C22), "", 'B8 Sch 8 CCA Bridge'!C22) -> Lease # 4 | D22: B8 | E22: =IF(ISBLANK('T8 2028 Sch 8 CCA'!AA22), "", 'T8 2028 Sch 8 CCA'!AB22) -> 0 | M22: 0 | P22: 0 | R22: 0 | S22: 0 | T22: 0 | U22: 0 | V22: 0 | W22: 0 | X22: NA | AA22: 0 | AB22: 0
B23: =IF(ISBLANK('B8 Sch 8 CCA Bridge'!B23), "", 'B8 Sch 8 CCA Bridge'!B23) -> 14 | C23: =IF(ISBLANK('B8 Sch 8 CCA Bridge'!C23), "", 'B8 Sch 8 CCA Bridge'!C23) -> Limited Period Patents, Franchises, Concessions or Licences | D23: B8 | E23: =IF(ISBLANK('T8 2028 Sch 8 CCA'!AA23), "", 'T8 2028 Sch 8 CCA'!AB23) -> 0 | M23: 0 | P23: 0 | R23: 0 | S23: 0 | T23: 0 | U23: 0 | V23: 0 | W23: 0 | X23: NA | AA23: 0 | AB23: 0
B24: =IF(ISBLANK('B8 Sch 8 CCA Bridge'!B24), "", 'B8 Sch 8 CCA Bridge'!B24) -> 14.1 | C24: Eligible Capital Property (acq'd pre Jan 1, 2017) | D24: B8 | E24: =IF(ISBLANK('T8 2028 Sch 8 CCA'!AA24), "", 'T8 2028 Sch 8 CCA'!AB24) -> 2073341.169 | M24: 2073341.169 | P24: 0 | R24: =IF((M24-O24)<0,0,M24-O24) -> 2073341.169 | S24: =IF((K24-L24+I24-P24+Q24-J24)<0,0,(K24-L24+I24-P24+Q24-J24)) -> 0 | T24: 0 | V24: 0 | W24: 0 | X24: 0.07 | AA24: 145133.8818 | AB24: 1928207.287
B25: =IF(ISBLANK('B8 Sch 8 CCA Bridge'!B25), "", 'B8 Sch 8 CCA Bridge'!B25) -> 14.1 | C25: Eligible Capital Property (acq'd post Jan 1, 2017) | D25: B8 | E25: =IF(ISBLANK('T8 2028 Sch 8 CCA'!AA25), "", 'T8 2028 Sch 8 CCA'!AB25) -> 20505174.27 | M25: 20505174.27 | P25: 0 | R25: 20505174.27 | S25: 0 | T25: 0 | U25: 0 | V25: 0 | W25: 0 | X25: 0.05 | AA25: 1025258.713 | AB25: 19479915.55
B26: =IF(ISBLANK('B8 Sch 8 CCA Bridge'!B26), "", 'B8 Sch 8 CCA Bridge'!B26) -> 17 | C26: =IF(ISBLANK('B8 Sch 8 CCA Bridge'!C26), "", 'B8 Sch 8 CCA Bridge'!C26) -> Elec. Generation Equip. (Non-Bldng, acq'd post Feb 27/00); Roads, Lots, Storage | D26: B8 | E26: =IF(ISBLANK('T8 2028 Sch 8 CCA'!AA26), "", 'T8 2028 Sch 8 CCA'!AB26) -> 115998.0366 | M26: 115998.0366 | P26: 0 | R26: 115998.0366 | S26: 0 | T26: 0 | U26: 0 | V26: 0 | W26: 0 | X26: 0.08 | AA26: 9279.842929 | AB26: 106718.1937
B27: =IF(ISBLANK('B8 Sch 8 CCA Bridge'!B27), "", 'B8 Sch 8 CCA Bridge'!B27) -> 42 | C27: =IF(ISBLANK('B8 Sch 8 CCA Bridge'!C27), "", 'B8 Sch 8 CCA Bridge'!C27) -> Fibre Optic Cable | D27: B8 | E27: =IF(ISBLANK('T8 2028 Sch 8 CCA'!AA27), "", 'T8 2028 Sch 8 CCA'!AB27) -> 606.51008 | M27: 606.51008 | P27: 0 | R27: 606.51008 | S27: 0 | T27: 0 | U27: 0 | V27: 0 | W27: 0 | X27: 0.12 | AA27: 72.7812096 | AB27: 533.7288704
B28: =IF(ISBLANK('B8 Sch 8 CCA Bridge'!B28), "", 'B8 Sch 8 CCA Bridge'!B28) -> 43.1 | C28: =IF(ISBLANK('B8 Sch 8 CCA Bridge'!C28), "", 'B8 Sch 8 CCA Bridge'!C28) -> Certain Clean Energy/Energy-Efficient Generation Equipment | D28: B8 | E28: =IF(ISBLANK('T8 2028 Sch 8 CCA'!AA28), "", 'T8 2028 Sch 8 CCA'!AB28) -> 0 | M28: 0 | P28: 0 | R28: 0 | S28: 0 | T28: 0 | U28: 1.5 | V28: 0 | W28: 0 | X28: 0.3 | AA28: 0 | AB28: 0
B29: =IF(ISBLANK('B8 Sch 8 CCA Bridge'!B29), "", 'B8 Sch 8 CCA Bridge'!B29) -> 43.2 | C29: =IF(ISBLANK('B8 Sch 8 CCA Bridge'!C29), "", 'B8 Sch 8 CCA Bridge'!C29) -> Certain Clean Energy/Energy-Efficient Generation Equipment | D29: B8 | E29: =IF(ISBLANK('T8 2028 Sch 8 CCA'!AA29), "", 'T8 2028 Sch 8 CCA'!AB29) -> 36.25 | M29: 36.25 | P29: 0 | R29: 36.25 | S29: 0 | T29: 0 | U29: 0.5 | V29: 0 | W29: 0 | X29: 0.5 | AA29: 18.125 | AB29: 18.125
B30: =IF(ISBLANK('B8 Sch 8 CCA Bridge'!B30), "", 'B8 Sch 8 CCA Bridge'!B30) -> 45 | C30: =IF(ISBLANK('B8 Sch 8 CCA Bridge'!C30), "", 'B8 Sch 8 CCA Bridge'!C30) -> Computers & System Software (acq'd post Mar 22/04 and pre Mar 19/07) | D30: B8 | E30: =IF(ISBLANK('T8 2028 Sch 8 CCA'!AA30), "", 'T8 2028 Sch 8 CCA'!AB30) -> 1.9965 | M30: 1.9965 | P30: 0 | R30: 1.9965 | S30: 0 | T30: 0 | V30: 0 | W30: 0 | X30: 0.45 | AA30: 0.898425 | AB30: 1.098075
B31: =IF(ISBLANK('B8 Sch 8 CCA Bridge'!B31), "", 'B8 Sch 8 CCA Bridge'!B31) -> 46 | C31: =IF(ISBLANK('B8 Sch 8 CCA Bridge'!C31), "", 'B8 Sch 8 CCA Bridge'!C31) -> Data Network Infrastructure Equipment (acq'd post Mar 22/04) | D31: B8 | E31: =IF(ISBLANK('T8 2028 Sch 8 CCA'!AA31), "", 'T8 2028 Sch 8 CCA'!AB31) -> 739799.55 | M31: 739799.55 | P31: 0 | R31: 739799.55 | S31: 0 | T31: 0 | U31: 0 | V31: 0 | W31: 0 | X31: 0.3 | AA31: 221939.865 | AB31: 517859.685
B32: =IF(ISBLANK('B8 Sch 8 CCA Bridge'!B32), "", 'B8 Sch 8 CCA Bridge'!B32) -> 47 | C32: =IF(ISBLANK('B8 Sch 8 CCA Bridge'!C32), "", 'B8 Sch 8 CCA Bridge'!C32) -> Distribution System (acq'd post Feb 22/05) | D32: B8 | E32: =IF(ISBLANK('T8 2028 Sch 8 CCA'!AA32), "", 'T8 2028 Sch 8 CCA'!AB32) -> 387751539.9 | F32: 113094961 | K32: 298910 | M32: 500547590.9 | P32: 113094961 | R32: 500547590.9 | S32: 0 | T32: 0 | U32: 0 | V32: 0 | W32: 56398025.5 | X32: 0.08 | AA32: 35531965.23 | AB32: 465015625.7
B33: =IF(ISBLANK('B8 Sch 8 CCA Bridge'!B33), "", 'B8 Sch 8 CCA Bridge'!B33) -> 50 | C33: =IF(ISBLANK('B8 Sch 8 CCA Bridge'!C33), "", 'B8 Sch 8 CCA Bridge'!C33) -> General Purpose Computer Hardware & Software (acq'd post Mar 18/07) | D33: B8 | E33: =IF(ISBLANK('T8 2028 Sch 8 CCA'!AA33), "", 'T8 2028 Sch 8 CCA'!AB33) -> 2848985.449 | F33: 3460810 | M33: 6309795.449 | P33: 3460810 | R33: 6309795.449 | S33: 0 | T33: 0 | U33: 0 | V33: 0 | W33: 1730405 | X33: 0.55 | AA33: 2518664.747 | AB33: 3791130.702
B34: =IF(ISBLANK('B8 Sch 8 CCA Bridge'!B34), "", 'B8 Sch 8 CCA Bridge'!B34) -> 95 | C34: =IF(ISBLANK('B8 Sch 8 CCA Bridge'!C34), "", 'B8 Sch 8 CCA Bridge'!C34) -> CWIP | D34: B8 | E34: =IF(ISBLANK('T8 2028 Sch 8 CCA'!AA34), "", 'T8 2028 Sch 8 CCA'!AB34) -> 120793590 | H34: 12519906 | M34: 133313496 | P34: 0 | R34: 133313496 | S34: 0 | T34: 0 | U34: 0 | V34: 0 | W34: 0 | X34: 0 | AA34: 0 | AB34: 133313496
B35: =IF(ISBLANK('B8 Sch 8 CCA Bridge'!B35), "", 'B8 Sch 8 CCA Bridge'!B35) ->  | C35: =IF(ISBLANK('B8 Sch 8 CCA Bridge'!C35), "", 'B8 Sch 8 CCA Bridge'!C35) ->  | D35: B8 | E35: =IF(ISBLANK('T8 2028 Sch 8 CCA'!AA35), "", 'T8 2028 Sch 8 CCA'!AB35) -> 0 | M35: 0 | P35: 0 | R35: 0 | S35: 0 | T35: 0 | V35: 0 | W35: 0 | AA35: 0 | AB35: 0
B36: =IF(ISBLANK('B8 Sch 8 CCA Bridge'!B36), "", 'B8 Sch 8 CCA Bridge'!B36) ->  | C36: =IF(ISBLANK('B8 Sch 8 CCA Bridge'!C36), "", 'B8 Sch 8 CCA Bridge'!C36) ->  | D36: B8 | E36: =IF(ISBLANK('T8 2028 Sch 8 CCA'!AA36), "", 'T8 2028 Sch 8 CCA'!AB36) -> 0 | M36: 0 | P36: 0 | R36: 0 | S36: 0 | T36: 0 | V36: 0 | W36: 0 | AA36: 0 | AB36: 0
B37: =IF(ISBLANK('B8 Sch 8 CCA Bridge'!B37), "", 'B8 Sch 8 CCA Bridge'!B37) ->  | C37: =IF(ISBLANK('B8 Sch 8 CCA Bridge'!C37), "", 'B8 Sch 8 CCA Bridge'!C37) ->  | D37: B8 | E37: =IF(ISBLANK('T8 2028 Sch 8 CCA'!AA37), "", 'T8 2028 Sch 8 CCA'!AB37) -> 0 | M37: 0 | P37: 0 | R37: 0 | S37: 0 | T37: 0 | V37: 0 | W37: 0 | AA37: 0 | AB37: 0
B38: =IF(ISBLANK('B8 Sch 8 CCA Bridge'!B38), "", 'B8 Sch 8 CCA Bridge'!B38) ->  | C38: =IF(ISBLANK('B8 Sch 8 CCA Bridge'!C38), "", 'B8 Sch 8 CCA Bridge'!C38) ->  | D38: B8 | E38: =IF(ISBLANK('T8 2028 Sch 8 CCA'!AA38), "", 'T8 2028 Sch 8 CCA'!AB38) -> 0 | M38: 0 | P38: 0 | R38: 0 | S38: 0 | T38: 0 | V38: 0 | W38: 0 | AA38: 0 | AB38: 0
B39: =IF(ISBLANK('B8 Sch 8 CCA Bridge'!B39), "", 'B8 Sch 8 CCA Bridge'!B39) ->  | C39: =IF(ISBLANK('B8 Sch 8 CCA Bridge'!C39), "", 'B8 Sch 8 CCA Bridge'!C39) ->  | D39: B8 | E39: =IF(ISBLANK('T8 2028 Sch 8 CCA'!AA39), "", 'T8 2028 Sch 8 CCA'!AB39) -> 0 | M39: 0 | P39: 0 | R39: 0 | S39: 0 | T39: 0 | V39: 0 | W39: 0 | AA39: 0 | AB39: 0
B40: =IF(ISBLANK('B8 Sch 8 CCA Bridge'!B40), "", 'B8 Sch 8 CCA Bridge'!B40) ->  | C40: =IF(ISBLANK('B8 Sch 8 CCA Bridge'!C40), "", 'B8 Sch 8 CCA Bridge'!C40) ->  | D40: B8 | E40: =IF(ISBLANK('T8 2028 Sch 8 CCA'!AA40), "", 'T8 2028 Sch 8 CCA'!AB40) -> 0 | M40: 0 | P40: 0 | R40: 0 | S40: 0 | T40: 0 | V40: 0 | W40: 0 | AA40: 0 | AB40: 0
B41: =IF(ISBLANK('B8 Sch 8 CCA Bridge'!B41), "", 'B8 Sch 8 CCA Bridge'!B41) ->  | C41: =IF(ISBLANK('B8 Sch 8 CCA Bridge'!C41), "", 'B8 Sch 8 CCA Bridge'!C41) ->  | D41: B8 | E41: =IF(ISBLANK('T8 2028 Sch 8 CCA'!AA41), "", 'T8 2028 Sch 8 CCA'!AB41) -> 0 | M41: 0 | P41: 0 | R41: 0 | S41: 0 | T41: 0 | V41: 0 | W41: 0 | AA41: 0 | AB41: =IF(M41<0,0,M41-Z41-AA41) -> 0
B42: =IF(ISBLANK('B8 Sch 8 CCA Bridge'!B42), "", 'B8 Sch 8 CCA Bridge'!B42) ->  | C42: =IF(ISBLANK('B8 Sch 8 CCA Bridge'!C42), "", 'B8 Sch 8 CCA Bridge'!C42) ->  | D42: B8 | E42: =IF(ISBLANK('T8 2028 Sch 8 CCA'!AA42), "", 'T8 2028 Sch 8 CCA'!AB42) -> 0 | M42: =IFERROR(E42+F42+H42-K42,"") -> 0 | P42: 0 | R42: 0 | S42: 0 | T42: 0 | V42: 0 | W42: 0 | AA42: 0 | AB42: 0
C43: TOTALS | E43: =SUM(E10:E42) -> 641626039.8 | F43: =SUM(F10:F42) -> 131245668 | G43: =SUM(G10:G42) -> 0 | H43: =SUM(H10:H42) -> 12519906 | I43: =SUM(I10:I42) -> 0 | J43: 0 | K43: =SUM(K10:K42) -> 343386 | L43: =SUM(L10:L42) -> 0 | M43: =SUM(M10:M42) -> 785048227.8 | N43: 0 | O43: 0 | P43: 131245668 | Q43: =SUM(Q10:Q42) -> 0 | R43: 785048227.8 | S43: 0 | T43: 0 | V43: =SUM(V10:V42) -> 0 | W43: 65451141 | Y43: =SUM(Y10:Y42) -> 0 | Z43: =SUM(Z10:Z42) -> 0 | AA43: =SUM(AA10:AA42) -> 49527028.49 | AB43: =SUM(AB10:AB42) -> 735521199.3
B45: For additional details and guidance on calculating amounts in Schedule 8, refer to the notes to the Canada Revenue Agency published Schedule 8 - Capital Cost Allowance (CCA) (2018 and later tax years):
B46: https://www.canada.ca/content/dam/cra-arc/formspubs/pbg/t2sch8/t2sch8-19e.pdf
B50: 1. Please note that Subsection 1100(2) of the Income Tax Regulations provide undepreciated capital cost adjustment factors of eligible zero-emission vehicles and equipment under Class 53, Class 54, Class 55 and Class 56,
B51: please assess the applicability of these adjustments and incorporate them in the PILs model as applicable.

Sheet T13 2029 Sch 13 Reserves
C7: Schedule 13 Tax Reserves - Test Year
C9: Continuity of Reserves
I10: Test Year Adjustments
C11: Description | D11: Working Paper Reference | E11: Bridge Year | F11: Eliminate Amounts Not Relevant for Test Year | G11: Adjusted Utility Balance | I11: Additions | J11: Disposals | K11: Balance for Test Year | M11: Change During the Year | N11: Disallowed Expenses
C13: Capital Gains Reserves ss.40(1) | D13: B13 | E13: ='B13 Sch 13 Reserves Bridge'!K13 -> 0 | G13: =SUM(E13:F13) -> 0 | K13: =G13+I13-J13 -> 0 | M13: =+K13-G13 -> 0
C14: Tax Reserves Not Deducted for accounting purposes
C15: Reserve for doubtful accounts ss. 20(1)(l) | D15: B13 | E15: ='B13 Sch 13 Reserves Bridge'!K15 -> 0 | G15: =SUM(E15:F15) -> 0 | K15: =G15+I15-J15 -> 0 | M15: =+K15-G15 -> 0
C16: Reserve for goods and services not delivered ss. 20(1)(m) | D16: B13 | E16: ='B13 Sch 13 Reserves Bridge'!K16 -> 0 | G16: 0 | K16: 0 | M16: 0
C17: Reserve for unpaid amounts ss. 20(1)(n) | D17: B13 | E17: ='B13 Sch 13 Reserves Bridge'!K17 -> 0 | G17: 0 | K17: 0 | M17: 0
C18: Debt & Share Issue Expenses ss. 20(1)(e) | D18: B13 | E18: ='B13 Sch 13 Reserves Bridge'!K18 -> 0 | G18: 0 | K18: 0 | M18: 0
C19: Other tax reserves | D19: B13 | E19: ='B13 Sch 13 Reserves Bridge'!K19 -> 0 | G19: 0 | K19: 0 | M19: 0
E20: ='B13 Sch 13 Reserves Bridge'!K20 -> 0 | G20: 0 | K20: 0 | M20: 0
E21: ='B13 Sch 13 Reserves Bridge'!K21 -> 0 | G21: 0 | K21: 0 | M21: 0
C22: Total | E22: =SUM(E15:E21) -> 0 | F22: 0 | G22: 0 | H22: T1 | I22: 0 | J22: 0 | K22: 0 | L22: T1 | M22: 0 | N22: =SUM(N15:N21) -> 0
E23: 0
C24: Financial Statement Reserves (not deductible for Tax Purposes)
C25: General Reserve for Inventory Obsolescence (non-specific) | D25: B13 | E25: ='B13 Sch 13 Reserves Bridge'!K25 -> 0 | G25: =SUM(E25:F25) -> 0 | K25: =G25+I25-J25 -> 0 | M25: =+K25-G25 -> 0
C26: General reserve for bad debts | D26: B13 | E26: ='B13 Sch 13 Reserves Bridge'!K26 -> 0 | G26: 0 | K26: 0 | M26: 0
C27: Accrued Employee Future Benefits: | D27: B13 | E27: ='B13 Sch 13 Reserves Bridge'!K27 -> 0 | G27: 0 | K27: 0 | M27: 0
C28: - Medical and Life Insurance | D28: B13 | E28: ='B13 Sch 13 Reserves Bridge'!K28 -> 0 | G28: 0 | K28: 0 | M28: 0
C29: -Short & Long-term Disability | D29: B13 | E29: ='B13 Sch 13 Reserves Bridge'!K29 -> 0 | G29: 0 | K29: 0 | M29: 0
C30: -Accmulated Sick Leave | D30: B13 | E30: ='T13 2028 Sch 13 Reserves'!K30 -> 1034812 | G30: 1034812 | I30: 31044 | K30: 1065856 | M30: 31044
C31: - Termination Cost | D31: B13 | E31: ='B13 Sch 13 Reserves Bridge'!K31 -> 0 | G31: 0 | K31: 0 | M31: 0
C32: - Other Post-Employment Benefits | D32: B13 | E32: ='T13 2028 Sch 13 Reserves'!K32 -> 7133404 | G32: 7133404 | I32: 214002 | K32: 7347406 | M32: 214002
C33: Provision for Environmental Costs | D33: B13 | E33: ='B13 Sch 13 Reserves Bridge'!K33 -> 0 | G33: 0 | K33: 0 | M33: 0
C34: Restructuring Costs | D34: B13 | E34: ='B13 Sch 13 Reserves Bridge'!K34 -> 0 | G34: 0 | K34: 0 | M34: 0
C35: Accrued Contingent Litigation Costs | D35: B13 | E35: ='B13 Sch 13 Reserves Bridge'!K35 -> 0 | G35: 0 | K35: 0 | M35: 0
C36: Accrued Self-Insurance Costs | D36: B13 | E36: ='B13 Sch 13 Reserves Bridge'!K36 -> 0 | G36: 0 | K36: 0 | M36: 0
C37: Other Contingent Liabilities | D37: B13 | E37: ='B13 Sch 13 Reserves Bridge'!K37 -> 0 | G37: 0 | K37: 0 | M37: 0
C38: Bonuses Accrued and Not Paid Within 180 Days of Year-End ss. 78(4) | D38: B13 | E38: ='B13 Sch 13 Reserves Bridge'!K38 -> 0 | G38: 0 | K38: 0 | M38: 0
C39: Unpaid Amounts to Related Person and Not Paid Within 3 Taxation Years ss. 78(1) | D39: B13 | E39: ='B13 Sch 13 Reserves Bridge'!K39 -> 0 | G39: 0 | K39: 0 | M39: 0
C40: Other | D40: B13 | E40: ='B13 Sch 13 Reserves Bridge'!K40 -> 0 | G40: 0 | K40: 0 | M40: 0
E41: ='B13 Sch 13 Reserves Bridge'!K41 -> 0 | G41: 0 | K41: 0 | M41: 0
E42: ='B13 Sch 13 Reserves Bridge'!K42 -> 0 | G42: 0 | K42: 0 | M42: 0
C43: Total | E43: =SUM(E25:E42) -> 8168216 | F43: 0 | G43: 8168216 | H43: T1 | I43: 245046 | J43: 0 | K43: 8413262 | L43: T1 | M43: 245046 | N43: 0
E44: 0

Sheet T0 2030 PILs,Tax Provision
T1: Rate Base | U1: Federal Tax Rate
T2: 500000 | U2: 0.11
T3: 10000000 | U3: 0.11
T4: =T3+100000 -> 10100000 | U4: 0.11
T5: =T4+100000 -> 10200000 | U5: 0.11
B6: PILs Tax Provision - Test Year | T6: 10300000 | U6: 0.11
T7: 10400000 | U7: 0.11
J8: Wires Only | T8: 10500000 | U8: 0.11
T9: 10600000 | U9: 0.11
C10: Regulatory Taxable Income | I10: T1 | J10: ='T1 2030 Sch 1 Taxable Income'!F123 -> 8343531.392 | K10: A | T10: 10700000 | U10: 0.11
T11: 10800000 | U11: 0.11
D12: Tax Rate | E12: Small Business Rate (If Applicable) | F12: Taxes Payable | G12: Effective Tax Rate
C13: Ontario (Max 11.5%) | D13: 0.115 | E13: =IF(ratebase<=10000000, ontario_SB, IF(ratebase>=50000000, ontariotax, IF(AND(ratebase>10000000, ratebase<50000000), ontario_SB+ (ratebase - 10000000)*(ontariotax - ontario_SB)/(50000000-10000000)))) -> 0.115 | F13: =IF(J10<500000,J10,500000)*E13+IF(J10>500000,J10-500000,0)*D13 -> 959506.11 | G13: =IF(F13=0,0,+F13/J10) -> 0.115 | H13: B
C14: Federal (Max 15%) | D14: 0.15 | E14: =IF(ratebase<=10000000, Fed_SB_Test, IF(ratebase>=50000000, FedTax, IF(AND(ratebase>10000000, ratebase<50000000), Fed_SB_Test+ (ratebase - 10000000)*(FedTax -Fed_SB_Test)/(50000000-10000000)))) -> 0.15 | F14: =E14*IF(J10<500000,J10,500000)+IF(J10>500000,J10-500000,0)*D14 -> 1251529.709 | G14: =IF(F14=0,0,+F14/J10) -> 0.15 | H14: C
C16: Combined effective tax rate (Max 26.5%) | J16: =SUM(G13:G14) -> 0.265 | K16: D = B + C | T16: =#REF!+100000 ->  | U16: =#REF!+0.112% -> 
U17: =U16+0.112% -> 
C19: Total Income Taxes | J19: =J10*J16 -> 2211035.819 | K19: E = A * D
U20: =U19+0.102% -> 
C21: Investment Tax Credits | J21: 2211036 | K21: F | U21: =U20+0.102% -> 
C22: Miscellaneous Tax Credits | K22: G | U22: =U21+0.102% -> 
C23: Total Tax Credits | J23: =SUM(J21:J22) -> 2211036 | K23: H = F + G | U23: =U22+0.102% -> 
U24: =U23+0.102% -> 
C25: Corporate PILs/Income Tax Provision for Test Year | J25: =IF(J19-J23<0,0,J19-J23) -> 0 | K25: I = E - H | L25: S. Summary | U25: =U24+0.096% -> 
U26: =U25+0.096% -> 
C27: Corporate PILs/Income Tax Provision Gross Up 1 | H27: =(1-J16) -> 0.735 | I27: J = 1-D | J27: =J25/H27-J25 -> 0 | K27: K = I/J-I | U27: =U26+0.096% -> 
U28: =U27+0.096% -> 
U29: =U28+0.096% -> 
C30: Income Tax (grossed-up) | J30: =J25+J27 -> 0 | K30: L = K + I | L30: S. Summary | U30: =U29+0.088% -> 
U31: =U30+0.088% -> 
U32: =U31+0.088% -> 
C33: Note: | U33: =U32+0.088% -> 
C34: 1. This is for the derivation of revenue requirement and should not be used for sufficiency/deficiency calculations. | U34: =U33+0.088% -> 
U35: =U34+0.082% -> 
U36: =U35+0.082% -> 
U37: =U36+0.082% -> 
U38: =U37+0.082% -> 
U39: =U38+0.082% -> 
U40: =U39+0.076% -> 
U41: =U40+0.076% -> 
U42: =U41+0.076% -> 
U43: =U42+0.076% -> 
U44: 0.15

Sheet T1 2030 Sch 1 Taxable Income
C10: Taxable Income - Test Year
E11: Working Paper Reference | F11: Test Year Taxable Income
C12: Net Income Before Taxes | E12: A. | F12: ='A. Data Input Sheet'!J18 -> 32014138.11
D14: T2 S1 line #
C15: Additions:
C16: Interest and penalties on taxes | D16: 103
C17: Amortization of tangible assets 2-4 ADJUSTED ACCOUNTING DATA P489 | D17: 104 | F17: 35098070
C18: Amortization of intangible assets 2-4 ADJUSTED ACCOUNTING DATA P490 | D18: 106
C19: Recapture of capital cost allowance from Schedule 8 | D19: 107 | E19: T8 | F19: ='T8 2030 Sch 8 CCA'!Y43 -> 0
C20: Income inclusion under subparagraph 13(38)(d)(iii) from Schedule 10 | D20: 108
C21: Income or loss for tax purposes- joint ventures or partnerships | D21: 109
C22: Loss in equity of subsidiaries and affiliates | D22: 110
C23: Loss on disposal of assets | D23: 111
C24: Charitable donations | D24: 112
C25: Taxable Capital Gains | D25: 113
C26: Political Donations | D26: 114
C27: Deferred and prepaid expenses | D27: 116
C28: Scientific research expenditures deducted on financial statements | D28: 118 | F28: 1171333
C29: Capitalized interest | D29: 119
C30: Non-deductible club dues and fees | D30: 120 | F30: 50511
C31: Non-deductible meals and entertainment expense | D31: 121 | F31: 83667
C32: Non-deductible automobile expenses | D32: 122
C33: Non-deductible life insurance premiums | D33: 123
C34: Non-deductible company pension plans | D34: 124
C35: Tax reserves beginning of year | D35: 125 | E35: T13 | F35: ='T13 2030 Sch 13 Reserves'!G22 -> 0
C36: Reserves from financial statements- balance at end of year | D36: 126 | E36: T13 | F36: ='T13 2030 Sch 13 Reserves'!K43 -> 8665660
C37: Soft costs on construction and renovation of buildings | D37: 127
C38: Book loss on joint ventures or partnerships | D38: 205
C39: Capital items expensed | D39: 206
C40: Debt issue expense | D40: 208
C41: Development expenses claimed in current year | D41: 212
C42: Financing fees deducted in books | D42: 216
C43: Gain on settlement of debt | D43: 220
C44: Non-deductible advertising | D44: 226
C45: Non-deductible interest | D45: 227
C46: Non-deductible legal and accounting fees | D46: 228
C47: Recapture of SR&ED expenditures | D47: 231
C48: Share issue expense | D48: 235
C49: Write down of capital property | D49: 236
C50: Amounts received in respect of qualifying environment trust per paragraphs 12(1)(z.1) and 12(1)(z.2) | D50: 237
C51: Other Additions
C52: Interest Expensed on Capital Leases | D52: 295
C53: Realized Income from Deferred Credit Accounts | D53: 295
C54: Pensions | D54: 295
C55: Non-deductible penalties | D55: 295
C56: Vehicle amortization | D56: 295 | F56: 876002
C57: Other amortization-Renewables not included in Depreciation | D57: 295 | F57: 56226
C58: Co-op education credit-prior year | D58: 295 | F58: 3000
C59: Golf tournament expenses | D59: 295 | F59: 29273
C60: Reglatory assets(Deferred Variances)-decrease | D60: 295 | F60: 4094680
C61: ARO Accretion expense
C62: Capital Contributions Received (ITA 12(1)(x)) | F62: 36032586
C63: Lease Inducements Received (ITA 12(1)(x))
C64: Deferred Revenue (ITA 12(1)(a))
C65: Prior Year Investment Tax Credits received
C75: Total Additions | F75: =SUM(F16:F74) -> 86161008
C76: Deductions:
C77: Gain on disposal of assets per financial statements | D77: 401 | F77: 44476
C78: Dividends not taxable under section 83 | D78: 402
C79: Capital cost allowance from Schedule 8 | D79: 403 | E79: T8 | F79: ='T8 2030 Sch 8 CCA'!AA43 -> 57505392.07
C80: Terminal loss from Schedule 8 | D80: 404 | E80: T8 | F80: ='T8 2030 Sch 8 CCA'!Z43 -> 0
C81: Allowable business investment loss | D81: 406
C82: Deferred and prepaid expenses | D82: 409
C83: Scientific research expenses claimed in year | D83: 411 | F83: 1662291
C84: Tax reserves end of year | D84: 413 | E84: T13 | F84: ='T13 2030 Sch 13 Reserves'!K22 -> 0
C85: Reserves from financial statements - balance at beginning of year | D85: 414 | E85: T13 | F85: ='T13 2030 Sch 13 Reserves'!G43 -> 8413262
C86: Contributions to deferred income plans | D86: 416
C87: Book income of joint venture or partnership | D87: 305
C88: Equity in income from subsidiary or affiliates | D88: 306
C89: Other deductions
C90: Interest capitalized for accounting deducted for tax | D90: 395 | F90: 3051667
C91: Capital Lease Payments | D91: 395
C92: Non-taxable imputed interest income on deferral and variance accounts | D92: 395
C93: Pensions contributions capitalized for accounting | D93: 395 | F93: 1366968
C94: Current period employee benefit cost capitalized for accounting | D94: 395 | F94: 48331
C95: Current period sick leave cost capitalized for accounting | D95: 395 | F95: 9593
C96: Proceeds on sales recorded for accounting | D96: 395 | F96: 298910
C97: Deferred Revenue ICM | D97: 395 | F97: 79620
C98: ARO Payments - Deductible for Tax when Paid
C99: ITA 13(7.4) Election - Capital Contributions Received | F99: 36032586
C100: ITA 13(7.4) Election - Apply Lease Inducement to cost of Leaseholds
C101: Deferred Revenue - ITA 20(1)(m) reserve
C102: Principal portion of lease payments
C103: Lease Inducement Book Amortization credit to income
C104: Financing fees for tax ITA 20(1)(e) and (e.1)
C113: Total Deductions | E113: calculated | F113: =SUM(F77:F112) -> 108513096.1
C115: NET INCOME FOR TAX PURPOSES | E115: calculated | F115: =SUM(F12,F75)-F113 -> 9662050.039
C117: Charitable donations | D117: 311
C118: Taxable dividends received under section 112 or 113 | D118: 320
C119: Non-capital losses of previous tax years from Schedule 4 | D119: 331 | E119: T4 | F119: ='T4 2030 Sch30 Loss Cfwd'!I15 -> 1318518.647
C120: Net capital losses of previous tax years from Schedule 4 | D120: 332 | E120: T4 | F120: ='T4 2030 Sch30 Loss Cfwd'!I25 -> 0
C121: Limited partnership losses of previous tax years from Schedule 4 | D121: 335
C123: REGULATORY TAXABLE INCOME | E123: calculated | F123: =IF(F115<0,F115,F115-SUM(F117:F122)) -> 8343531.392 | G123: T0

Sheet T4 2030 Sch30 Loss Cfwd
C7: Schedule 4 Loss Carry Forward - Test Year
C9: Corporation Loss Continuity and Application
C11: Non-Capital Loss Carry Forward Deduction | F11: Working Paper Reference | G11: Total | H11: Non-Distribution Portion | I11: Utility Balance
C12: Actual/Estimated Bridge Year Carried Forward | F12: B4 | G12: ='T4 2029 Sch 4 Loss Cfwd'!I18 -> 1318518.647 | I12: =G12-H12 -> 1318518.647
C13: Amount to be used in Test Year and Price Cap Years | F13: T1 | G13: =IF('T1 2030 Sch 1 Taxable Income'!F115<0,0,IF('T1 2030 Sch 1 Taxable Income'!F115>G12,G12,'T1 2030 Sch 1 Taxable Income'!F115)) -> 1318518.647 | I13: =G13-H13 -> 1318518.647
C14: Number of years loss until next cost of service (i.e. years the loss is to be spread over)
C15: Amount to be used in Test Year | F15: calculated | G15: =IF(ISERROR(G13/G14),G13,G13/G14) -> 1318518.647 | I15: =G15-H15 -> 1318518.647
C16: Loss Carry Forward Generated in Test Year (if any) | F16: T1 | G16: =IF('T1 2030 Sch 1 Taxable Income'!F115<0,'T1 2030 Sch 1 Taxable Income'!F115*-1,0) -> 0 | I16: =G16-H16 -> 0
C17: Other Adjustments | I17: =G17-H17 -> 0
C18: Balance available for use in Future Years | F18: calculated | G18: =G12-G13+G16+G17 -> 0 | I18: =G18-H18 -> 0
C21: Net Capital Loss Carry Forward Deduction | G21: Total | H21: Non-Distribution Portion | I21: Utility Balance
C22: Actual/Estimated Bridge Year Carried Forward | F22: B4 | G22: ='B4 Sch 4 Loss Cfwd Bridge'!G23 -> 0 | I22: =G22-H22 -> 0
C23: Amount to be used in Test Year and Price Cap Years | I23: =G23-H23 -> 0
C24: Number of years loss until next cost of service (i.e. years the loss is to be spread over)
C25: Amount to be used in Test Year | F25: T1 | G25: =IF(ISERROR(G23/G24),G23,G23/G24) -> 0 | I25: =G25-H25 -> 0
C26: Loss Carry Forward Generated in Test Year (if any) | I26: =G26-H26 -> 0
C27: Other Adjustments | I27: =G27-H27 -> 0
C28: Balance available for use in Future Years | G28: =G22-G23+G26+G27 -> 0 | I28: =G28-H28 -> 0

Sheet T8 2030 Sch 8 CCA
B7: Schedule 8 CCA - Test Year
B9: (1) Class | C9: Class Description | D9: Working Paper Reference | E9: (2) Undepreciated capital cost (UCC) at the beginning of the test year | F9: (3) Cost of acquisitions during the year (new property must be available for use, except CWIP) | G9: (4) Cost of acquisitions from column 3 that are designated immediate expensing property (DIEP) | H9: (5) Adjustments and transfers (enter amounts that will reduce the UCC as negatives) | I9: (6) Amount from column 5 that is assistance received or receivable during the year for a property, subsequent to its disposition | J9: (7) Amount from column 5 that is repaid during the year for a property, subsequent to its disposition | K9: (8) Proceeds of dispositions | L9: (9) Proceeds of dispositions of the DIEP (enter amount from column 8 that relates to the DIEP reported in column 4) | M9: (10) UCC (column 2 plus column 3 plus or minus column 5 minus column 8) | N9: (11) UCC of the DIEP (enter the UCC amount that relates to the DIEP reported in column 4) | O9: (12) Immediate expensing | P9: (13) Cost of acquisitions on remainder of Class (column 3 minus column 4 plus column 11 minus column 12) | Q9: (14) Cost of acquisitions from column 13 that are accelerated investment incentive properties (AIIP) or properties included in Classes 54 to 56 | R9: (15) Remaining UCC (column 10 minus column 12) (if negative, enter "0") | S9: (16) Proceeds of disposition available to reduce the UCC of AIIP and property included in Classes 54 to 56 (column 8 minus column 9 plus column 6 minus column 13 plus column 14 minus column 7) (if negative, enter "0") | T9: (17) Net capital cost additions of AIIP and property included in Classes 54 to 56 acquired during the year (column 14 minus column 16) (if negative, enter "0") | U9: Relevant factor1 | V9: (18) UCC adjustment for AIIP and property included in Classes 54 to 56 acquired during the year (column 17 multiplied by the relevant factor) | W9: (19) UCC adjustment for non-AIIP and property included in Classes 54 to 56 (0.5 multiplied by the result of column 13 minus column 14 minus column 6 plus column 7 minus column 8 plus column 9) (if negative, enter "0") | X9: (20) CCA Rate % | Y9: (21) Recapture of CCA | Z9: (22) Terminal Loss | AA9: (23) CCA (for declining balance method, the result of column 15 plus column 18 minus column 19, multiplied by column 20 or a lower amount, plus column 12)) | AB9: (24) UCC at the end of the test year (column 10 minus column 23)
B10: =IF(ISBLANK('B8 Sch 8 CCA Bridge'!B10), "", 'B8 Sch 8 CCA Bridge'!B10) -> 1 | C10: =IF(ISBLANK('B8 Sch 8 CCA Bridge'!C10), "", 'B8 Sch 8 CCA Bridge'!C10) -> Buildings, Distribution System (acq'd post 1987) | D10: B8 | E10: =IF(ISBLANK('T8 2029 Sch 8 CCA'!AA10), "", 'T8 2029 Sch 8 CCA'!AB10) -> 71621404.33 | M10: =IFERROR(E10+F10+H10-K10,0) -> 71621404.33 | P10: =+F10-G10+N10-O10 -> 0 | R10: =IF((M10-O10)<0,0,M10-O10) -> 71621404.33 | S10: =IF((K10-L10+I10-P10+Q10-J10)<0,0,(K10-L10+I10-P10+Q10-J10)) -> 0 | T10: =IF((Q10-S10)<0,0,(Q10-S10)) -> 0 | U10: 0 | V10: =T10*U10 -> 0 | W10: =IF((0.5*(P10-Q10-I10+J10-K10+L10))<0,0,(0.5*(P10-Q10-I10+J10-K10+L10))) -> 0 | X10: 0.04 | AA10: =IF(OR(R10<=0,Z10>0),0,(R10+V10-W10)*X10) -> 2864856.173 | AB10: =IF(M10<0,0,M10-Z10-AA10) -> 68756548.15
B11: =IF(ISBLANK('B8 Sch 8 CCA Bridge'!B11), "", 'B8 Sch 8 CCA Bridge'!B11) -> 1b | C11: =IF(ISBLANK('B8 Sch 8 CCA Bridge'!C11), "", 'B8 Sch 8 CCA Bridge'!C11) -> Non-Residential Buildings [Reg. 1100(1)(a.1) election] | D11: B8 | E11: =IF(ISBLANK('T8 2029 Sch 8 CCA'!AA11), "", 'T8 2029 Sch 8 CCA'!AB11) -> 18909543.83 | F11: 1409680 | M11: =IFERROR(E11+F11+H11-K11,"") -> 20319223.83 | P11: =+F11-G11+N11-O11 -> 1409680 | R11: =IF((M11-O11)<0,0,M11-O11) -> 20319223.83 | S11: =IF((K11-L11+I11-P11+Q11-J11)<0,0,(K11-L11+I11-P11+Q11-J11)) -> 0 | T11: =IF((Q11-S11)<0,0,(Q11-S11)) -> 0 | U11: 0 | V11: =T11*U11 -> 0 | W11: =IF((0.5*(P11-Q11-I11+J11-K11+L11))<0,0,(0.5*(P11-Q11-I11+J11-K11+L11))) -> 704840 | X11: 0.06 | AA11: =IF(OR(R11<=0,Z11>0),0,(R11+V11-W11)*X11) -> 1176863.03 | AB11: =IF(M11<0,0,M11-Z11-AA11) -> 19142360.8
B12: =IF(ISBLANK('B8 Sch 8 CCA Bridge'!B12), "", 'B8 Sch 8 CCA Bridge'!B12) -> 2 | C12: =IF(ISBLANK('B8 Sch 8 CCA Bridge'!C12), "", 'B8 Sch 8 CCA Bridge'!C12) -> Distribution System (acq'd pre 1988) | D12: B8 | E12: =IF(ISBLANK('T8 2029 Sch 8 CCA'!AA12), "", 'T8 2029 Sch 8 CCA'!AB12) -> 2357088.137 | M12: 2357088.137 | P12: 0 | R12: 2357088.137 | S12: 0 | T12: 0 | V12: 0 | W12: 0 | X12: 0.06 | AA12: 141425.2882 | AB12: 2215662.849
B13: =IF(ISBLANK('B8 Sch 8 CCA Bridge'!B13), "", 'B8 Sch 8 CCA Bridge'!B13) -> 3 | C13: =IF(ISBLANK('B8 Sch 8 CCA Bridge'!C13), "", 'B8 Sch 8 CCA Bridge'!C13) -> Buildings (acq'd pre 1988) | D13: B8 | E13: =IF(ISBLANK('T8 2029 Sch 8 CCA'!AA13), "", 'T8 2029 Sch 8 CCA'!AB13) -> 0 | M13: 0 | P13: 0 | R13: 0 | S13: 0 | T13: 0 | V13: 0 | W13: 0 | X13: 0.05 | AA13: 0 | AB13: 0
B14: =IF(ISBLANK('B8 Sch 8 CCA Bridge'!B14), "", 'B8 Sch 8 CCA Bridge'!B14) -> 6 | C14: =IF(ISBLANK('B8 Sch 8 CCA Bridge'!C14), "", 'B8 Sch 8 CCA Bridge'!C14) -> Certain Buildings; Fences | D14: B8 | E14: =IF(ISBLANK('T8 2029 Sch 8 CCA'!AA14), "", 'T8 2029 Sch 8 CCA'!AB14) -> 0 | M14: 0 | P14: 0 | R14: 0 | S14: 0 | T14: 0 | U14: 0 | V14: 0 | W14: 0 | X14: 0.1 | AA14: 0 | AB14: 0
B15: =IF(ISBLANK('B8 Sch 8 CCA Bridge'!B15), "", 'B8 Sch 8 CCA Bridge'!B15) -> 8 | C15: =IF(ISBLANK('B8 Sch 8 CCA Bridge'!C15), "", 'B8 Sch 8 CCA Bridge'!C15) -> General Office Equipment, Furniture, Fixtures | D15: B8 | E15: =IF(ISBLANK('T8 2029 Sch 8 CCA'!AA15), "", 'T8 2029 Sch 8 CCA'!AB15) -> 9134603.648 | F15: 2191559 | M15: 11326162.65 | P15: 2191559 | R15: 11326162.65 | S15: 0 | T15: 0 | U15: 0 | V15: 0 | W15: 1095779.5 | X15: 0.2 | AA15: 2046076.63 | AB15: 9280086.018
B16: =IF(ISBLANK('B8 Sch 8 CCA Bridge'!B16), "", 'B8 Sch 8 CCA Bridge'!B16) -> 10 | C16: =IF(ISBLANK('B8 Sch 8 CCA Bridge'!C16), "", 'B8 Sch 8 CCA Bridge'!C16) -> Motor Vehicles, Fleet | D16: B8 | E16: =IF(ISBLANK('T8 2029 Sch 8 CCA'!AA16), "", 'T8 2029 Sch 8 CCA'!AB16) -> 8463271.001 | F16: 2960364 | K16: 44476 | M16: 11379159 | P16: 2960364 | R16: 11379159 | S16: 0 | T16: 0 | U16: 0 | V16: 0 | W16: 1457944 | X16: 0.3 | AA16: =IF(OR(R16<=0,Z16>0),0,(R16+V16-W16)*X16) -> 2976364.5 | AB16: 8402794.501
B17: =IF(ISBLANK('B8 Sch 8 CCA Bridge'!B17), "", 'B8 Sch 8 CCA Bridge'!B17) -> 10.1 | C17: =IF(ISBLANK('B8 Sch 8 CCA Bridge'!C17), "", 'B8 Sch 8 CCA Bridge'!C17) -> Certain Automobiles | D17: B8 | E17: =IF(ISBLANK('T8 2029 Sch 8 CCA'!AA17), "", 'T8 2029 Sch 8 CCA'!AB17) -> 89.7974 | M17: 89.7974 | P17: 0 | R17: 89.7974 | S17: 0 | T17: 0 | U17: 0 | V17: 0 | W17: 0 | X17: 0.3 | AA17: 26.93922 | AB17: 62.85818
B18: =IF(ISBLANK('B8 Sch 8 CCA Bridge'!B18), "", 'B8 Sch 8 CCA Bridge'!B18) -> 12 | C18: =IF(ISBLANK('B8 Sch 8 CCA Bridge'!C18), "", 'B8 Sch 8 CCA Bridge'!C18) -> Computer Application Software (Non-Systems) | D18: B8 | E18: =IF(ISBLANK('T8 2029 Sch 8 CCA'!AA18), "", 'T8 2029 Sch 8 CCA'!AB18) -> 881692.5 | F18: 2667490 | M18: 3549182.5 | P18: 2667490 | R18: 3549182.5 | S18: 0 | T18: 0 | U18: 0 | V18: 0 | W18: 1333745 | X18: 1 | AA18: 2215437.5 | AB18: 1333745
B19: 13 1 | C19: =IF(ISBLANK('B8 Sch 8 CCA Bridge'!C19), "", 'B8 Sch 8 CCA Bridge'!C19) -> Lease # 1 | D19: B8 | E19: =IF(ISBLANK('T8 2029 Sch 8 CCA'!AA19), "", 'T8 2029 Sch 8 CCA'!AB19) -> 0 | M19: 0 | P19: 0 | R19: 0 | S19: 0 | T19: 0 | U19: 0 | V19: 0 | W19: 0 | X19: NA | AA19: 0 | AB19: 0
B20: 13 2 | C20: =IF(ISBLANK('B8 Sch 8 CCA Bridge'!C20), "", 'B8 Sch 8 CCA Bridge'!C20) -> Lease # 2 | D20: B8 | E20: =IF(ISBLANK('T8 2029 Sch 8 CCA'!AA20), "", 'T8 2029 Sch 8 CCA'!AB20) -> 0 | M20: 0 | P20: 0 | R20: 0 | S20: 0 | T20: 0 | U20: 0 | V20: 0 | W20: 0 | X20: NA | AA20: 0 | AB20: 0
B21: 13 3 | C21: =IF(ISBLANK('B8 Sch 8 CCA Bridge'!C21), "", 'B8 Sch 8 CCA Bridge'!C21) -> Lease # 3 | D21: B8 | E21: =IF(ISBLANK('T8 2029 Sch 8 CCA'!AA21), "", 'T8 2029 Sch 8 CCA'!AB21) -> 0 | M21: 0 | P21: 0 | R21: 0 | S21: 0 | T21: 0 | U21: 0 | V21: 0 | W21: 0 | X21: NA | AA21: 0 | AB21: 0
B22: 13 4 | C22: =IF(ISBLANK('B8 Sch 8 CCA Bridge'!C22), "", 'B8 Sch 8 CCA Bridge'!C22) -> Lease # 4 | D22: B8 | E22: =IF(ISBLANK('T8 2029 Sch 8 CCA'!AA22), "", 'T8 2029 Sch 8 CCA'!AB22) -> 0 | M22: 0 | P22: 0 | R22: 0 | S22: 0 | T22: 0 | U22: 0 | V22: 0 | W22: 0 | X22: NA | AA22: 0 | AB22: 0
B23: =IF(ISBLANK('B8 Sch 8 CCA Bridge'!B23), "", 'B8 Sch 8 CCA Bridge'!B23) -> 14 | C23: =IF(ISBLANK('B8 Sch 8 CCA Bridge'!C23), "", 'B8 Sch 8 CCA Bridge'!C23) -> Limited Period Patents, Franchises, Concessions or Licences | D23: B8 | E23: =IF(ISBLANK('T8 2029 Sch 8 CCA'!AA23), "", 'T8 2029 Sch 8 CCA'!AB23) -> 0 | M23: 0 | P23: 0 | R23: 0 | S23: 0 | T23: 0 | U23: 0 | V23: 0 | W23: 0 | X23: NA | AA23: 0 | AB23: 0
B24: =IF(ISBLANK('B8 Sch 8 CCA Bridge'!B24), "", 'B8 Sch 8 CCA Bridge'!B24) -> 14.1 | C24: Eligible Capital Property (acq'd pre Jan 1, 2017) | D24: B8 | E24: =IF(ISBLANK('T8 2029 Sch 8 CCA'!AA24), "", 'T8 2029 Sch 8 CCA'!AB24) -> 1928207.287 | M24: 1928207.287 | P24: 0 | R24: =IF((M24-O24)<0,0,M24-O24) -> 1928207.287 | S24: =IF((K24-L24+I24-P24+Q24-J24)<0,0,(K24-L24+I24-P24+Q24-J24)) -> 0 | T24: 0 | V24: 0 | W24: 0 | X24: 0.07 | AA24: 134974.5101 | AB24: 1793232.777
B25: =IF(ISBLANK('B8 Sch 8 CCA Bridge'!B25), "", 'B8 Sch 8 CCA Bridge'!B25) -> 14.1 | C25: Eligible Capital Property (acq'd post Jan 1, 2017) | D25: B8 | E25: =IF(ISBLANK('T8 2029 Sch 8 CCA'!AA25), "", 'T8 2029 Sch 8 CCA'!AB25) -> 19479915.55 | M25: 19479915.55 | P25: 0 | R25: 19479915.55 | S25: 0 | T25: 0 | U25: 0 | V25: 0 | W25: 0 | X25: 0.05 | AA25: 973995.7777 | AB25: 18505919.78
B26: =IF(ISBLANK('B8 Sch 8 CCA Bridge'!B26), "", 'B8 Sch 8 CCA Bridge'!B26) -> 17 | C26: =IF(ISBLANK('B8 Sch 8 CCA Bridge'!C26), "", 'B8 Sch 8 CCA Bridge'!C26) -> Elec. Generation Equip. (Non-Bldng, acq'd post Feb 27/00); Roads, Lots, Storage | D26: B8 | E26: =IF(ISBLANK('T8 2029 Sch 8 CCA'!AA26), "", 'T8 2029 Sch 8 CCA'!AB26) -> 106718.1937 | M26: 106718.1937 | P26: 0 | R26: 106718.1937 | S26: 0 | T26: 0 | U26: 0 | V26: 0 | W26: 0 | X26: 0.08 | AA26: 8537.455494 | AB26: 98180.73819
B27: =IF(ISBLANK('B8 Sch 8 CCA Bridge'!B27), "", 'B8 Sch 8 CCA Bridge'!B27) -> 42 | C27: =IF(ISBLANK('B8 Sch 8 CCA Bridge'!C27), "", 'B8 Sch 8 CCA Bridge'!C27) -> Fibre Optic Cable | D27: B8 | E27: =IF(ISBLANK('T8 2029 Sch 8 CCA'!AA27), "", 'T8 2029 Sch 8 CCA'!AB27) -> 533.7288704 | M27: 533.7288704 | P27: 0 | R27: 533.7288704 | S27: 0 | T27: 0 | U27: 0 | V27: 0 | W27: 0 | X27: 0.12 | AA27: 64.04746445 | AB27: 469.681406
B28: =IF(ISBLANK('B8 Sch 8 CCA Bridge'!B28), "", 'B8 Sch 8 CCA Bridge'!B28) -> 43.1 | C28: =IF(ISBLANK('B8 Sch 8 CCA Bridge'!C28), "", 'B8 Sch 8 CCA Bridge'!C28) -> Certain Clean Energy/Energy-Efficient Generation Equipment | D28: B8 | E28: =IF(ISBLANK('T8 2029 Sch 8 CCA'!AA28), "", 'T8 2029 Sch 8 CCA'!AB28) -> 0 | M28: 0 | P28: 0 | R28: 0 | S28: 0 | T28: 0 | U28: 1.5 | V28: 0 | W28: 0 | X28: 0.3 | AA28: 0 | AB28: 0
B29: =IF(ISBLANK('B8 Sch 8 CCA Bridge'!B29), "", 'B8 Sch 8 CCA Bridge'!B29) -> 43.2 | C29: =IF(ISBLANK('B8 Sch 8 CCA Bridge'!C29), "", 'B8 Sch 8 CCA Bridge'!C29) -> Certain Clean Energy/Energy-Efficient Generation Equipment | D29: B8 | E29: =IF(ISBLANK('T8 2029 Sch 8 CCA'!AA29), "", 'T8 2029 Sch 8 CCA'!AB29) -> 18.125 | M29: 18.125 | P29: 0 | R29: 18.125 | S29: 0 | T29: 0 | U29: 0.5 | V29: 0 | W29: 0 | X29: 0.5 | AA29: 9.0625 | AB29: 9.0625
B30: =IF(ISBLANK('B8 Sch 8 CCA Bridge'!B30), "", 'B8 Sch 8 CCA Bridge'!B30) -> 45 | C30: =IF(ISBLANK('B8 Sch 8 CCA Bridge'!C30), "", 'B8 Sch 8 CCA Bridge'!C30) -> Computers & System Software (acq'd post Mar 22/04 and pre Mar 19/07) | D30: B8 | E30: =IF(ISBLANK('T8 2029 Sch 8 CCA'!AA30), "", 'T8 2029 Sch 8 CCA'!AB30) -> 1.098075 | M30: 1.098075 | P30: 0 | R30: 1.098075 | S30: 0 | T30: 0 | V30: 0 | W30: 0 | X30: 0.45 | AA30: 0.49413375 | AB30: 0.60394125
B31: =IF(ISBLANK('B8 Sch 8 CCA Bridge'!B31), "", 'B8 Sch 8 CCA Bridge'!B31) -> 46 | C31: =IF(ISBLANK('B8 Sch 8 CCA Bridge'!C31), "", 'B8 Sch 8 CCA Bridge'!C31) -> Data Network Infrastructure Equipment (acq'd post Mar 22/04) | D31: B8 | E31: =IF(ISBLANK('T8 2029 Sch 8 CCA'!AA31), "", 'T8 2029 Sch 8 CCA'!AB31) -> 517859.685 | M31: 517859.685 | P31: 0 | R31: 517859.685 | S31: 0 | T31: 0 | U31: 0 | V31: 0 | W31: 0 | X31: 0.3 | AA31: 155357.9055 | AB31: 362501.7795
B32: =IF(ISBLANK('B8 Sch 8 CCA Bridge'!B32), "", 'B8 Sch 8 CCA Bridge'!B32) -> 47 | C32: =IF(ISBLANK('B8 Sch 8 CCA Bridge'!C32), "", 'B8 Sch 8 CCA Bridge'!C32) -> Distribution System (acq'd post Feb 22/05) | D32: B8 | E32: =IF(ISBLANK('T8 2029 Sch 8 CCA'!AA32), "", 'T8 2029 Sch 8 CCA'!AB32) -> 465015625.7 | F32: 107678058 | K32: 298910 | M32: 572394773.7 | P32: 107678058 | R32: 572394773.7 | S32: 0 | T32: 0 | U32: 0 | V32: 0 | W32: 53689574 | X32: 0.08 | AA32: 41496415.97 | AB32: 530898357.7
B33: =IF(ISBLANK('B8 Sch 8 CCA Bridge'!B33), "", 'B8 Sch 8 CCA Bridge'!B33) -> 50 | C33: =IF(ISBLANK('B8 Sch 8 CCA Bridge'!C33), "", 'B8 Sch 8 CCA Bridge'!C33) -> General Purpose Computer Hardware & Software (acq'd post Mar 18/07) | D33: B8 | E33: =IF(ISBLANK('T8 2029 Sch 8 CCA'!AA33), "", 'T8 2029 Sch 8 CCA'!AB33) -> 3791130.702 | F33: 4472236 | M33: 8263366.702 | P33: 4472236 | R33: 8263366.702 | S33: 0 | T33: 0 | U33: 0 | V33: 0 | W33: 2236118 | X33: 0.55 | AA33: 3314986.786 | AB33: 4948379.916
B34: =IF(ISBLANK('B8 Sch 8 CCA Bridge'!B34), "", 'B8 Sch 8 CCA Bridge'!B34) -> 95 | C34: =IF(ISBLANK('B8 Sch 8 CCA Bridge'!C34), "", 'B8 Sch 8 CCA Bridge'!C34) -> CWIP | D34: B8 | E34: =IF(ISBLANK('T8 2029 Sch 8 CCA'!AA34), "", 'T8 2029 Sch 8 CCA'!AB34) -> 133313496 | H34: 21108007 | M34: 154421503 | P34: 0 | R34: 154421503 | S34: 0 | T34: 0 | U34: 0 | V34: 0 | W34: 0 | X34: 0 | AA34: 0 | AB34: 154421503
B35: =IF(ISBLANK('B8 Sch 8 CCA Bridge'!B35), "", 'B8 Sch 8 CCA Bridge'!B35) ->  | C35: =IF(ISBLANK('B8 Sch 8 CCA Bridge'!C35), "", 'B8 Sch 8 CCA Bridge'!C35) ->  | D35: B8 | E35: =IF(ISBLANK('T8 2029 Sch 8 CCA'!AA35), "", 'T8 2029 Sch 8 CCA'!AB35) -> 0 | M35: 0 | P35: 0 | R35: 0 | S35: 0 | T35: 0 | V35: 0 | W35: 0 | AA35: 0 | AB35: 0
B36: =IF(ISBLANK('B8 Sch 8 CCA Bridge'!B36), "", 'B8 Sch 8 CCA Bridge'!B36) ->  | C36: =IF(ISBLANK('B8 Sch 8 CCA Bridge'!C36), "", 'B8 Sch 8 CCA Bridge'!C36) ->  | D36: B8 | E36: =IF(ISBLANK('T8 2029 Sch 8 CCA'!AA36), "", 'T8 2029 Sch 8 CCA'!AB36) -> 0 | M36: 0 | P36: 0 | R36: 0 | S36: 0 | T36: 0 | V36: 0 | W36: 0 | AA36: 0 | AB36: 0
B37: =IF(ISBLANK('B8 Sch 8 CCA Bridge'!B37), "", 'B8 Sch 8 CCA Bridge'!B37) ->  | C37: =IF(ISBLANK('B8 Sch 8 CCA Bridge'!C37), "", 'B8 Sch 8 CCA Bridge'!C37) ->  | D37: B8 | E37: =IF(ISBLANK('T8 2029 Sch 8 CCA'!AA37), "", 'T8 2029 Sch 8 CCA'!AB37) -> 0 | M37: 0 | P37: 0 | R37: 0 | S37: 0 | T37: 0 | V37: 0 | W37: 0 | AA37: 0 | AB37: 0
B38: =IF(ISBLANK('B8 Sch 8 CCA Bridge'!B38), "", 'B8 Sch 8 CCA Bridge'!B38) ->  | C38: =IF(ISBLANK('B8 Sch 8 CCA Bridge'!C38), "", 'B8 Sch 8 CCA Bridge'!C38) ->  | D38: B8 | E38: =IF(ISBLANK('T8 2029 Sch 8 CCA'!AA38), "", 'T8 2029 Sch 8 CCA'!AB38) -> 0 | M38: 0 | P38: 0 | R38: 0 | S38: 0 | T38: 0 | V38: 0 | W38: 0 | AA38: 0 | AB38: 0
B39: =IF(ISBLANK('B8 Sch 8 CCA Bridge'!B39), "", 'B8 Sch 8 CCA Bridge'!B39) ->  | C39: =IF(ISBLANK('B8 Sch 8 CCA Bridge'!C39), "", 'B8 Sch 8 CCA Bridge'!C39) ->  | D39: B8 | E39: =IF(ISBLANK('T8 2029 Sch 8 CCA'!AA39), "", 'T8 2029 Sch 8 CCA'!AB39) -> 0 | M39: 0 | P39: 0 | R39: 0 | S39: 0 | T39: 0 | V39: 0 | W39: 0 | AA39: 0 | AB39: 0
B40: =IF(ISBLANK('B8 Sch 8 CCA Bridge'!B40), "", 'B8 Sch 8 CCA Bridge'!B40) ->  | C40: =IF(ISBLANK('B8 Sch 8 CCA Bridge'!C40), "", 'B8 Sch 8 CCA Bridge'!C40) ->  | D40: B8 | E40: =IF(ISBLANK('T8 2029 Sch 8 CCA'!AA40), "", 'T8 2029 Sch 8 CCA'!AB40) -> 0 | M40: 0 | P40: 0 | R40: 0 | S40: 0 | T40: 0 | V40: 0 | W40: 0 | AA40: 0 | AB40: 0
B41: =IF(ISBLANK('B8 Sch 8 CCA Bridge'!B41), "", 'B8 Sch 8 CCA Bridge'!B41) ->  | C41: =IF(ISBLANK('B8 Sch 8 CCA Bridge'!C41), "", 'B8 Sch 8 CCA Bridge'!C41) ->  | D41: B8 | E41: =IF(ISBLANK('T8 2029 Sch 8 CCA'!AA41), "", 'T8 2029 Sch 8 CCA'!AB41) -> 0 | M41: 0 | P41: 0 | R41: 0 | S41: 0 | T41: 0 | V41: 0 | W41: 0 | AA41: 0 | AB41: =IF(M41<0,0,M41-Z41-AA41) -> 0
B42: =IF(ISBLANK('B8 Sch 8 CCA Bridge'!B42), "", 'B8 Sch 8 CCA Bridge'!B42) ->  | C42: =IF(ISBLANK('B8 Sch 8 CCA Bridge'!C42), "", 'B8 Sch 8 CCA Bridge'!C42) ->  | D42: B8 | E42: =IF(ISBLANK('T8 2029 Sch 8 CCA'!AA42), "", 'T8 2029 Sch 8 CCA'!AB42) -> 0 | M42: =IFERROR(E42+F42+H42-K42,"") -> 0 | P42: 0 | R42: 0 | S42: 0 | T42: 0 | V42: 0 | W42: 0 | AA42: 0 | AB42: 0
C43: TOTALS | E43: =SUM(E10:E42) -> 735521199.3 | F43: =SUM(F10:F42) -> 121379387 | G43: =SUM(G10:G42) -> 0 | H43: =SUM(H10:H42) -> 21108007 | I43: =SUM(I10:I42) -> 0 | J43: 0 | K43: =SUM(K10:K42) -> 343386 | L43: =SUM(L10:L42) -> 0 | M43: =SUM(M10:M42) -> 877665207.3 | N43: 0 | O43: 0 | P43: 121379387 | Q43: =SUM(Q10:Q42) -> 0 | R43: 877665207.3 | S43: 0 | T43: 0 | V43: =SUM(V10:V42) -> 0 | W43: 60518000.5 | Y43: =SUM(Y10:Y42) -> 0 | Z43: =SUM(Z10:Z42) -> 0 | AA43: =SUM(AA10:AA42) -> 57505392.07 | AB43: =SUM(AB10:AB42) -> 820159815.2
B45: For additional details and guidance on calculating amounts in Schedule 8, refer to the notes to the Canada Revenue Agency published Schedule 8 - Capital Cost Allowance (CCA) (2018 and later tax years):
B46: https://www.canada.ca/content/dam/cra-arc/formspubs/pbg/t2sch8/t2sch8-19e.pdf
B50: 1. Please note that Subsection 1100(2) of the Income Tax Regulations provide undepreciated capital cost adjustment factors of eligible zero-emission vehicles and equipment under Class 53, Class 54, Class 55 and Class 56,
B51: please assess the applicability of these adjustments and incorporate them in the PILs model as applicable.

Sheet T13 2030 Sch 13 Reserves
C7: Schedule 13 Tax Reserves - Test Year
C9: Continuity of Reserves
I10: Test Year Adjustments
C11: Description | D11: Working Paper Reference | E11: Bridge Year | F11: Eliminate Amounts Not Relevant for Test Year | G11: Adjusted Utility Balance | I11: Additions | J11: Disposals | K11: Balance for Test Year | M11: Change During the Year | N11: Disallowed Expenses
C13: Capital Gains Reserves ss.40(1) | D13: B13 | E13: ='B13 Sch 13 Reserves Bridge'!K13 -> 0 | G13: =SUM(E13:F13) -> 0 | K13: =G13+I13-J13 -> 0 | M13: =+K13-G13 -> 0
C14: Tax Reserves Not Deducted for accounting purposes
C15: Reserve for doubtful accounts ss. 20(1)(l) | D15: B13 | E15: ='B13 Sch 13 Reserves Bridge'!K15 -> 0 | G15: =SUM(E15:F15) -> 0 | K15: =G15+I15-J15 -> 0 | M15: =+K15-G15 -> 0
C16: Reserve for goods and services not delivered ss. 20(1)(m) | D16: B13 | E16: ='B13 Sch 13 Reserves Bridge'!K16 -> 0 | G16: 0 | K16: 0 | M16: 0
C17: Reserve for unpaid amounts ss. 20(1)(n) | D17: B13 | E17: ='B13 Sch 13 Reserves Bridge'!K17 -> 0 | G17: 0 | K17: 0 | M17: 0
C18: Debt & Share Issue Expenses ss. 20(1)(e) | D18: B13 | E18: ='B13 Sch 13 Reserves Bridge'!K18 -> 0 | G18: 0 | K18: 0 | M18: 0
C19: Other tax reserves | D19: B13 | E19: ='B13 Sch 13 Reserves Bridge'!K19 -> 0 | G19: 0 | K19: 0 | M19: 0
E20: ='B13 Sch 13 Reserves Bridge'!K20 -> 0 | G20: 0 | K20: 0 | M20: 0
E21: ='B13 Sch 13 Reserves Bridge'!K21 -> 0 | G21: 0 | K21: 0 | M21: 0
C22: Total | E22: =SUM(E15:E21) -> 0 | F22: 0 | G22: 0 | H22: T1 | I22: 0 | J22: 0 | K22: 0 | L22: T1 | M22: 0 | N22: =SUM(N15:N21) -> 0
E23: 0
C24: Financial Statement Reserves (not deductible for Tax Purposes)
C25: General Reserve for Inventory Obsolescence (non-specific) | D25: B13 | E25: ='B13 Sch 13 Reserves Bridge'!K25 -> 0 | G25: =SUM(E25:F25) -> 0 | K25: =G25+I25-J25 -> 0 | M25: =+K25-G25 -> 0
C26: General reserve for bad debts | D26: B13 | E26: ='B13 Sch 13 Reserves Bridge'!K26 -> 0 | G26: 0 | K26: 0 | M26: 0
C27: Accrued Employee Future Benefits: | D27: B13 | E27: ='B13 Sch 13 Reserves Bridge'!K27 -> 0 | G27: 0 | K27: 0 | M27: 0
C28: - Medical and Life Insurance | D28: B13 | E28: ='B13 Sch 13 Reserves Bridge'!K28 -> 0 | G28: 0 | K28: 0 | M28: 0
C29: -Short & Long-term Disability | D29: B13 | E29: ='B13 Sch 13 Reserves Bridge'!K29 -> 0 | G29: 0 | K29: 0 | M29: 0
C30: -Accmulated Sick Leave | D30: B13 | E30: ='T13 2029 Sch 13 Reserves '!K30 -> 1065856 | G30: 1065856 | I30: 31976 | K30: 1097832 | M30: 31976
C31: - Termination Cost | D31: B13 | E31: ='B13 Sch 13 Reserves Bridge'!K31 -> 0 | G31: 0 | K31: 0 | M31: 0
C32: - Other Post-Employment Benefits | D32: B13 | E32: ='T13 2029 Sch 13 Reserves '!K32 -> 7347406 | G32: 7347406 | I32: 220422 | K32: 7567828 | M32: 220422
C33: Provision for Environmental Costs | D33: B13 | E33: ='B13 Sch 13 Reserves Bridge'!K33 -> 0 | G33: 0 | K33: 0 | M33: 0
C34: Restructuring Costs | D34: B13 | E34: ='B13 Sch 13 Reserves Bridge'!K34 -> 0 | G34: 0 | K34: 0 | M34: 0
C35: Accrued Contingent Litigation Costs | D35: B13 | E35: ='B13 Sch 13 Reserves Bridge'!K35 -> 0 | G35: 0 | K35: 0 | M35: 0
C36: Accrued Self-Insurance Costs | D36: B13 | E36: ='B13 Sch 13 Reserves Bridge'!K36 -> 0 | G36: 0 | K36: 0 | M36: 0
C37: Other Contingent Liabilities | D37: B13 | E37: ='B13 Sch 13 Reserves Bridge'!K37 -> 0 | G37: 0 | K37: 0 | M37: 0
C38: Bonuses Accrued and Not Paid Within 180 Days of Year-End ss. 78(4) | D38: B13 | E38: ='B13 Sch 13 Reserves Bridge'!K38 -> 0 | G38: 0 | K38: 0 | M38: 0
C39: Unpaid Amounts to Related Person and Not Paid Within 3 Taxation Years ss. 78(1) | D39: B13 | E39: ='B13 Sch 13 Reserves Bridge'!K39 -> 0 | G39: 0 | K39: 0 | M39: 0
C40: Other | D40: B13 | E40: ='B13 Sch 13 Reserves Bridge'!K40 -> 0 | G40: 0 | K40: 0 | M40: 0
E41: ='B13 Sch 13 Reserves Bridge'!K41 -> 0 | G41: 0 | K41: 0 | M41: 0
E42: ='B13 Sch 13 Reserves Bridge'!K42 -> 0 | G42: 0 | K42: 0 | M42: 0
C43: Total | E43: =SUM(E25:E42) -> 8413262 | F43: 0 | G43: 8413262 | H43: T1 | I43: 252398 | J43: 0 | K43: 8665660 | L43: T1 | M43: 252398 | N43: 0
E44: 0

Sheet T0 2031 PILs,Tax Provision
T1: Rate Base | U1: Federal Tax Rate
T2: 500000 | U2: 0.11
T3: 10000000 | U3: 0.11
T4: =T3+100000 -> 10100000 | U4: 0.11
T5: =T4+100000 -> 10200000 | U5: 0.11
B6: PILs Tax Provision - Test Year | T6: 10300000 | U6: 0.11
T7: 10400000 | U7: 0.11
J8: Wires Only | T8: 10500000 | U8: 0.11
T9: 10600000 | U9: 0.11
C10: Regulatory Taxable Income | I10: T1 | J10: ='T1 2031 Sch 1 Taxable Income'!F123 -> 11456428.75 | K10: A | T10: 10700000 | U10: 0.11
T11: 10800000 | U11: 0.11
D12: Tax Rate | E12: Small Business Rate (If Applicable) | F12: Taxes Payable | G12: Effective Tax Rate
C13: Ontario (Max 11.5%) | D13: 0.115 | E13: =IF(ratebase<=10000000, ontario_SB, IF(ratebase>=50000000, ontariotax, IF(AND(ratebase>10000000, ratebase<50000000), ontario_SB+ (ratebase - 10000000)*(ontariotax - ontario_SB)/(50000000-10000000)))) -> 0.115 | F13: =IF(J10<500000,J10,500000)*E13+IF(J10>500000,J10-500000,0)*D13 -> 1317489.306 | G13: =IF(F13=0,0,+F13/J10) -> 0.115 | H13: B
C14: Federal (Max 15%) | D14: 0.15 | E14: =IF(ratebase<=10000000, Fed_SB_Test, IF(ratebase>=50000000, FedTax, IF(AND(ratebase>10000000, ratebase<50000000), Fed_SB_Test+ (ratebase - 10000000)*(FedTax -Fed_SB_Test)/(50000000-10000000)))) -> 0.15 | F14: =E14*IF(J10<500000,J10,500000)+IF(J10>500000,J10-500000,0)*D14 -> 1718464.312 | G14: =IF(F14=0,0,+F14/J10) -> 0.15 | H14: C
C16: Combined effective tax rate (Max 26.5%) | J16: =SUM(G13:G14) -> 0.265 | K16: D = B + C | T16: =#REF!+100000 ->  | U16: =#REF!+0.112% -> 
U17: =U16+0.112% -> 
C19: Total Income Taxes | J19: =J10*J16 -> 3035953.618 | K19: E = A * D
U20: =U19+0.102% -> 
C21: Investment Tax Credits | J21: 3035954 | K21: F | U21: =U20+0.102% -> 
C22: Miscellaneous Tax Credits | K22: G | U22: =U21+0.102% -> 
C23: Total Tax Credits | J23: =SUM(J21:J22) -> 3035954 | K23: H = F + G | U23: =U22+0.102% -> 
U24: =U23+0.102% -> 
C25: Corporate PILs/Income Tax Provision for Test Year | J25: =IF(J19-J23<0,0,J19-J23) -> 0 | K25: I = E - H | L25: S. Summary | U25: =U24+0.096% -> 
U26: =U25+0.096% -> 
C27: Corporate PILs/Income Tax Provision Gross Up 1 | H27: =(1-J16) -> 0.735 | I27: J = 1-D | J27: =J25/H27-J25 -> 0 | K27: K = I/J-I | U27: =U26+0.096% -> 
U28: =U27+0.096% -> 
U29: =U28+0.096% -> 
C30: Income Tax (grossed-up) | J30: =J25+J27 -> 0 | K30: L = K + I | L30: S. Summary | U30: =U29+0.088% -> 
U31: =U30+0.088% -> 
U32: =U31+0.088% -> 
C33: Note: | U33: =U32+0.088% -> 
C34: 1. This is for the derivation of revenue requirement and should not be used for sufficiency/deficiency calculations. | U34: =U33+0.088% -> 
U35: =U34+0.082% -> 
U36: =U35+0.082% -> 
U37: =U36+0.082% -> 
U38: =U37+0.082% -> 
U39: =U38+0.082% -> 
U40: =U39+0.076% -> 
U41: =U40+0.076% -> 
U42: =U41+0.076% -> 
U43: =U42+0.076% -> 
U44: 0.15

Sheet T1 2031 Sch 1 Taxable Income
C10: Taxable Income - Test Year
E11: Working Paper Reference | F11: Test Year Taxable Income
C12: Net Income Before Taxes | E12: A. | F12: ='A. Data Input Sheet'!K18 -> 37492597.25
D14: T2 S1 line #
C15: Additions:
C16: Interest and penalties on taxes | D16: 103
C17: Amortization of tangible assets 2-4 ADJUSTED ACCOUNTING DATA P489 | D17: 104 | F17: 40819383
C18: Amortization of intangible assets 2-4 ADJUSTED ACCOUNTING DATA P490 | D18: 106
C19: Recapture of capital cost allowance from Schedule 8 | D19: 107 | E19: T8 | F19: ='T8 2031 Sch 8 CCA'!Y43 -> 0
C20: Income inclusion under subparagraph 13(38)(d)(iii) from Schedule 10 | D20: 108
C21: Income or loss for tax purposes- joint ventures or partnerships | D21: 109
C22: Loss in equity of subsidiaries and affiliates | D22: 110
C23: Loss on disposal of assets | D23: 111
C24: Charitable donations | D24: 112
C25: Taxable Capital Gains | D25: 113
C26: Political Donations | D26: 114
C27: Deferred and prepaid expenses | D27: 116
C28: Scientific research expenditures deducted on financial statements | D28: 118 | F28: 1171333
C29: Capitalized interest | D29: 119
C30: Non-deductible club dues and fees | D30: 120 | F30: 50511
C31: Non-deductible meals and entertainment expense | D31: 121 | F31: 83667
C32: Non-deductible automobile expenses | D32: 122
C33: Non-deductible life insurance premiums | D33: 123
C34: Non-deductible company pension plans | D34: 124
C35: Tax reserves beginning of year | D35: 125 | E35: T13 | F35: ='T13 2031 Sch 13 Reserves'!G22 -> 0
C36: Reserves from financial statements- balance at end of year | D36: 126 | E36: T13 | F36: ='T13 2031 Sch 13 Reserves'!K43 -> 8925630
C37: Soft costs on construction and renovation of buildings | D37: 127
C38: Book loss on joint ventures or partnerships | D38: 205
C39: Capital items expensed | D39: 206
C40: Debt issue expense | D40: 208
C41: Development expenses claimed in current year | D41: 212
C42: Financing fees deducted in books | D42: 216
C43: Gain on settlement of debt | D43: 220
C44: Non-deductible advertising | D44: 226
C45: Non-deductible interest | D45: 227
C46: Non-deductible legal and accounting fees | D46: 228
C47: Recapture of SR&ED expenditures | D47: 231
C48: Share issue expense | D48: 235
C49: Write down of capital property | D49: 236
C50: Amounts received in respect of qualifying environment trust per paragraphs 12(1)(z.1) and 12(1)(z.2) | D50: 237
C51: Other Additions
C52: Interest Expensed on Capital Leases | D52: 295
C53: Realized Income from Deferred Credit Accounts | D53: 295
C54: Pensions | D54: 295
C55: Non-deductible penalties | D55: 295
C56: Vehicle amortization | D56: 295 | F56: 922284
C57: Other amortization-Renewables not included in Depreciation | D57: 295 | F57: 56226
C58: Co-op education credit-prior year | D58: 295 | F58: 3000
C59: Golf tournament expenses | D59: 295 | F59: 29273
C60: Reglatory assets)Deferred Variances)-decrease | D60: 295 | F60: 4235740
C61: ARO Accretion expense
C62: Capital Contributions Received (ITA 12(1)(x)) | F62: 39835122
C63: Lease Inducements Received (ITA 12(1)(x))
C64: Deferred Revenue (ITA 12(1)(a))
C65: Prior Year Investment Tax Credits received
C75: Total Additions | F75: =SUM(F16:F74) -> 96132169
C76: Deductions:
C77: Gain on disposal of assets per financial statements | D77: 401 | F77: 44476
C78: Dividends not taxable under section 83 | D78: 402
C79: Capital cost allowance from Schedule 8 | D79: 403 | E79: T8 | F79: ='T8 2031 Sch 8 CCA'!AA43 -> 68350682.51
C80: Terminal loss from Schedule 8 | D80: 404 | E80: T8 | F80: ='T8 2031 Sch 8 CCA'!Z43 -> 0
C81: Allowable business investment loss | D81: 406
C82: Deferred and prepaid expenses | D82: 409
C83: Scientific research expenses claimed in year | D83: 411 | F83: 1662291
C84: Tax reserves end of year | D84: 413 | E84: T13 | F84: ='T13 2031 Sch 13 Reserves'!K22 -> 0
C85: Reserves from financial statements - balance at beginning of year | D85: 414 | E85: T13 | F85: ='T13 2031 Sch 13 Reserves'!G43 -> 8665660
C86: Contributions to deferred income plans | D86: 416
C87: Book income of joint venture or partnership | D87: 305
C88: Equity in income from subsidiary or affiliates | D88: 306
C89: Other deductions
C90: Interest capitalized for accounting deducted for tax | D90: 395 | F90: 1763938
C91: Capital Lease Payments | D91: 395
C92: Non-taxable imputed interest income on deferral and variance accounts | D92: 395
C93: Pensions contributions capitalized for accounting | D93: 395 | F93: 1407977
C94: Current period employee benefit cost capitalized for accounting | D94: 395 | F94: 49781
C95: Current period sick leave cost capitalized for accounting | D95: 395 | F95: 9880
C96: Proceeds on sales recorded for accounting | D96: 395 | F96: 298910
C97: Deferred Revenue ICM | D97: 395 | F97: 79620
C98: ARO Payments - Deductible for Tax when Paid
C99: ITA 13(7.4) Election - Capital Contributions Received | F99: 39835122
C100: ITA 13(7.4) Election - Apply Lease Inducement to cost of Leaseholds
C101: Deferred Revenue - ITA 20(1)(m) reserve
C102: Principal portion of lease payments
C103: Lease Inducement Book Amortization credit to income
C104: Financing fees for tax ITA 20(1)(e) and (e.1)
C113: Total Deductions | E113: calculated | F113: =SUM(F77:F112) -> 122168337.5
C115: NET INCOME FOR TAX PURPOSES | E115: calculated | F115: =SUM(F12,F75)-F113 -> 11456428.75
C117: Charitable donations | D117: 311
C118: Taxable dividends received under section 112 or 113 | D118: 320
C119: Non-capital losses of previous tax years from Schedule 4 | D119: 331 | E119: T4 | F119: ='T4 2031 Sch30 Loss Cfwd'!I15 -> 0
C120: Net capital losses of previous tax years from Schedule 4 | D120: 332 | E120: T4 | F120: ='T4 2031 Sch30 Loss Cfwd'!I25 -> 0
C121: Limited partnership losses of previous tax years from Schedule 4 | D121: 335
C123: REGULATORY TAXABLE INCOME | E123: calculated | F123: =IF(F115<0,F115,F115-SUM(F117:F122)) -> 11456428.75 | G123: T0

Sheet T4 2031 Sch30 Loss Cfwd
C7: Schedule 4 Loss Carry Forward - Test Year
C9: Corporation Loss Continuity and Application
C11: Non-Capital Loss Carry Forward Deduction | F11: Working Paper Reference | G11: Total | H11: Non-Distribution Portion | I11: Utility Balance
C12: Actual/Estimated Bridge Year Carried Forward | F12: B4 | G12: ='T4 2030 Sch30 Loss Cfwd'!G18 -> 0 | I12: =G12-H12 -> 0
C13: Amount to be used in Test Year and Price Cap Years | F13: T1 | G13: =IF('T1 2031 Sch 1 Taxable Income'!F115<0,0,IF('T1 2031 Sch 1 Taxable Income'!F115>G12,G12,'T1 2031 Sch 1 Taxable Income'!F115)) -> 0 | I13: =G13-H13 -> 0
C14: Number of years loss until next cost of service (i.e. years the loss is to be spread over)
C15: Amount to be used in Test Year | F15: calculated | G15: =IF(ISERROR(G13/G14),G13,G13/G14) -> 0 | I15: =G15-H15 -> 0
C16: Loss Carry Forward Generated in Test Year (if any) | F16: T1 | G16: =IF('T1 2031 Sch 1 Taxable Income'!F115<0,'T1 2031 Sch 1 Taxable Income'!F115*-1,0) -> 0 | I16: =G16-H16 -> 0
C17: Other Adjustments | I17: =G17-H17 -> 0
C18: Balance available for use in Future Years | F18: calculated | G18: =G12-G13+G16+G17 -> 0 | I18: =G18-H18 -> 0
C21: Net Capital Loss Carry Forward Deduction | G21: Total | H21: Non-Distribution Portion | I21: Utility Balance
C22: Actual/Estimated Bridge Year Carried Forward | F22: B4 | G22: ='B4 Sch 4 Loss Cfwd Bridge'!G23 -> 0 | I22: =G22-H22 -> 0
C23: Amount to be used in Test Year and Price Cap Years | I23: =G23-H23 -> 0
C24: Number of years loss until next cost of service (i.e. years the loss is to be spread over)
C25: Amount to be used in Test Year | F25: T1 | G25: =IF(ISERROR(G23/G24),G23,G23/G24) -> 0 | I25: =G25-H25 -> 0
C26: Loss Carry Forward Generated in Test Year (if any) | I26: =G26-H26 -> 0
C27: Other Adjustments | I27: =G27-H27 -> 0
C28: Balance available for use in Future Years | G28: =G22-G23+G26+G27 -> 0 | I28: =G28-H28 -> 0

Sheet T8 2031 Sch 8 CCA
B7: Schedule 8 CCA - Test Year
B9: (1) Class | C9: Class Description | D9: Working Paper Reference | E9: (2) Undepreciated capital cost (UCC) at the beginning of the test year | F9: (3) Cost of acquisitions during the year (new property must be available for use, except CWIP) | G9: (4) Cost of acquisitions from column 3 that are designated immediate expensing property (DIEP) | H9: (5) Adjustments and transfers (enter amounts that will reduce the UCC as negatives) | I9: (6) Amount from column 5 that is assistance received or receivable during the year for a property, subsequent to its disposition | J9: (7) Amount from column 5 that is repaid during the year for a property, subsequent to its disposition | K9: (8) Proceeds of dispositions | L9: (9) Proceeds of dispositions of the DIEP (enter amount from column 8 that relates to the DIEP reported in column 4) | M9: (10) UCC (column 2 plus column 3 plus or minus column 5 minus column 8) | N9: (11) UCC of the DIEP (enter the UCC amount that relates to the DIEP reported in column 4) | O9: (12) Immediate expensing | P9: (13) Cost of acquisitions on remainder of Class (column 3 minus column 4 plus column 11 minus column 12) | Q9: (14) Cost of acquisitions from column 13 that are accelerated investment incentive properties (AIIP) or properties included in Classes 54 to 56 | R9: (15) Remaining UCC (column 10 minus column 12) (if negative, enter "0") | S9: (16) Proceeds of disposition available to reduce the UCC of AIIP and property included in Classes 54 to 56 (column 8 minus column 9 plus column 6 minus column 13 plus column 14 minus column 7) (if negative, enter "0") | T9: (17) Net capital cost additions of AIIP and property included in Classes 54 to 56 acquired during the year (column 14 minus column 16) (if negative, enter "0") | U9: Relevant factor1 | V9: (18) UCC adjustment for AIIP and property included in Classes 54 to 56 acquired during the year (column 17 multiplied by the relevant factor) | W9: (19) UCC adjustment for non-AIIP and property included in Classes 54 to 56 (0.5 multiplied by the result of column 13 minus column 14 minus column 6 plus column 7 minus column 8 plus column 9) (if negative, enter "0") | X9: (20) CCA Rate % | Y9: (21) Recapture of CCA | Z9: (22) Terminal Loss | AA9: (23) CCA (for declining balance method, the result of column 15 plus column 18 minus column 19, multiplied by column 20 or a lower amount, plus column 12)) | AB9: (24) UCC at the end of the test year (column 10 minus column 23)
B10: =IF(ISBLANK('B8 Sch 8 CCA Bridge'!B10), "", 'B8 Sch 8 CCA Bridge'!B10) -> 1 | C10: =IF(ISBLANK('B8 Sch 8 CCA Bridge'!C10), "", 'B8 Sch 8 CCA Bridge'!C10) -> Buildings, Distribution System (acq'd post 1987) | D10: B8 | E10: =IF(ISBLANK('T8 2030 Sch 8 CCA'!AA10), "", 'T8 2030 Sch 8 CCA'!AB10) -> 68756548.15 | M10: =IFERROR(E10+F10+H10-K10,0) -> 68756548.15 | P10: =+F10-G10+N10-O10 -> 0 | R10: =IF((M10-O10)<0,0,M10-O10) -> 68756548.15 | S10: =IF((K10-L10+I10-P10+Q10-J10)<0,0,(K10-L10+I10-P10+Q10-J10)) -> 0 | T10: =IF((Q10-S10)<0,0,(Q10-S10)) -> 0 | U10: 0 | V10: =T10*U10 -> 0 | W10: =IF((0.5*(P10-Q10-I10+J10-K10+L10))<0,0,(0.5*(P10-Q10-I10+J10-K10+L10))) -> 0 | X10: 0.04 | AA10: =IF(OR(R10<=0,Z10>0),0,(R10+V10-W10)*X10) -> 2750261.926 | AB10: =IF(M10<0,0,M10-Z10-AA10) -> 66006286.23
B11: =IF(ISBLANK('B8 Sch 8 CCA Bridge'!B11), "", 'B8 Sch 8 CCA Bridge'!B11) -> 1b | C11: =IF(ISBLANK('B8 Sch 8 CCA Bridge'!C11), "", 'B8 Sch 8 CCA Bridge'!C11) -> Non-Residential Buildings [Reg. 1100(1)(a.1) election] | D11: B8 | E11: =IF(ISBLANK('T8 2030 Sch 8 CCA'!AA11), "", 'T8 2030 Sch 8 CCA'!AB11) -> 19142360.8 | F11: 793866 | M11: =IFERROR(E11+F11+H11-K11,"") -> 19936226.8 | P11: =+F11-G11+N11-O11 -> 793866 | R11: =IF((M11-O11)<0,0,M11-O11) -> 19936226.8 | S11: =IF((K11-L11+I11-P11+Q11-J11)<0,0,(K11-L11+I11-P11+Q11-J11)) -> 0 | T11: =IF((Q11-S11)<0,0,(Q11-S11)) -> 0 | U11: 0 | V11: =T11*U11 -> 0 | W11: =IF((0.5*(P11-Q11-I11+J11-K11+L11))<0,0,(0.5*(P11-Q11-I11+J11-K11+L11))) -> 396933 | X11: 0.06 | AA11: =IF(OR(R11<=0,Z11>0),0,(R11+V11-W11)*X11) -> 1172357.628 | AB11: =IF(M11<0,0,M11-Z11-AA11) -> 18763869.17
B12: =IF(ISBLANK('B8 Sch 8 CCA Bridge'!B12), "", 'B8 Sch 8 CCA Bridge'!B12) -> 2 | C12: =IF(ISBLANK('B8 Sch 8 CCA Bridge'!C12), "", 'B8 Sch 8 CCA Bridge'!C12) -> Distribution System (acq'd pre 1988) | D12: B8 | E12: =IF(ISBLANK('T8 2030 Sch 8 CCA'!AA12), "", 'T8 2030 Sch 8 CCA'!AB12) -> 2215662.849 | M12: 2215662.849 | P12: 0 | R12: 2215662.849 | S12: 0 | T12: 0 | V12: 0 | W12: 0 | X12: 0.06 | AA12: 132939.7709 | AB12: 2082723.078
B13: =IF(ISBLANK('B8 Sch 8 CCA Bridge'!B13), "", 'B8 Sch 8 CCA Bridge'!B13) -> 3 | C13: =IF(ISBLANK('B8 Sch 8 CCA Bridge'!C13), "", 'B8 Sch 8 CCA Bridge'!C13) -> Buildings (acq'd pre 1988) | D13: B8 | E13: =IF(ISBLANK('T8 2030 Sch 8 CCA'!AA13), "", 'T8 2030 Sch 8 CCA'!AB13) -> 0 | M13: 0 | P13: 0 | R13: 0 | S13: 0 | T13: 0 | V13: 0 | W13: 0 | X13: 0.05 | AA13: 0 | AB13: 0
B14: =IF(ISBLANK('B8 Sch 8 CCA Bridge'!B14), "", 'B8 Sch 8 CCA Bridge'!B14) -> 6 | C14: =IF(ISBLANK('B8 Sch 8 CCA Bridge'!C14), "", 'B8 Sch 8 CCA Bridge'!C14) -> Certain Buildings; Fences | D14: B8 | E14: =IF(ISBLANK('T8 2030 Sch 8 CCA'!AA14), "", 'T8 2030 Sch 8 CCA'!AB14) -> 0 | M14: 0 | P14: 0 | R14: 0 | S14: 0 | T14: 0 | U14: 0 | V14: 0 | W14: 0 | X14: 0.1 | AA14: 0 | AB14: 0
B15: =IF(ISBLANK('B8 Sch 8 CCA Bridge'!B15), "", 'B8 Sch 8 CCA Bridge'!B15) -> 8 | C15: =IF(ISBLANK('B8 Sch 8 CCA Bridge'!C15), "", 'B8 Sch 8 CCA Bridge'!C15) -> General Office Equipment, Furniture, Fixtures | D15: B8 | E15: =IF(ISBLANK('T8 2030 Sch 8 CCA'!AA15), "", 'T8 2030 Sch 8 CCA'!AB15) -> 9280086.018 | F15: 2088922 | M15: 11369008.02 | P15: 2088922 | R15: 11369008.02 | S15: 0 | T15: 0 | U15: 0 | V15: 0 | W15: 1044461 | X15: 0.2 | AA15: 2064909.404 | AB15: 9304098.615
B16: =IF(ISBLANK('B8 Sch 8 CCA Bridge'!B16), "", 'B8 Sch 8 CCA Bridge'!B16) -> 10 | C16: =IF(ISBLANK('B8 Sch 8 CCA Bridge'!C16), "", 'B8 Sch 8 CCA Bridge'!C16) -> Motor Vehicles, Fleet | D16: B8 | E16: =IF(ISBLANK('T8 2030 Sch 8 CCA'!AA16), "", 'T8 2030 Sch 8 CCA'!AB16) -> 8402794.501 | F16: 2909304 | K16: 44476 | M16: 11267622.5 | P16: 2909304 | R16: 11267622.5 | S16: 0 | T16: 0 | U16: 0 | V16: 0 | W16: 1432414 | X16: 0.3 | AA16: =IF(OR(R16<=0,Z16>0),0,(R16+V16-W16)*X16) -> 2950562.55 | AB16: 8317059.951
B17: =IF(ISBLANK('B8 Sch 8 CCA Bridge'!B17), "", 'B8 Sch 8 CCA Bridge'!B17) -> 10.1 | C17: =IF(ISBLANK('B8 Sch 8 CCA Bridge'!C17), "", 'B8 Sch 8 CCA Bridge'!C17) -> Certain Automobiles | D17: B8 | E17: =IF(ISBLANK('T8 2030 Sch 8 CCA'!AA17), "", 'T8 2030 Sch 8 CCA'!AB17) -> 62.85818 | M17: 62.85818 | P17: 0 | R17: 62.85818 | S17: 0 | T17: 0 | U17: 0 | V17: 0 | W17: 0 | X17: 0.3 | AA17: 18.857454 | AB17: 44.000726
B18: =IF(ISBLANK('B8 Sch 8 CCA Bridge'!B18), "", 'B8 Sch 8 CCA Bridge'!B18) -> 12 | C18: =IF(ISBLANK('B8 Sch 8 CCA Bridge'!C18), "", 'B8 Sch 8 CCA Bridge'!C18) -> Computer Application Software (Non-Systems) | D18: B8 | E18: =IF(ISBLANK('T8 2030 Sch 8 CCA'!AA18), "", 'T8 2030 Sch 8 CCA'!AB18) -> 1333745 | F18: 3174133 | M18: 4507878 | P18: 3174133 | R18: 4507878 | S18: 0 | T18: 0 | U18: 0 | V18: 0 | W18: 1587066.5 | X18: 1 | AA18: 2920811.5 | AB18: 1587066.5
B19: 13 1 | C19: =IF(ISBLANK('B8 Sch 8 CCA Bridge'!C19), "", 'B8 Sch 8 CCA Bridge'!C19) -> Lease # 1 | D19: B8 | E19: =IF(ISBLANK('T8 2030 Sch 8 CCA'!AA19), "", 'T8 2030 Sch 8 CCA'!AB19) -> 0 | M19: 0 | P19: 0 | R19: 0 | S19: 0 | T19: 0 | U19: 0 | V19: 0 | W19: 0 | X19: NA | AA19: 0 | AB19: 0
B20: 13 2 | C20: =IF(ISBLANK('B8 Sch 8 CCA Bridge'!C20), "", 'B8 Sch 8 CCA Bridge'!C20) -> Lease # 2 | D20: B8 | E20: =IF(ISBLANK('T8 2030 Sch 8 CCA'!AA20), "", 'T8 2030 Sch 8 CCA'!AB20) -> 0 | M20: 0 | P20: 0 | R20: 0 | S20: 0 | T20: 0 | U20: 0 | V20: 0 | W20: 0 | X20: NA | AA20: 0 | AB20: 0
B21: 13 3 | C21: =IF(ISBLANK('B8 Sch 8 CCA Bridge'!C21), "", 'B8 Sch 8 CCA Bridge'!C21) -> Lease # 3 | D21: B8 | E21: =IF(ISBLANK('T8 2030 Sch 8 CCA'!AA21), "", 'T8 2030 Sch 8 CCA'!AB21) -> 0 | M21: 0 | P21: 0 | R21: 0 | S21: 0 | T21: 0 | U21: 0 | V21: 0 | W21: 0 | X21: NA | AA21: 0 | AB21: 0
B22: 13 4 | C22: =IF(ISBLANK('B8 Sch 8 CCA Bridge'!C22), "", 'B8 Sch 8 CCA Bridge'!C22) -> Lease # 4 | D22: B8 | E22: =IF(ISBLANK('T8 2030 Sch 8 CCA'!AA22), "", 'T8 2030 Sch 8 CCA'!AB22) -> 0 | M22: 0 | P22: 0 | R22: 0 | S22: 0 | T22: 0 | U22: 0 | V22: 0 | W22: 0 | X22: NA | AA22: 0 | AB22: 0
B23: =IF(ISBLANK('B8 Sch 8 CCA Bridge'!B23), "", 'B8 Sch 8 CCA Bridge'!B23) -> 14 | C23: =IF(ISBLANK('B8 Sch 8 CCA Bridge'!C23), "", 'B8 Sch 8 CCA Bridge'!C23) -> Limited Period Patents, Franchises, Concessions or Licences | D23: B8 | E23: =IF(ISBLANK('T8 2030 Sch 8 CCA'!AA23), "", 'T8 2030 Sch 8 CCA'!AB23) -> 0 | M23: 0 | P23: 0 | R23: 0 | S23: 0 | T23: 0 | U23: 0 | V23: 0 | W23: 0 | X23: NA | AA23: 0 | AB23: 0
B24: =IF(ISBLANK('B8 Sch 8 CCA Bridge'!B24), "", 'B8 Sch 8 CCA Bridge'!B24) -> 14.1 | C24: Eligible Capital Property (acq'd pre Jan 1, 2017) | D24: B8 | E24: =IF(ISBLANK('T8 2030 Sch 8 CCA'!AA24), "", 'T8 2030 Sch 8 CCA'!AB24) -> 1793232.777 | M24: 1793232.777 | P24: 0 | R24: =IF((M24-O24)<0,0,M24-O24) -> 1793232.777 | S24: =IF((K24-L24+I24-P24+Q24-J24)<0,0,(K24-L24+I24-P24+Q24-J24)) -> 0 | T24: 0 | V24: 0 | W24: 0 | X24: 0.07 | AA24: 125526.2944 | AB24: 1667706.482
B25: =IF(ISBLANK('B8 Sch 8 CCA Bridge'!B25), "", 'B8 Sch 8 CCA Bridge'!B25) -> 14.1 | C25: Eligible Capital Property (acq'd post Jan 1, 2017) | D25: B8 | E25: =IF(ISBLANK('T8 2030 Sch 8 CCA'!AA25), "", 'T8 2030 Sch 8 CCA'!AB25) -> 18505919.78 | F25: 22113830 | M25: 40619749.78 | P25: 22113830 | R25: 40619749.78 | S25: 0 | T25: 0 | U25: 0 | V25: 0 | W25: 11056915 | X25: 0.05 | AA25: 1478141.739 | AB25: 39141608.04
B26: =IF(ISBLANK('B8 Sch 8 CCA Bridge'!B26), "", 'B8 Sch 8 CCA Bridge'!B26) -> 17 | C26: =IF(ISBLANK('B8 Sch 8 CCA Bridge'!C26), "", 'B8 Sch 8 CCA Bridge'!C26) -> Elec. Generation Equip. (Non-Bldng, acq'd post Feb 27/00); Roads, Lots, Storage | D26: B8 | E26: =IF(ISBLANK('T8 2030 Sch 8 CCA'!AA26), "", 'T8 2030 Sch 8 CCA'!AB26) -> 98180.73819 | M26: 98180.73819 | P26: 0 | R26: 98180.73819 | S26: 0 | T26: 0 | U26: 0 | V26: 0 | W26: 0 | X26: 0.08 | AA26: 7854.459055 | AB26: 90326.27913
B27: =IF(ISBLANK('B8 Sch 8 CCA Bridge'!B27), "", 'B8 Sch 8 CCA Bridge'!B27) -> 42 | C27: =IF(ISBLANK('B8 Sch 8 CCA Bridge'!C27), "", 'B8 Sch 8 CCA Bridge'!C27) -> Fibre Optic Cable | D27: B8 | E27: =IF(ISBLANK('T8 2030 Sch 8 CCA'!AA27), "", 'T8 2030 Sch 8 CCA'!AB27) -> 469.681406 | M27: 469.681406 | P27: 0 | R27: 469.681406 | S27: 0 | T27: 0 | U27: 0 | V27: 0 | W27: 0 | X27: 0.12 | AA27: 56.36176871 | AB27: 413.3196372
B28: =IF(ISBLANK('B8 Sch 8 CCA Bridge'!B28), "", 'B8 Sch 8 CCA Bridge'!B28) -> 43.1 | C28: =IF(ISBLANK('B8 Sch 8 CCA Bridge'!C28), "", 'B8 Sch 8 CCA Bridge'!C28) -> Certain Clean Energy/Energy-Efficient Generation Equipment | D28: B8 | E28: =IF(ISBLANK('T8 2030 Sch 8 CCA'!AA28), "", 'T8 2030 Sch 8 CCA'!AB28) -> 0 | M28: 0 | P28: 0 | R28: 0 | S28: 0 | T28: 0 | U28: 1.5 | V28: 0 | W28: 0 | X28: 0.3 | AA28: 0 | AB28: 0
B29: =IF(ISBLANK('B8 Sch 8 CCA Bridge'!B29), "", 'B8 Sch 8 CCA Bridge'!B29) -> 43.2 | C29: =IF(ISBLANK('B8 Sch 8 CCA Bridge'!C29), "", 'B8 Sch 8 CCA Bridge'!C29) -> Certain Clean Energy/Energy-Efficient Generation Equipment | D29: B8 | E29: =IF(ISBLANK('T8 2030 Sch 8 CCA'!AA29), "", 'T8 2030 Sch 8 CCA'!AB29) -> 9.0625 | M29: 9.0625 | P29: 0 | R29: 9.0625 | S29: 0 | T29: 0 | U29: 0.5 | V29: 0 | W29: 0 | X29: 0.5 | AA29: 4.53125 | AB29: 4.53125
B30: =IF(ISBLANK('B8 Sch 8 CCA Bridge'!B30), "", 'B8 Sch 8 CCA Bridge'!B30) -> 45 | C30: =IF(ISBLANK('B8 Sch 8 CCA Bridge'!C30), "", 'B8 Sch 8 CCA Bridge'!C30) -> Computers & System Software (acq'd post Mar 22/04 and pre Mar 19/07) | D30: B8 | E30: =IF(ISBLANK('T8 2030 Sch 8 CCA'!AA30), "", 'T8 2030 Sch 8 CCA'!AB30) -> 0.60394125 | M30: 0.60394125 | P30: 0 | R30: 0.60394125 | S30: 0 | T30: 0 | V30: 0 | W30: 0 | X30: 0.45 | AA30: 0.2717735625 | AB30: 0.3321676875
B31: =IF(ISBLANK('B8 Sch 8 CCA Bridge'!B31), "", 'B8 Sch 8 CCA Bridge'!B31) -> 46 | C31: =IF(ISBLANK('B8 Sch 8 CCA Bridge'!C31), "", 'B8 Sch 8 CCA Bridge'!C31) -> Data Network Infrastructure Equipment (acq'd post Mar 22/04) | D31: B8 | E31: =IF(ISBLANK('T8 2030 Sch 8 CCA'!AA31), "", 'T8 2030 Sch 8 CCA'!AB31) -> 362501.7795 | M31: 362501.7795 | P31: 0 | R31: 362501.7795 | S31: 0 | T31: 0 | U31: 0 | V31: 0 | W31: 0 | X31: 0.3 | AA31: 108750.5339 | AB31: 253751.2457
B32: =IF(ISBLANK('B8 Sch 8 CCA Bridge'!B32), "", 'B8 Sch 8 CCA Bridge'!B32) -> 47 | C32: =IF(ISBLANK('B8 Sch 8 CCA Bridge'!C32), "", 'B8 Sch 8 CCA Bridge'!C32) -> Distribution System (acq'd post Feb 22/05) | D32: B8 | E32: =IF(ISBLANK('T8 2030 Sch 8 CCA'!AA32), "", 'T8 2030 Sch 8 CCA'!AB32) -> 530898357.7 | F32: 206022874 | K32: 298910 | M32: 736622321.7 | P32: 206022874 | R32: 736622321.7 | S32: 0 | T32: 0 | U32: 0 | V32: 0 | W32: 102861982 | X32: 0.08 | AA32: 50700827.18 | AB32: 685921494.5
B33: =IF(ISBLANK('B8 Sch 8 CCA Bridge'!B33), "", 'B8 Sch 8 CCA Bridge'!B33) -> 50 | C33: =IF(ISBLANK('B8 Sch 8 CCA Bridge'!C33), "", 'B8 Sch 8 CCA Bridge'!C33) -> General Purpose Computer Hardware & Software (acq'd post Mar 18/07) | D33: B8 | E33: =IF(ISBLANK('T8 2030 Sch 8 CCA'!AA33), "", 'T8 2030 Sch 8 CCA'!AB33) -> 4948379.916 | F33: 4422002 | M33: 9370381.916 | P33: 4422002 | R33: 9370381.916 | S33: 0 | T33: 0 | U33: 0 | V33: 0 | W33: 2211001 | X33: 0.55 | AA33: 3937659.504 | AB33: 5432722.412
B34: =IF(ISBLANK('B8 Sch 8 CCA Bridge'!B34), "", 'B8 Sch 8 CCA Bridge'!B34) -> 95 | C34: =IF(ISBLANK('B8 Sch 8 CCA Bridge'!C34), "", 'B8 Sch 8 CCA Bridge'!C34) -> CWIP | D34: B8 | E34: =IF(ISBLANK('T8 2030 Sch 8 CCA'!AA34), "", 'T8 2030 Sch 8 CCA'!AB34) -> 154421503 | H34: -66243478 | M34: 88178025 | P34: 0 | R34: 88178025 | S34: 0 | T34: 0 | U34: 0 | V34: 0 | W34: 0 | X34: 0 | AA34: 0 | AB34: =IF(M34<0,0,M34-Z34-AA34) -> 88178025
B35: =IF(ISBLANK('B8 Sch 8 CCA Bridge'!B35), "", 'B8 Sch 8 CCA Bridge'!B35) ->  | C35: =IF(ISBLANK('B8 Sch 8 CCA Bridge'!C35), "", 'B8 Sch 8 CCA Bridge'!C35) ->  | D35: B8 | E35: =IF(ISBLANK('T8 2030 Sch 8 CCA'!AA35), "", 'T8 2030 Sch 8 CCA'!AB35) -> 0 | M35: 0 | P35: 0 | R35: 0 | S35: 0 | T35: 0 | V35: 0 | W35: 0 | AA35: 0 | AB35: 0
B36: =IF(ISBLANK('B8 Sch 8 CCA Bridge'!B36), "", 'B8 Sch 8 CCA Bridge'!B36) ->  | C36: =IF(ISBLANK('B8 Sch 8 CCA Bridge'!C36), "", 'B8 Sch 8 CCA Bridge'!C36) ->  | D36: B8 | E36: =IF(ISBLANK('T8 2030 Sch 8 CCA'!AA36), "", 'T8 2030 Sch 8 CCA'!AB36) -> 0 | M36: 0 | P36: 0 | R36: 0 | S36: 0 | T36: 0 | V36: 0 | W36: 0 | AA36: 0 | AB36: 0
B37: =IF(ISBLANK('B8 Sch 8 CCA Bridge'!B37), "", 'B8 Sch 8 CCA Bridge'!B37) ->  | C37: =IF(ISBLANK('B8 Sch 8 CCA Bridge'!C37), "", 'B8 Sch 8 CCA Bridge'!C37) ->  | D37: B8 | E37: =IF(ISBLANK('T8 2030 Sch 8 CCA'!AA37), "", 'T8 2030 Sch 8 CCA'!AB37) -> 0 | M37: 0 | P37: 0 | R37: 0 | S37: 0 | T37: 0 | V37: 0 | W37: 0 | AA37: 0 | AB37: 0
B38: =IF(ISBLANK('B8 Sch 8 CCA Bridge'!B38), "", 'B8 Sch 8 CCA Bridge'!B38) ->  | C38: =IF(ISBLANK('B8 Sch 8 CCA Bridge'!C38), "", 'B8 Sch 8 CCA Bridge'!C38) ->  | D38: B8 | E38: =IF(ISBLANK('T8 2030 Sch 8 CCA'!AA38), "", 'T8 2030 Sch 8 CCA'!AB38) -> 0 | M38: 0 | P38: 0 | R38: 0 | S38: 0 | T38: 0 | V38: 0 | W38: 0 | AA38: 0 | AB38: 0
B39: =IF(ISBLANK('B8 Sch 8 CCA Bridge'!B39), "", 'B8 Sch 8 CCA Bridge'!B39) ->  | C39: =IF(ISBLANK('B8 Sch 8 CCA Bridge'!C39), "", 'B8 Sch 8 CCA Bridge'!C39) ->  | D39: B8 | E39: =IF(ISBLANK('T8 2030 Sch 8 CCA'!AA39), "", 'T8 2030 Sch 8 CCA'!AB39) -> 0 | M39: 0 | P39: 0 | R39: 0 | S39: 0 | T39: 0 | V39: 0 | W39: 0 | AA39: 0 | AB39: 0
B40: =IF(ISBLANK('B8 Sch 8 CCA Bridge'!B40), "", 'B8 Sch 8 CCA Bridge'!B40) ->  | C40: =IF(ISBLANK('B8 Sch 8 CCA Bridge'!C40), "", 'B8 Sch 8 CCA Bridge'!C40) ->  | D40: B8 | E40: =IF(ISBLANK('T8 2030 Sch 8 CCA'!AA40), "", 'T8 2030 Sch 8 CCA'!AB40) -> 0 | M40: 0 | P40: 0 | R40: 0 | S40: 0 | T40: 0 | V40: 0 | W40: 0 | AA40: 0 | AB40: 0
B41: =IF(ISBLANK('B8 Sch 8 CCA Bridge'!B41), "", 'B8 Sch 8 CCA Bridge'!B41) ->  | C41: =IF(ISBLANK('B8 Sch 8 CCA Bridge'!C41), "", 'B8 Sch 8 CCA Bridge'!C41) ->  | D41: B8 | E41: =IF(ISBLANK('T8 2030 Sch 8 CCA'!AA41), "", 'T8 2030 Sch 8 CCA'!AB41) -> 0 | M41: 0 | P41: 0 | R41: 0 | S41: 0 | T41: 0 | V41: 0 | W41: 0 | AA41: 0 | AB41: =IF(M41<0,0,M41-Z41-AA41) -> 0
B42: =IF(ISBLANK('B8 Sch 8 CCA Bridge'!B42), "", 'B8 Sch 8 CCA Bridge'!B42) ->  | C42: =IF(ISBLANK('B8 Sch 8 CCA Bridge'!C42), "", 'B8 Sch 8 CCA Bridge'!C42) ->  | D42: B8 | E42: =IF(ISBLANK('T8 2030 Sch 8 CCA'!AA42), "", 'T8 2030 Sch 8 CCA'!AB42) -> 0 | M42: =IFERROR(E42+F42+H42-K42,"") -> 0 | P42: 0 | R42: 0 | S42: 0 | T42: 0 | V42: 0 | W42: 0 | AA42: 0 | AB42: 0
C43: TOTALS | E43: =SUM(E10:E42) -> 820159815.2 | F43: =SUM(F10:F42) -> 241524931 | G43: =SUM(G10:G42) -> 0 | H43: =SUM(H10:H42) -> -66243478 | I43: =SUM(I10:I42) -> 0 | J43: 0 | K43: =SUM(K10:K42) -> 343386 | L43: =SUM(L10:L42) -> 0 | M43: =SUM(M10:M42) -> 995097882.2 | N43: 0 | O43: 0 | P43: 241524931 | Q43: =SUM(Q10:Q42) -> 0 | R43: 995097882.2 | S43: 0 | T43: 0 | V43: =SUM(V10:V42) -> 0 | W43: 120590772.5 | Y43: =SUM(Y10:Y42) -> 0 | Z43: =SUM(Z10:Z42) -> 0 | AA43: =SUM(AA10:AA42) -> 68350682.51 | AB43: =SUM(AB10:AB42) -> 926747199.7
B45: For additional details and guidance on calculating amounts in Schedule 8, refer to the notes to the Canada Revenue Agency published Schedule 8 - Capital Cost Allowance (CCA) (2018 and later tax years):
B46: https://www.canada.ca/content/dam/cra-arc/formspubs/pbg/t2sch8/t2sch8-19e.pdf
B50: 1. Please note that Subsection 1100(2) of the Income Tax Regulations provide undepreciated capital cost adjustment factors of eligible zero-emission vehicles and equipment under Class 53, Class 54, Class 55 and Class 56,
B51: please assess the applicability of these adjustments and incorporate them in the PILs model as applicable.

Sheet T13 2031 Sch 13 Reserves
C7: Schedule 13 Tax Reserves - Test Year
C9: Continuity of Reserves
I10: Test Year Adjustments
C11: Description | D11: Working Paper Reference | E11: Bridge Year | F11: Eliminate Amounts Not Relevant for Test Year | G11: Adjusted Utility Balance | I11: Additions | J11: Disposals | K11: Balance for Test Year | M11: Change During the Year | N11: Disallowed Expenses
C13: Capital Gains Reserves ss.40(1) | D13: B13 | E13: ='B13 Sch 13 Reserves Bridge'!K13 -> 0 | G13: =SUM(E13:F13) -> 0 | K13: =G13+I13-J13 -> 0 | M13: =+K13-G13 -> 0
C14: Tax Reserves Not Deducted for accounting purposes
C15: Reserve for doubtful accounts ss. 20(1)(l) | D15: B13 | E15: ='B13 Sch 13 Reserves Bridge'!K15 -> 0 | G15: =SUM(E15:F15) -> 0 | K15: =G15+I15-J15 -> 0 | M15: =+K15-G15 -> 0
C16: Reserve for goods and services not delivered ss. 20(1)(m) | D16: B13 | E16: ='B13 Sch 13 Reserves Bridge'!K16 -> 0 | G16: 0 | K16: 0 | M16: 0
C17: Reserve for unpaid amounts ss. 20(1)(n) | D17: B13 | E17: ='B13 Sch 13 Reserves Bridge'!K17 -> 0 | G17: 0 | K17: 0 | M17: 0
C18: Debt & Share Issue Expenses ss. 20(1)(e) | D18: B13 | E18: ='B13 Sch 13 Reserves Bridge'!K18 -> 0 | G18: 0 | K18: 0 | M18: 0
C19: Other tax reserves | D19: B13 | E19: ='B13 Sch 13 Reserves Bridge'!K19 -> 0 | G19: 0 | K19: 0 | M19: 0
E20: ='B13 Sch 13 Reserves Bridge'!K20 -> 0 | G20: 0 | K20: 0 | M20: 0
E21: ='B13 Sch 13 Reserves Bridge'!K21 -> 0 | G21: 0 | K21: 0 | M21: 0
C22: Total | E22: =SUM(E15:E21) -> 0 | F22: 0 | G22: 0 | H22: T1 | I22: 0 | J22: 0 | K22: 0 | L22: T1 | M22: 0 | N22: =SUM(N15:N21) -> 0
E23: 0
C24: Financial Statement Reserves (not deductible for Tax Purposes)
C25: General Reserve for Inventory Obsolescence (non-specific) | D25: B13 | E25: ='B13 Sch 13 Reserves Bridge'!K25 -> 0 | G25: =SUM(E25:F25) -> 0 | K25: =G25+I25-J25 -> 0 | M25: =+K25-G25 -> 0
C26: General reserve for bad debts | D26: B13 | E26: ='B13 Sch 13 Reserves Bridge'!K26 -> 0 | G26: 0 | K26: 0 | M26: 0
C27: Accrued Employee Future Benefits: | D27: B13 | E27: ='B13 Sch 13 Reserves Bridge'!K27 -> 0 | G27: 0 | K27: 0 | M27: 0
C28: - Medical and Life Insurance | D28: B13 | E28: ='B13 Sch 13 Reserves Bridge'!K28 -> 0 | G28: 0 | K28: 0 | M28: 0
C29: -Short & Long-term Disability | D29: B13 | E29: ='B13 Sch 13 Reserves Bridge'!K29 -> 0 | G29: 0 | K29: 0 | M29: 0
C30: -Accmulated Sick Leave | D30: B13 | E30: ='T13 2030 Sch 13 Reserves'!K30 -> 1097832 | G30: 1097832 | I30: 32935 | K30: 1130767 | M30: 32935
C31: - Termination Cost | D31: B13 | E31: ='B13 Sch 13 Reserves Bridge'!K31 -> 0 | G31: 0 | K31: 0 | M31: 0
C32: - Other Post-Employment Benefits | D32: B13 | E32: ='T13 2030 Sch 13 Reserves'!K32 -> 7567828 | G32: 7567828 | I32: 227035 | K32: 7794863 | M32: 227035
C33: Provision for Environmental Costs | D33: B13 | E33: ='B13 Sch 13 Reserves Bridge'!K33 -> 0 | G33: 0 | K33: 0 | M33: 0
C34: Restructuring Costs | D34: B13 | E34: ='B13 Sch 13 Reserves Bridge'!K34 -> 0 | G34: 0 | K34: 0 | M34: 0
C35: Accrued Contingent Litigation Costs | D35: B13 | E35: ='B13 Sch 13 Reserves Bridge'!K35 -> 0 | G35: 0 | K35: 0 | M35: 0
C36: Accrued Self-Insurance Costs | D36: B13 | E36: ='B13 Sch 13 Reserves Bridge'!K36 -> 0 | G36: 0 | K36: 0 | M36: 0
C37: Other Contingent Liabilities | D37: B13 | E37: ='B13 Sch 13 Reserves Bridge'!K37 -> 0 | G37: 0 | K37: 0 | M37: 0
C38: Bonuses Accrued and Not Paid Within 180 Days of Year-End ss. 78(4) | D38: B13 | E38: ='B13 Sch 13 Reserves Bridge'!K38 -> 0 | G38: 0 | K38: 0 | M38: 0
C39: Unpaid Amounts to Related Person and Not Paid Within 3 Taxation Years ss. 78(1) | D39: B13 | E39: ='B13 Sch 13 Reserves Bridge'!K39 -> 0 | G39: 0 | K39: 0 | M39: 0
C40: Other | D40: B13 | E40: ='B13 Sch 13 Reserves Bridge'!K40 -> 0 | G40: 0 | K40: 0 | M40: 0
E41: ='B13 Sch 13 Reserves Bridge'!K41 -> 0 | G41: 0 | K41: 0 | M41: 0
E42: ='B13 Sch 13 Reserves Bridge'!K42 -> 0 | G42: 0 | K42: 0 | M42: 0
C43: Total | E43: =SUM(E25:E42) -> 8665660 | F43: 0 | G43: 8665660 | H43: T1 | I43: 259970 | J43: 0 | K43: 8925630 | L43: T1 | M43: 259970 | N43: 0
E44: 0
